{"text_format":"1","workbook":"xlsx","n_sheets":3,"sheets":["How it works","Tool","Funds"],"not_rendered":{"charts":0,"images":2,"macros":1,"external_links":0,"defined_names":2,"comments":0,"pivot_tables":0},"unopened":[],"bounds":{"document_bytes":16777216,"sheet_cells":100000,"rows_first":2000,"rows_last":500,"rows_between":2000,"halvings":0,"cell_chars":16384,"cell_head_chars":4096},"cells_cut":0,"cells_raw":0,"read":"whole","date_system":"1900"}

{"sheet":"How it works","index":0,"n_rows":47,"n_cols":3,"rows_kept":47,"cut":false,"hidden":false,"merged":[]}
[]
[null,null,"80-20 Investor Portfolio stress test"]
[]
[]
[null,null,"How to stress test your portfolio"]
[null,null,"The tool is useful for those trying to decide between funds within the same sector. The tool focuses on key measures which when combined show how your portfolio might perform under periods of stress. In each area a fund is awarded between 1 and 5 stars based on a number of factors below. The important point to note is that a rating is applied by comparing a fund with its peers from the same sector. So a 5 star rating in the UK All Companies Sector is not comparable to a 5 star rating from the Europe excluding UK sector."]
[]
[null,null,"Sharpe Ratio"]
[null,null,"The Sharpe Ratio is a measure of the excess return a manager is achieving for the risk they are taking. Therefore a fund which I've awarded 5 stars for its Sharpe Ratio takes more calculated risks and produces stronger returns for the risk being taken than other funds within the same sector. A fund with a 1 star rating will likely take excess risk for its investors and therefore is likely to struggle if markets fall versus its peers within the same sector."]
[]
[null,null,"Sortino Ratio"]
[null,null,"This is very similar to the Sharpe Ratio but places more emphasis on the manager's ability to manage on the downside."]
[]
[null,null,"Volatility"]
[null,null,"This is a measure of a fund's dispersion of returns, or in plain English the variability in those returns. Think of it as a measure of how much a building is prone to wobble. The more prone it is (the higher the volatility) the more it will sway in an earthquake. Again this is relative to the sector that the fund belongs to. So a 1 star rating on a bond fund would suggest it is volatile for a bond fund but it does not mean that it is more volatile than an equity fund with a 5 star rating. Clearly an equity fund will always be more volatile than a bond fund. That's why the ratings are sector specific."]
[]
[]
[null,null,"The next five factors are specific scenario stress tests. Each scenario occurred in recent years and usually represents the occasions during which equity markets (or sectors within it) fell by more than 10%. The nature of each scenario is slightly different which gives the ability to assess how each fund performed versus its peers within the same sector during a given scenario and therefore how the fund may perform in the future under stress."]
[]
[]
[null,null,"Trade war escalation"]
[null,null,"With the US and China embroiled in an on/off trade war the impact on global economic growth makes investment markets nervous. When there are tit-for-tat trade war threats there are clear winners and losers from an investment perspective (both on a sector level and an asset level). This stress test focuses on May 2019 when Donald Trump unexpectedly escalated the trade war which shook investment markets. This stress test looks at how a fund might underperform or outperform its peers from the same sector if the US-China trade war reignites/escalates or relations between the two superpowers sour."]
[]
[null,null,"Global pandemic / depression"]
[null,null,"The coronavirus pandemic of 2020 abruptly brought to a halt one of the longest bull markets in history. The pandemic sparked the fastest bear market on record with most major stock market indices falling 30-40% in a matter of weeks. Investment markets and investors' portfolios were placed under the greatest strain in decades. But it is the impact on economic growth and corporate profits as well as the possibility of a recession turning into a deep depression that this scenario also stress tests. This stress test looks at how a fund might underperform or outperform its peers from the same sector if a pandemic hits, or if we encounter an unexpected slump in economic growth of historic proportions."]
[]
[null,null,"Reflation / Value outperforms"]
[null,null,"Following the creation of a COVID-19 vaccine and the implementation of a vaccination programme in Europe, the US and the UK, economic growth rebounded strongly in 2021. The US Federal Reserve and other central banks were initially cautious about raising interest rates and removing the monetary stimulus that supported economic growth during the pandemic. Early signs of rising prices, and a lack of central bank intervention, caused investment markets to rapidly price in a significant rise in future inflation resulting in a large disparity in performance between different asset classes and investment funds. We saw a significant rotation out of growth stocks into value/cyclical stocks. The reflation/value scenario is a good test of what would happen during a period of strong economic growth and rising inflation, but also which funds would fare better in an environment where value outperforms growth."]
[]
[null,null,"Recession / aggressive Fed tightening"]
[null,null,"In the summer of 2022 the US Federal Reserve (the Fed) and other central banks continued to aggressively tighten monetary policy (i.e. raising interest rate) to try and control multi-decade high inflation. However investors started to become worried that such an aggressive policy stance would tip the US and other economies into a recession, given that there were already signs that high inflation was impacting consumer and business spending. In June/July 2022 bond markets began rapidly pricing in a recession and investors started rotating into defensive equity sectors. This is a good test to see how a fund may react versus its peers if the market suddenly starts pricing in a potential recession or how a fund may fare if we enter a recession."]
[]
[null,null,"Banking crisis"]
[null,null,"In March of 2023 the US Federal Reserve (the Fed) and other central banks had been aggressively raising interest rates for more than a year. However, this caused stress in regional US banks which were sitting on unrealised bond portfolio losses that were meant to ensure that they could meet large-scale customer withdrawals. After Silicon Valley Bank failed (which was the largest US banking failure since the 2008 financial crisis) it sparked a series of bank runs. The contagion spread to the UK and Europe where UBS was sanctioned to buy Credit Suisse in a rescue bid. This is a good test to see how a fund may react versus its peers if there is a banking crisis."]
[]
[null,null,"How to use the stress tool"]
[null,null,"Simply select the funds in your portfolio by clicking on the arrows that appear when you select one of the greyed out cells in column 'a' in the \"TOOL\" tab below."]
[]
[null,null,"If you choose a fund such as Fundsmith Equity you will see that it is in the Global sector. That means all the star ratings for each factor are in relation to the fund's global sector peers. To help scan across quickly the cells change colour with green being awarded to 5 stars and red for a 1 star. For numbers in between the colour ranges between the two."]
[]
[null,null,"So you are looking for cells to be as green as possible. That would indicate that the fund passes the stress test versus its peer group. In the final column is an average score across all factors so giving a fund a star rating out of 5 for its sector."]
[]
[null,null,"The tool can take up to 20 funds and then give your portfolio an overall stress test rating out of 5. "]
[]
[]
[]
[null,null,"The material in any email, the MoneytotheMasses.com website, associated pages / channels / accounts and any other correspondence are for general information only and do not constitute investment, tax, legal or other form of advice. You should not rely on this information to make (or refrain from making) any decisions. Always obtain independent, professional advice for your own particular situation. See full Terms & Conditions, Privacy Policy and Disclaimer. Neither MoneytotheMasses.com or 80-20 Investor nor its content providers are responsible for any damages or losses arising from any use of this information. Past performance is no guarantee of future results. Funds invest in shares, bonds, and other financial instruments and are by their nature speculative and can be volatile. You should never invest more than you can safely afford to lose. The value of your investment can go down as well as up so you may get back less than you originally invested. Information provided by MoneytotheMasses.com and 80-20 Investor is for general information only and not intended to be relied upon by readers in making (or not making) specific investment decisions. Appropriate independent advice should be obtained before making any such decisions. Leadenhall Learning (owner of MoneytotheMasses.com and 80-20 Investor) and its staff do not accept liability for any loss suffered by readers as a result of any such decisions. The tables and graphs are derived from data supplied by Trustnet. All rights Reserved."]

{"sheet":"Tool","index":1,"n_rows":40,"n_cols":12,"rows_kept":40,"cut":false,"hidden":false,"merged":[[0,5,0,9]]}
[null,null,null,null,null,"Scenarios (versus their peers from the same sector)"]
["Select Fund","Sector","Sharpe ratio","Sortino Ratio","Volatility","Trade war escalation","Pandemic / depression","Reflation / Value outperforms growth","Recession /Aggressive Fed","Banking crisis","Average stars"]
["Fundsmith Equity ",{"$f":"IF(A3=\"\",\"\",VLOOKUP($A3,Funds!$A$1:$I$2154,2,0))","v":"Global"},{"$f":"IF(A3=\"\",\"\",6-VLOOKUP($A3,Funds!$A$1:$J$2154,3,0))","v":5},{"$f":"IF(A3=\"\",\"\",6-VLOOKUP($A3,Funds!$A$1:$J$2154,4,0))","v":5},{"$f":"IF(A3=\"\",\"\",6-VLOOKUP($A3,Funds!$A$1:$J$2154,5,0))","v":4},{"$f":"IF(A3=\"\",\"\",6-VLOOKUP($A3,Funds!$A$1:$J$2154,6,0))","v":5},{"$f":"IF(A3=\"\",\"\",6-VLOOKUP($A3,Funds!$A$1:$J$2154,7,0))","v":5},{"$f":"IF(A3=\"\",\"\",6-VLOOKUP($A3,Funds!$A$1:$J$2154,8,0))","v":2},{"$f":"IF(A3=\"\",\"\",6-VLOOKUP($A3,Funds!$A$1:$J$2154,9,0))","v":5},{"$f":"IF(A3=\"\",\"\",6-VLOOKUP($A3,Funds!$A$1:$J$2154,10,0))","v":5},{"$f":"IF(A3=\"\",\"\",AVERAGEIF(C3:J3,\"<6\",C3:J3))","v":4.5}," "]
[null,{"$f":"IF(A4=\"\",\"\",VLOOKUP($A4,Funds!$A$1:$I$2154,2,0))","v":""},{"$f":"IF(A4=\"\",\"\",6-VLOOKUP($A4,Funds!$A$1:$J$2154,3,0))","v":""},{"$f":"IF(A4=\"\",\"\",6-VLOOKUP($A4,Funds!$A$1:$J$2154,4,0))","v":""},{"$f":"IF(A4=\"\",\"\",6-VLOOKUP($A4,Funds!$A$1:$J$2154,5,0))","v":""},{"$f":"IF(A4=\"\",\"\",6-VLOOKUP($A4,Funds!$A$1:$J$2154,6,0))","v":""},{"$f":"IF(A4=\"\",\"\",6-VLOOKUP($A4,Funds!$A$1:$J$2154,7,0))","v":""},{"$f":"IF(A4=\"\",\"\",6-VLOOKUP($A4,Funds!$A$1:$J$2154,8,0))","v":""},{"$f":"IF(A4=\"\",\"\",6-VLOOKUP($A4,Funds!$A$1:$J$2154,9,0))","v":""},{"$f":"IF(A4=\"\",\"\",6-VLOOKUP($A4,Funds!$A$1:$J$2154,10,0))","v":""},{"$f":"IF(A4=\"\",\"\",AVERAGEIF(C4:J4,\"<6\",C4:J4))","v":""}]
[null,{"$f":"IF(A5=\"\",\"\",VLOOKUP($A5,Funds!$A$1:$I$2154,2,0))","v":""},{"$f":"IF(A5=\"\",\"\",6-VLOOKUP($A5,Funds!$A$1:$J$2154,3,0))","v":""},{"$f":"IF(A5=\"\",\"\",6-VLOOKUP($A5,Funds!$A$1:$J$2154,4,0))","v":""},{"$f":"IF(A5=\"\",\"\",6-VLOOKUP($A5,Funds!$A$1:$J$2154,5,0))","v":""},{"$f":"IF(A5=\"\",\"\",6-VLOOKUP($A5,Funds!$A$1:$J$2154,6,0))","v":""},{"$f":"IF(A5=\"\",\"\",6-VLOOKUP($A5,Funds!$A$1:$J$2154,7,0))","v":""},{"$f":"IF(A5=\"\",\"\",6-VLOOKUP($A5,Funds!$A$1:$J$2154,8,0))","v":""},{"$f":"IF(A5=\"\",\"\",6-VLOOKUP($A5,Funds!$A$1:$J$2154,9,0))","v":""},{"$f":"IF(A5=\"\",\"\",6-VLOOKUP($A5,Funds!$A$1:$J$2154,10,0))","v":""},""]
[null,{"$f":"IF(A6=\"\",\"\",VLOOKUP($A6,Funds!$A$1:$I$2154,2,0))","v":""},{"$f":"IF(A6=\"\",\"\",6-VLOOKUP($A6,Funds!$A$1:$J$2154,3,0))","v":""},{"$f":"IF(A6=\"\",\"\",6-VLOOKUP($A6,Funds!$A$1:$J$2154,4,0))","v":""},{"$f":"IF(A6=\"\",\"\",6-VLOOKUP($A6,Funds!$A$1:$J$2154,5,0))","v":""},{"$f":"IF(A6=\"\",\"\",6-VLOOKUP($A6,Funds!$A$1:$J$2154,6,0))","v":""},{"$f":"IF(A6=\"\",\"\",6-VLOOKUP($A6,Funds!$A$1:$J$2154,7,0))","v":""},{"$f":"IF(A6=\"\",\"\",6-VLOOKUP($A6,Funds!$A$1:$J$2154,8,0))","v":""},{"$f":"IF(A6=\"\",\"\",6-VLOOKUP($A6,Funds!$A$1:$J$2154,9,0))","v":""},{"$f":"IF(A6=\"\",\"\",6-VLOOKUP($A6,Funds!$A$1:$J$2154,10,0))","v":""},""]
[null,{"$f":"IF(A7=\"\",\"\",VLOOKUP($A7,Funds!$A$1:$I$2154,2,0))","v":""},{"$f":"IF(A7=\"\",\"\",6-VLOOKUP($A7,Funds!$A$1:$J$2154,3,0))","v":""},{"$f":"IF(A7=\"\",\"\",6-VLOOKUP($A7,Funds!$A$1:$J$2154,4,0))","v":""},{"$f":"IF(A7=\"\",\"\",6-VLOOKUP($A7,Funds!$A$1:$J$2154,5,0))","v":""},{"$f":"IF(A7=\"\",\"\",6-VLOOKUP($A7,Funds!$A$1:$J$2154,6,0))","v":""},{"$f":"IF(A7=\"\",\"\",6-VLOOKUP($A7,Funds!$A$1:$J$2154,7,0))","v":""},{"$f":"IF(A7=\"\",\"\",6-VLOOKUP($A7,Funds!$A$1:$J$2154,8,0))","v":""},{"$f":"IF(A7=\"\",\"\",6-VLOOKUP($A7,Funds!$A$1:$J$2154,9,0))","v":""},{"$f":"IF(A7=\"\",\"\",6-VLOOKUP($A7,Funds!$A$1:$J$2154,10,0))","v":""},""]
[null,{"$f":"IF(A8=\"\",\"\",VLOOKUP($A8,Funds!$A$1:$I$2154,2,0))","v":""},{"$f":"IF(A8=\"\",\"\",6-VLOOKUP($A8,Funds!$A$1:$J$2154,3,0))","v":""},{"$f":"IF(A8=\"\",\"\",6-VLOOKUP($A8,Funds!$A$1:$J$2154,4,0))","v":""},{"$f":"IF(A8=\"\",\"\",6-VLOOKUP($A8,Funds!$A$1:$J$2154,5,0))","v":""},{"$f":"IF(A8=\"\",\"\",6-VLOOKUP($A8,Funds!$A$1:$J$2154,6,0))","v":""},{"$f":"IF(A8=\"\",\"\",6-VLOOKUP($A8,Funds!$A$1:$J$2154,7,0))","v":""},{"$f":"IF(A8=\"\",\"\",6-VLOOKUP($A8,Funds!$A$1:$J$2154,8,0))","v":""},{"$f":"IF(A8=\"\",\"\",6-VLOOKUP($A8,Funds!$A$1:$J$2154,9,0))","v":""},{"$f":"IF(A8=\"\",\"\",6-VLOOKUP($A8,Funds!$A$1:$J$2154,10,0))","v":""},""]
[null,{"$f":"IF(A9=\"\",\"\",VLOOKUP($A9,Funds!$A$1:$I$2154,2,0))","v":""},{"$f":"IF(A9=\"\",\"\",6-VLOOKUP($A9,Funds!$A$1:$J$2154,3,0))","v":""},{"$f":"IF(A9=\"\",\"\",6-VLOOKUP($A9,Funds!$A$1:$J$2154,4,0))","v":""},{"$f":"IF(A9=\"\",\"\",6-VLOOKUP($A9,Funds!$A$1:$J$2154,5,0))","v":""},{"$f":"IF(A9=\"\",\"\",6-VLOOKUP($A9,Funds!$A$1:$J$2154,6,0))","v":""},{"$f":"IF(A9=\"\",\"\",6-VLOOKUP($A9,Funds!$A$1:$J$2154,7,0))","v":""},{"$f":"IF(A9=\"\",\"\",6-VLOOKUP($A9,Funds!$A$1:$J$2154,8,0))","v":""},{"$f":"IF(A9=\"\",\"\",6-VLOOKUP($A9,Funds!$A$1:$J$2154,9,0))","v":""},{"$f":"IF(A9=\"\",\"\",6-VLOOKUP($A9,Funds!$A$1:$J$2154,10,0))","v":""},""]
[null,{"$f":"IF(A10=\"\",\"\",VLOOKUP($A10,Funds!$A$1:$I$2154,2,0))","v":""},{"$f":"IF(A10=\"\",\"\",6-VLOOKUP($A10,Funds!$A$1:$J$2154,3,0))","v":""},{"$f":"IF(A10=\"\",\"\",6-VLOOKUP($A10,Funds!$A$1:$J$2154,4,0))","v":""},{"$f":"IF(A10=\"\",\"\",6-VLOOKUP($A10,Funds!$A$1:$J$2154,5,0))","v":""},{"$f":"IF(A10=\"\",\"\",6-VLOOKUP($A10,Funds!$A$1:$J$2154,6,0))","v":""},{"$f":"IF(A10=\"\",\"\",6-VLOOKUP($A10,Funds!$A$1:$J$2154,7,0))","v":""},{"$f":"IF(A10=\"\",\"\",6-VLOOKUP($A10,Funds!$A$1:$J$2154,8,0))","v":""},{"$f":"IF(A10=\"\",\"\",6-VLOOKUP($A10,Funds!$A$1:$J$2154,9,0))","v":""},{"$f":"IF(A10=\"\",\"\",6-VLOOKUP($A10,Funds!$A$1:$J$2154,10,0))","v":""},""]
[null,{"$f":"IF(A11=\"\",\"\",VLOOKUP($A11,Funds!$A$1:$I$2154,2,0))","v":""},{"$f":"IF(A11=\"\",\"\",6-VLOOKUP($A11,Funds!$A$1:$J$2154,3,0))","v":""},{"$f":"IF(A11=\"\",\"\",6-VLOOKUP($A11,Funds!$A$1:$J$2154,4,0))","v":""},{"$f":"IF(A11=\"\",\"\",6-VLOOKUP($A11,Funds!$A$1:$J$2154,5,0))","v":""},{"$f":"IF(A11=\"\",\"\",6-VLOOKUP($A11,Funds!$A$1:$J$2154,6,0))","v":""},{"$f":"IF(A11=\"\",\"\",6-VLOOKUP($A11,Funds!$A$1:$J$2154,7,0))","v":""},{"$f":"IF(A11=\"\",\"\",6-VLOOKUP($A11,Funds!$A$1:$J$2154,8,0))","v":""},{"$f":"IF(A11=\"\",\"\",6-VLOOKUP($A11,Funds!$A$1:$J$2154,9,0))","v":""},{"$f":"IF(A11=\"\",\"\",6-VLOOKUP($A11,Funds!$A$1:$J$2154,10,0))","v":""},""]
[null,{"$f":"IF(A12=\"\",\"\",VLOOKUP($A12,Funds!$A$1:$I$2154,2,0))","v":""},{"$f":"IF(A12=\"\",\"\",6-VLOOKUP($A12,Funds!$A$1:$J$2154,3,0))","v":""},{"$f":"IF(A12=\"\",\"\",6-VLOOKUP($A12,Funds!$A$1:$J$2154,4,0))","v":""},{"$f":"IF(A12=\"\",\"\",6-VLOOKUP($A12,Funds!$A$1:$J$2154,5,0))","v":""},{"$f":"IF(A12=\"\",\"\",6-VLOOKUP($A12,Funds!$A$1:$J$2154,6,0))","v":""},{"$f":"IF(A12=\"\",\"\",6-VLOOKUP($A12,Funds!$A$1:$J$2154,7,0))","v":""},{"$f":"IF(A12=\"\",\"\",6-VLOOKUP($A12,Funds!$A$1:$J$2154,8,0))","v":""},{"$f":"IF(A12=\"\",\"\",6-VLOOKUP($A12,Funds!$A$1:$J$2154,9,0))","v":""},{"$f":"IF(A12=\"\",\"\",6-VLOOKUP($A12,Funds!$A$1:$J$2154,10,0))","v":""},""]
[null,{"$f":"IF(A13=\"\",\"\",VLOOKUP($A13,Funds!$A$1:$I$2154,2,0))","v":""},{"$f":"IF(A13=\"\",\"\",6-VLOOKUP($A13,Funds!$A$1:$J$2154,3,0))","v":""},{"$f":"IF(A13=\"\",\"\",6-VLOOKUP($A13,Funds!$A$1:$J$2154,4,0))","v":""},{"$f":"IF(A13=\"\",\"\",6-VLOOKUP($A13,Funds!$A$1:$J$2154,5,0))","v":""},{"$f":"IF(A13=\"\",\"\",6-VLOOKUP($A13,Funds!$A$1:$J$2154,6,0))","v":""},{"$f":"IF(A13=\"\",\"\",6-VLOOKUP($A13,Funds!$A$1:$J$2154,7,0))","v":""},{"$f":"IF(A13=\"\",\"\",6-VLOOKUP($A13,Funds!$A$1:$J$2154,8,0))","v":""},{"$f":"IF(A13=\"\",\"\",6-VLOOKUP($A13,Funds!$A$1:$J$2154,9,0))","v":""},{"$f":"IF(A13=\"\",\"\",6-VLOOKUP($A13,Funds!$A$1:$J$2154,10,0))","v":""},""]
[null,{"$f":"IF(A14=\"\",\"\",VLOOKUP($A14,Funds!$A$1:$I$2154,2,0))","v":""},{"$f":"IF(A14=\"\",\"\",6-VLOOKUP($A14,Funds!$A$1:$J$2154,3,0))","v":""},{"$f":"IF(A14=\"\",\"\",6-VLOOKUP($A14,Funds!$A$1:$J$2154,4,0))","v":""},{"$f":"IF(A14=\"\",\"\",6-VLOOKUP($A14,Funds!$A$1:$J$2154,5,0))","v":""},{"$f":"IF(A14=\"\",\"\",6-VLOOKUP($A14,Funds!$A$1:$J$2154,6,0))","v":""},{"$f":"IF(A14=\"\",\"\",6-VLOOKUP($A14,Funds!$A$1:$J$2154,7,0))","v":""},{"$f":"IF(A14=\"\",\"\",6-VLOOKUP($A14,Funds!$A$1:$J$2154,8,0))","v":""},{"$f":"IF(A14=\"\",\"\",6-VLOOKUP($A14,Funds!$A$1:$J$2154,9,0))","v":""},{"$f":"IF(A14=\"\",\"\",6-VLOOKUP($A14,Funds!$A$1:$J$2154,10,0))","v":""},""]
[null,{"$f":"IF(A15=\"\",\"\",VLOOKUP($A15,Funds!$A$1:$I$2154,2,0))","v":""},{"$f":"IF(A15=\"\",\"\",6-VLOOKUP($A15,Funds!$A$1:$J$2154,3,0))","v":""},{"$f":"IF(A15=\"\",\"\",6-VLOOKUP($A15,Funds!$A$1:$J$2154,4,0))","v":""},{"$f":"IF(A15=\"\",\"\",6-VLOOKUP($A15,Funds!$A$1:$J$2154,5,0))","v":""},{"$f":"IF(A15=\"\",\"\",6-VLOOKUP($A15,Funds!$A$1:$J$2154,6,0))","v":""},{"$f":"IF(A15=\"\",\"\",6-VLOOKUP($A15,Funds!$A$1:$J$2154,7,0))","v":""},{"$f":"IF(A15=\"\",\"\",6-VLOOKUP($A15,Funds!$A$1:$J$2154,8,0))","v":""},{"$f":"IF(A15=\"\",\"\",6-VLOOKUP($A15,Funds!$A$1:$J$2154,9,0))","v":""},{"$f":"IF(A15=\"\",\"\",6-VLOOKUP($A15,Funds!$A$1:$J$2154,10,0))","v":""},""]
[null,{"$f":"IF(A16=\"\",\"\",VLOOKUP($A16,Funds!$A$1:$I$2154,2,0))","v":""},{"$f":"IF(A16=\"\",\"\",6-VLOOKUP($A16,Funds!$A$1:$J$2154,3,0))","v":""},{"$f":"IF(A16=\"\",\"\",6-VLOOKUP($A16,Funds!$A$1:$J$2154,4,0))","v":""},{"$f":"IF(A16=\"\",\"\",6-VLOOKUP($A16,Funds!$A$1:$J$2154,5,0))","v":""},{"$f":"IF(A16=\"\",\"\",6-VLOOKUP($A16,Funds!$A$1:$J$2154,6,0))","v":""},{"$f":"IF(A16=\"\",\"\",6-VLOOKUP($A16,Funds!$A$1:$J$2154,7,0))","v":""},{"$f":"IF(A16=\"\",\"\",6-VLOOKUP($A16,Funds!$A$1:$J$2154,8,0))","v":""},{"$f":"IF(A16=\"\",\"\",6-VLOOKUP($A16,Funds!$A$1:$J$2154,9,0))","v":""},{"$f":"IF(A16=\"\",\"\",6-VLOOKUP($A16,Funds!$A$1:$J$2154,10,0))","v":""},""]
[null,{"$f":"IF(A17=\"\",\"\",VLOOKUP($A17,Funds!$A$1:$I$2154,2,0))","v":""},{"$f":"IF(A17=\"\",\"\",6-VLOOKUP($A17,Funds!$A$1:$J$2154,3,0))","v":""},{"$f":"IF(A17=\"\",\"\",6-VLOOKUP($A17,Funds!$A$1:$J$2154,4,0))","v":""},{"$f":"IF(A17=\"\",\"\",6-VLOOKUP($A17,Funds!$A$1:$J$2154,5,0))","v":""},{"$f":"IF(A17=\"\",\"\",6-VLOOKUP($A17,Funds!$A$1:$J$2154,6,0))","v":""},{"$f":"IF(A17=\"\",\"\",6-VLOOKUP($A17,Funds!$A$1:$J$2154,7,0))","v":""},{"$f":"IF(A17=\"\",\"\",6-VLOOKUP($A17,Funds!$A$1:$J$2154,8,0))","v":""},{"$f":"IF(A17=\"\",\"\",6-VLOOKUP($A17,Funds!$A$1:$J$2154,9,0))","v":""},{"$f":"IF(A17=\"\",\"\",6-VLOOKUP($A17,Funds!$A$1:$J$2154,10,0))","v":""},""]
[null,{"$f":"IF(A18=\"\",\"\",VLOOKUP($A18,Funds!$A$1:$I$2154,2,0))","v":""},{"$f":"IF(A18=\"\",\"\",6-VLOOKUP($A18,Funds!$A$1:$J$2154,3,0))","v":""},{"$f":"IF(A18=\"\",\"\",6-VLOOKUP($A18,Funds!$A$1:$J$2154,4,0))","v":""},{"$f":"IF(A18=\"\",\"\",6-VLOOKUP($A18,Funds!$A$1:$J$2154,5,0))","v":""},{"$f":"IF(A18=\"\",\"\",6-VLOOKUP($A18,Funds!$A$1:$J$2154,6,0))","v":""},{"$f":"IF(A18=\"\",\"\",6-VLOOKUP($A18,Funds!$A$1:$J$2154,7,0))","v":""},{"$f":"IF(A18=\"\",\"\",6-VLOOKUP($A18,Funds!$A$1:$J$2154,8,0))","v":""},{"$f":"IF(A18=\"\",\"\",6-VLOOKUP($A18,Funds!$A$1:$J$2154,9,0))","v":""},{"$f":"IF(A18=\"\",\"\",6-VLOOKUP($A18,Funds!$A$1:$J$2154,10,0))","v":""},""]
[null,{"$f":"IF(A19=\"\",\"\",VLOOKUP($A19,Funds!$A$1:$I$2154,2,0))","v":""},{"$f":"IF(A19=\"\",\"\",6-VLOOKUP($A19,Funds!$A$1:$J$2154,3,0))","v":""},{"$f":"IF(A19=\"\",\"\",6-VLOOKUP($A19,Funds!$A$1:$J$2154,4,0))","v":""},{"$f":"IF(A19=\"\",\"\",6-VLOOKUP($A19,Funds!$A$1:$J$2154,5,0))","v":""},{"$f":"IF(A19=\"\",\"\",6-VLOOKUP($A19,Funds!$A$1:$J$2154,6,0))","v":""},{"$f":"IF(A19=\"\",\"\",6-VLOOKUP($A19,Funds!$A$1:$J$2154,7,0))","v":""},{"$f":"IF(A19=\"\",\"\",6-VLOOKUP($A19,Funds!$A$1:$J$2154,8,0))","v":""},{"$f":"IF(A19=\"\",\"\",6-VLOOKUP($A19,Funds!$A$1:$J$2154,9,0))","v":""},{"$f":"IF(A19=\"\",\"\",6-VLOOKUP($A19,Funds!$A$1:$J$2154,10,0))","v":""},""]
[null,{"$f":"IF(A20=\"\",\"\",VLOOKUP($A20,Funds!$A$1:$I$2154,2,0))","v":""},{"$f":"IF(A20=\"\",\"\",6-VLOOKUP($A20,Funds!$A$1:$J$2154,3,0))","v":""},{"$f":"IF(A20=\"\",\"\",6-VLOOKUP($A20,Funds!$A$1:$J$2154,4,0))","v":""},{"$f":"IF(A20=\"\",\"\",6-VLOOKUP($A20,Funds!$A$1:$J$2154,5,0))","v":""},{"$f":"IF(A20=\"\",\"\",6-VLOOKUP($A20,Funds!$A$1:$J$2154,6,0))","v":""},{"$f":"IF(A20=\"\",\"\",6-VLOOKUP($A20,Funds!$A$1:$J$2154,7,0))","v":""},{"$f":"IF(A20=\"\",\"\",6-VLOOKUP($A20,Funds!$A$1:$J$2154,8,0))","v":""},{"$f":"IF(A20=\"\",\"\",6-VLOOKUP($A20,Funds!$A$1:$J$2154,9,0))","v":""},{"$f":"IF(A20=\"\",\"\",6-VLOOKUP($A20,Funds!$A$1:$J$2154,10,0))","v":""},""]
[null,{"$f":"IF(A21=\"\",\"\",VLOOKUP($A21,Funds!$A$1:$I$2154,2,0))","v":""},{"$f":"IF(A21=\"\",\"\",6-VLOOKUP($A21,Funds!$A$1:$J$2154,3,0))","v":""},{"$f":"IF(A21=\"\",\"\",6-VLOOKUP($A21,Funds!$A$1:$J$2154,4,0))","v":""},{"$f":"IF(A21=\"\",\"\",6-VLOOKUP($A21,Funds!$A$1:$J$2154,5,0))","v":""},{"$f":"IF(A21=\"\",\"\",6-VLOOKUP($A21,Funds!$A$1:$J$2154,6,0))","v":""},{"$f":"IF(A21=\"\",\"\",6-VLOOKUP($A21,Funds!$A$1:$J$2154,7,0))","v":""},{"$f":"IF(A21=\"\",\"\",6-VLOOKUP($A21,Funds!$A$1:$J$2154,8,0))","v":""},{"$f":"IF(A21=\"\",\"\",6-VLOOKUP($A21,Funds!$A$1:$J$2154,9,0))","v":""},{"$f":"IF(A21=\"\",\"\",6-VLOOKUP($A21,Funds!$A$1:$J$2154,10,0))","v":""},""]
[null,{"$f":"IF(A22=\"\",\"\",VLOOKUP($A22,Funds!$A$1:$I$2154,2,0))","v":""},{"$f":"IF(A22=\"\",\"\",6-VLOOKUP($A22,Funds!$A$1:$J$2154,3,0))","v":""},{"$f":"IF(A22=\"\",\"\",6-VLOOKUP($A22,Funds!$A$1:$J$2154,4,0))","v":""},{"$f":"IF(A22=\"\",\"\",6-VLOOKUP($A22,Funds!$A$1:$J$2154,5,0))","v":""},{"$f":"IF(A22=\"\",\"\",6-VLOOKUP($A22,Funds!$A$1:$J$2154,6,0))","v":""},{"$f":"IF(A22=\"\",\"\",6-VLOOKUP($A22,Funds!$A$1:$J$2154,7,0))","v":""},{"$f":"IF(A22=\"\",\"\",6-VLOOKUP($A22,Funds!$A$1:$J$2154,8,0))","v":""},{"$f":"IF(A22=\"\",\"\",6-VLOOKUP($A22,Funds!$A$1:$J$2154,9,0))","v":""},{"$f":"IF(A22=\"\",\"\",6-VLOOKUP($A22,Funds!$A$1:$J$2154,10,0))","v":""},""]
[null,null,null,null,null,null,null,null,null,"Portfolio average",{"$f":"IFERROR(AVERAGE(K3:K22),\"\")","v":4.5}]
[]
[]
[]
[]
[]
[]
[]
[]
[]
[]
[]
[]
[]
[]
[]
[]
[null,"This tool belongs to MoneytotheMasses.com and you are permitted to use it as a paid subscriber of the 80-20 Investor service."]

{"sheet":"Funds","index":2,"n_rows":1979,"n_cols":10,"rows_kept":1979,"cut":false,"hidden":false,"merged":[]}
["Name","Member Of","Rank Qnl","Rank Qnl","Rank Qnl","Rank Qnl","Rank Qnl","Rank Qnl","Rank Qnl","Rank Qnl"]
["7IM AAP Adventurous ","Flexible Investment",2,2,2,4,4,2,1,5]
["7IM AAP Balanced ","Mixed Investment 20-60% Shares",2,4,2,4,3,2,2,5]
["7IM AAP Income ","Mixed Investment 0-35% Shares ",3,4,3,3,5,3,5,4]
["7IM AAP Moderately Adventurous ","Mixed Investment 40-85% Shares",1,3,1,4,2,2,2,5]
["7IM AAP Moderately Cautious ","Mixed Investment 20-60% Shares",3,5,2,2,1,4,2,4]
["7IM Absolute Return Portfolio ","Targeted Absolute Return ",2,4,1,1,2,2,4,2]
["7IM Adventurous ","Flexible Investment",2,2,3,5,4,2,1,5]
["7IM Balanced ","Mixed Investment 20-60% Shares",2,2,2,5,3,2,4,5]
["7IM Cautious ","Mixed Investment 0-35% Shares ",3,5,2,2,1,4,2,4]
["7IM Income Portfolio","Mixed Investment 0-35% Shares ",2,5,2,5,4,4,5,2]
["7IM Moderately Adventurous ","Mixed Investment 40-85% Shares",1,2,2,4,3,2,3,5]
["7IM Moderately Cautious ","Mixed Investment 20-60% Shares",3,4,2,2,1,4,4,3]
["7IM Personal Injury ","Mixed Investment 0-35% Shares ",3,5,2,3,1,4,2,4]
["7IM Real Return ","Targeted Absolute Return ",2,2,2,3,3,3,5,4]
["7IM Select Adventurous ","Mixed Investment 40-85% Shares",1,2,2,null,3,1,1,5]
["7IM Select Balanced ","Mixed Investment 20-60% Shares",1,2,2,null,2,2,3,5]
["7IM Select Moderately Adventurous ","Mixed Investment 40-85% Shares",1,3,1,null,2,1,3,5]
["7IM Select Moderately Cautious ","Mixed Investment 20-60% Shares",2,5,1,null,1,2,3,3]
["7IM Sustainable Balance ","Mixed Investment 20-60% Shares",5,3,5,2,3,4,1,3]
["Aberdeen LF abrdn Income Focus ","UK Equity Income ",4,4,4,5,4,5,3,3]
["Aberforth UK Small Companies ","UK Smaller Companies ",1,1,3,4,5,1,5,4]
["abrdn (AAM) Sterling Government Bond ","UK Gilts ",3,3,3,1,2,4,2,2]
["abrdn (AAM) UK Smaller Companies ","UK Smaller Companies ",5,4,5,1,3,5,1,1]
["abrdn AAA Bond ","Sterling Corporate Bond ",2,4,1,1,1,2,1,1]
["abrdn American Equity ","North America ",5,5,1,1,2,3,4,4]
["abrdn American Equity Enhanced Index ","North America ",2,4,1,4,3,3,3,2]
["abrdn American Income Equity ","North America ",1,5,1,2,2,2,2,4]
["abrdn American Unconstrained Equity ","North America ",4,5,1,1,2,2,3,5]
["abrdn Asia Pacific Equity ","Asia Pacific Excluding Japan ",3,3,3,2,2,5,2,4]
["abrdn Asia Pacific Equity Enhanced Index ","Asia Pacific Excluding Japan ",3,3,2,4,3,3,3,3]
["abrdn Asian Pacific Growth Equity ","Asia Pacific Excluding Japan ",4,4,3,3,2,5,2,5]
["abrdn Balanced Bridge ","Mixed Investment 40-85% Shares",2,4,1,2,1,5,2,1]
["abrdn Bridge ","Flexible Investment",4,4,4,2,2,5,1,2]
["abrdn Diversified Growth ","Specialist ",3,4,2,4,4,3,3,3]
["abrdn Diversified Income ","Mixed Investment 20-60% Shares",3,2,3,4,4,4,1,2]
["abrdn Dynamic Distribution ","Mixed Investment 20-60% Shares",2,3,3,5,5,4,4,4]
["abrdn Dynamic Multi Asset Growth ","Specialist ",4,3,3,5,4,4,1,2]
["abrdn Emerging Markets Equity ","Global Emerging Markets ",3,3,2,2,4,5,3,2]
["abrdn Emerging Markets Equity Enhanced Index","Global Emerging Markets ",3,3,2,4,2,2,4,2]
["abrdn Emerging Markets Income Equity ","Global Emerging Markets ",1,1,5,5,3,2,5,3]
["abrdn Emerging Markets Opportunities Equity ","Global Emerging Markets ",1,1,5,5,3,2,4,4]
["abrdn Ethical Corporate Bond ","Sterling Corporate Bond ",5,5,5,2,4,3,3,4]
["abrdn Europe ex UK Equity ","Europe Excluding UK ",null,null,null,null,null,null,null,1]
["abrdn Europe ex UK Ethical Equity ","Europe Excluding UK ",5,5,5,3,3,4,1,2]
["abrdn Europe ex UK Income Equity ","Europe Excluding UK ",1,1,1,4,3,2,3,3]
["abrdn Europe ex UK Smaller Companies ","European Smaller Companies",3,3,4,5,3,2,2,4]
["abrdn European Equity Enhanced Index ","Europe Excluding UK ",3,3,3,4,4,2,3,3]
["abrdn European Real Estate Share ","Property Other ",5,2,5,1,2,5,5,3]
["abrdn European Smaller Companies ","European Smaller Companies",2,2,5,1,3,4,1,2]
["abrdn Falcon ","Global",3,3,3,3,2,4,2,2]
["abrdn Global Absolute Return Strategies ","Targeted Absolute Return ",5,5,2,4,2,5,1,3]
["abrdn Global Balanced Growth ","Mixed Investment 40-85% Shares",4,4,3,4,3,4,2,2]
["abrdn Global Corporate Bond Tracker ","Global Bonds ",4,3,4,4,5,4,2,2]
["abrdn Global Equity ","Global",1,1,3,3,3,4,1,1]
["abrdn Global Focused Equity ","Global",2,2,2,2,4,5,3,3]
["abrdn Global Income Equity ","Global Equity Income ",4,4,2,1,4,5,3,3]
["abrdn Global Inflation Linked Bond ","Global Bonds ",5,4,5,2,3,3,4,1]
["abrdn Global Real Estate ","Property Other ",1,5,1,3,1,4,3,1]
["abrdn Global Real Estate Share ","Property Other ",5,2,5,4,5,1,1,3]
["abrdn Global Smaller Companies ","Global",5,3,5,5,5,5,4,5]
["abrdn Global Sustainable and Responsible Investment Equity ","Global",4,5,4,3,3,4,2,2]
["abrdn High Yield Bond ","Sterling High Yield ",1,1,4,3,3,2,4,3]
["abrdn Investment Grade Corporate Bond ","Sterling Corporate Bond ",5,3,4,2,4,3,4,3]
["abrdn Japan Equity Enhanced Index ","Japan ",3,2,3,3,4,3,3,3]
["abrdn Japanese Equity ","Japan ",5,5,4,3,1,5,1,1]
["abrdn Multi Asset ","Mixed Investment 40-85% Shares",5,4,4,2,4,4,1,3]
["abrdn Multi Manager Balanced Managed Portfolio ","Mixed Investment 40-85% Shares",1,1,2,2,2,2,2,4]
["abrdn Multi Manager Cautious Managed Portfolio ","Mixed Investment 20-60% Shares",1,1,3,2,2,3,2,4]
["abrdn Multi Manager Equity Managed Portfolio ","Flexible Investment",1,1,3,3,3,2,2,4]
["abrdn Multi Manager Multi Asset Distribution Portfolio ","Mixed Investment 20-60% Shares",2,1,5,5,4,1,4,5]
["abrdn Multi-Asset Climate Solutions ","Mixed Investment 40-85% Shares",5,3,5,null,null,5,2,2]
["abrdn Multi-Manager Diversity ","Mixed Investment 20-60% Shares",1,3,1,1,1,4,1,1]
["abrdn Phoenix ","Mixed Investment 20-60% Shares",5,5,3,2,1,5,3,2]
["abrdn Short Dated Corporate Bond ","Sterling Corporate Bond ",1,3,1,3,1,1,2,3]
["abrdn Short Duration Global Inflation-Linked Bond ","Global Bonds ",3,2,4,4,3,2,2,2]
["abrdn Sterling Bond ","Sterling Strategic Bond ",5,5,5,1,1,5,1,1]
["abrdn Sterling Corporate Bond ","Sterling Corporate Bond ",5,4,5,3,4,2,4,5]
["abrdn Sterling Inflation-Linked Bond ","UK Index Linked Gilts ",5,4,5,3,5,4,4,2]
["abrdn Sterling Long Dated Government Bond ","UK Gilts ",5,5,5,1,1,5,3,1]
["abrdn Sterling Short Dated Corporate Bond ","Sterling Corporate Bond ",1,2,1,5,1,1,2,5]
["abrdn Sterling Short Term Government Bond ","UK Gilts ",1,1,1,5,5,1,4,5]
["abrdn Strategic Bond ","Sterling Strategic Bond ",4,3,3,4,3,2,3,4]
["abrdn Strategic Investment Allocation ","Specialist ",5,5,5,3,1,5,3,1]
["abrdn UK All Share Tracker ","UK All Companies",2,2,2,3,2,3,2,3]
["abrdn UK Equity ","UK All Companies",3,3,4,2,1,5,1,1]
["abrdn UK Equity Enhanced Index ","UK All Companies",2,3,1,3,3,3,2,4]
["abrdn UK Equity Index Managed ","UK All Companies",1,1,1,3,1,2,1,3]
["abrdn UK Ethical Equity ","UK All Companies",4,4,5,4,5,4,4,3]
["abrdn UK Government Bond ","UK Gilts ",3,2,3,1,1,4,1,2]
["abrdn UK High Income Equity ","UK Equity Income ",4,4,2,5,4,2,4,5]
["abrdn UK Income Equity ","UK Equity Income ",4,4,2,1,1,5,1,1]
["abrdn UK Income Unconstrained Equity ","UK Equity Income ",5,5,3,5,5,3,5,5]
["abrdn UK Mid Cap Equity ","UK All Companies",5,5,5,1,4,5,5,2]
["abrdn UK Real Estate Share ","Property Other ",5,1,5,5,4,3,5,3]
["abrdn UK Smaller Companies ","UK Smaller Companies ",5,4,5,2,2,5,2,1]
["abrdn UK Sustainable and Responsible Investment Equity ","UK All Companies",4,4,4,2,3,5,1,1]
["abrdn UK Value Equity ","UK All Companies",4,3,5,5,5,1,5,5]
["abrdn World Equity Enhanced Index ","Global",2,2,2,4,4,2,3,3]
["abrdn World Income Equity ","Global Equity Income ",3,3,1,2,4,3,5,3]
["Activus Wealth Ltd MI Activus Investment ","Targeted Absolute Return ",5,4,5,2,5,5,5,5]
["Activus Wealth Ltd MI Activus Opportunity ","Targeted Absolute Return ",5,4,5,1,5,5,5,5]
["Allianz Best Styles Global AC Equity ","Global",2,2,2,3,4,2,4,3]
["Allianz China A-Shares Equity ","China/Greater China ",5,5,1,null,null,5,2,1]
["Allianz Continental European ","Europe Excluding UK ",5,5,5,5,2,5,3,1]
["Allianz Emerging Markets Equity ","Global Emerging Markets ",4,5,3,4,1,4,4,2]
["Allianz Strategic Bond ","Sterling Strategic Bond ",4,5,3,2,1,5,1,1]
["Allianz Thematica ","Global",null,null,null,null,null,null,4,5]
["Allianz Total Return Asian Equity ","Asia Pacific Excluding Japan ",5,3,4,5,1,5,3,2]
["Allianz UK Listed Equity Income ","UK Equity Income ",3,3,4,4,4,1,5,4]
["Allianz UK Listed Opportunities ","UK All Companies",4,3,3,4,5,1,5,5]
["Anpero Capital Limited The Wine Investment ","Specialist ",null,null,null,3,1,2,2]
["Artemis European Sustainable Growth ","Europe Excluding UK ",4,4,4,5,2,4,1,2]
["Artemis Global Income ","Global Equity Income ",5,4,4,5,5,2,5,5]
["Artemis Global Select ","Global",4,5,1,2,1,4,2,3]
["Artemis High Income ","Sterling Strategic Bond ",3,1,4,5,5,1,5,5]
["Artemis Income ","UK Equity Income ",3,3,4,2,4,3,2,3]
["Artemis Monthly Distribution ","Mixed Investment 20-60% Shares",4,1,4,4,5,1,5,5]
["Artemis SmartGARP European Equity ","Europe Excluding UK ",1,1,4,3,5,1,5,5]
["Artemis SmartGARP Global Emerging Markets Equity ","Global Emerging Markets ",1,2,1,2,2,1,5,2]
["Artemis SmartGARP Global Equity ","Global",3,4,1,5,5,1,4,5]
["Artemis SmartGARP UK Equity ","UK All Companies",1,1,3,5,5,1,5,5]
["Artemis Strategic Assets ","Flexible Investment",1,1,1,5,4,1,5,2]
["Artemis Strategic Bond ","Sterling Strategic Bond ",3,2,3,2,2,2,3,4]
["Artemis UK Select ","UK All Companies",3,2,5,5,5,1,5,5]
["Artemis UK Smaller Companies ","UK Smaller Companies ",1,1,2,1,5,1,1,4]
["Artemis UK Special Situations ","UK All Companies",3,2,5,5,5,1,5,5]
["Artemis US Absolute Return ","Targeted Absolute Return ",1,5,1,2,1,2,1,1]
["Artemis US Extended Alpha ","North America ",3,5,2,1,1,2,5,4]
["Artemis US Select ","North America ",5,5,2,1,3,2,3,4]
["Artemis US Smaller Companies ","North American Smaller Companies",5,5,5,1,3,3,5,5]
["Aviva Inv AI Stewardship International Equity Feeder ","Global",4,5,3,null,null,null,1,1]
["Aviva Inv Aviva Investors Stewardship Fixed Interest Feeder ","Sterling Strategic Bond ",5,3,4,null,null,null,2,1]
["Aviva Inv Aviva Investors Stewardship UK Equity Feeder ","UK All Companies",3,3,2,null,null,null,1,3]
["Aviva Inv Aviva Investors Stewardship UK Equity Income Feeder ","UK Equity Income ",4,5,2,null,null,null,1,1]
["Aviva Inv Climate Transition Global Equity ","Global",null,null,null,null,null,null,null,2]
["Aviva Inv Continental European Equity ","Europe Excluding UK ",4,4,3,5,4,3,3,2]
["Aviva Inv Corporate Bond ","Sterling Corporate Bond ",3,4,3,2,2,4,3,2]
["Aviva Inv Distribution ","Mixed Investment 20-60% Shares",5,2,5,4,4,3,4,1]
["Aviva Inv Global Equity Endurance ","Global",4,5,3,1,3,1,1,3]
["Aviva Inv Global Equity Income ","Global Equity Income ",1,1,2,2,4,2,2,2]
["Aviva Inv Higher Income Plus ","Sterling Strategic Bond ",4,2,5,3,4,4,4,4]
["Aviva Inv International Index Tracking ","Global",3,3,3,3,4,3,2,3]
["Aviva Inv Managed High Income ","Sterling Strategic Bond ",4,2,4,5,5,4,4,4]
["Aviva Inv Monthly Income Plus ","Sterling Corporate Bond ",3,4,3,3,3,3,4,2]
["Aviva Inv Multi Strategy Target Return ","Targeted Absolute Return ",2,2,3,4,3,3,5,5]
["Aviva Inv Multi-Manager Flexible ","Flexible Investment",3,3,3,5,4,3,2,4]
["Aviva Inv Multimanager 20-60% Shares ","Mixed Investment 20-60% Shares",2,5,1,3,2,4,2,2]
["Aviva Inv Multimanager 40-85% Shares ","Mixed Investment 40-85% Shares",3,4,2,4,3,4,2,3]
["Aviva Inv Strategic Bond ","Sterling Strategic Bond ",2,3,2,4,2,3,3,2]
["Aviva Inv UK Index Tracking ","UK All Companies",2,2,2,2,2,2,4,3]
["Aviva Inv UK Listed Equity Income ","UK Equity Income ",4,4,4,4,4,4,4,2]
["Aviva Inv UK Listed Equity Unconstrained ","UK All Companies",3,3,4,null,null,null,4,2]
["Aviva Inv UK Listed Small and Mid-Cap ","UK All Companies",5,5,5,4,5,3,5,4]
["Aviva Inv UK Smaller Companies ","UK Smaller Companies ",2,4,1,2,2,1,5,2]
["Aviva Inv US Equity Income ","North America ",1,3,1,3,5,1,2,5]
["Aviva Inv US Equity Income II ","North America ",1,3,1,3,5,1,1,5]
["AXA ACT Carbon Transition Sterling Buy and Maintain Credit ","Sterling Corporate Bond ",4,2,4,1,3,4,2,1]
["AXA ACT Framlington Clean Economy ","Global",5,2,5,2,3,2,4,5]
["AXA ACT Green Short Duration Bond ","Global Bonds ",2,4,1,null,null,null,3,3]
["AXA Defensive Distribution ","Mixed Investment 0-35% Shares ",5,1,5,1,5,1,3,1]
["AXA Distribution","Mixed Investment 20-60% Shares",5,1,5,5,5,1,2,4]
["AXA Ethical Distribution ","Mixed Investment 20-60% Shares",5,2,5,3,5,2,4,4]
["AXA Framlington American Growth ","North America ",4,3,4,2,2,5,2,3]
["AXA Framlington Biotech ","Specialist ",1,1,4,5,2,5,1,5]
["AXA Framlington Emerging Markets ","Global Emerging Markets ",4,5,2,2,1,5,3,5]
["AXA Framlington Global Sustainable Managed Fund ","Mixed Investment 40-85% Shares",5,2,5,1,3,5,1,3]
["AXA Framlington Global Technology ","Technology & Technology Innovation",3,5,2,3,1,3,3,4]
["AXA Framlington Global Thematics ","Global",5,5,4,5,2,5,1,2]
["AXA Framlington Japan ","Japan ",5,5,5,5,5,4,4,3]
["AXA Framlington Managed Income ","Sterling Strategic Bond ",2,4,2,4,5,1,4,5]
["AXA Framlington Monthly Income ","UK Equity Income ",5,5,1,1,3,2,3,3]
["AXA Framlington UK Equity Income ","UK Equity Income ",2,1,2,1,1,5,1,1]
["AXA Framlington UK Mid Cap ","UK All Companies",5,5,5,3,4,4,5,3]
["AXA Framlington UK Select Opportunities ","UK All Companies",4,5,3,3,3,5,2,4]
["AXA Framlington UK Smaller Companies ","UK Smaller Companies ",4,4,2,2,4,3,3,2]
["AXA Framlington UK Sustainable Equity ","UK All Companies",5,5,4,1,3,4,2,2]
["AXA Global High Income ","Sterling High Yield ",2,2,3,4,2,2,1,1]
["AXA Global Short Duration Bonds ","Sterling Strategic Bond ",1,1,1,3,2,1,2,3]
["AXA Global Strategic Bond ","Sterling Strategic Bond ",null,null,null,null,null,null,null,4]
["AXA Global Sustainable Distribution ","Mixed Investment 20-60% Shares",5,2,5,1,2,3,1,2]
["AXA Lifetime Distribution","Mixed Investment 20-60% Shares",5,2,5,3,5,1,4,2]
["AXA Sterling Corporate Bond ","Sterling Corporate Bond ",3,2,3,2,3,3,3,2]
["AXA Sterling Credit Short Duration Bond ","Sterling Corporate Bond ",1,1,1,5,1,1,3,4]
["AXA Sterling Index Linked Bond ","UK Index Linked Gilts ",4,5,2,1,4,3,5,2]
["AXA Sterling Strategic Bond ","Sterling Strategic Bond ",5,5,5,1,1,5,1,1]
["AXA US Short Duration High Yield Bond ","Global Bonds ",3,2,4,5,5,1,5,5]
["Baillie Gifford American","North America ",5,5,5,null,null,5,1,3]
["Baillie Gifford British Smaller Companies ","UK Smaller Companies ",5,4,3,4,2,5,5,5]
["Baillie Gifford China ","China/Greater China ",3,4,2,5,5,5,1,4]
["Baillie Gifford Diversified Growth ","Targeted Absolute Return ",5,4,5,5,5,5,2,2]
["Baillie Gifford Emerging Markets Growth ","Global Emerging Markets ",5,3,5,3,5,5,3,5]
["Baillie Gifford Emerging Markets Leading Companies ","Global Emerging Markets ",3,2,5,3,4,5,2,5]
["Baillie Gifford European ","Europe Excluding UK ",5,5,5,4,2,5,2,4]
["Baillie Gifford Global Alpha Growth","Global",4,4,4,null,null,null,1,4]
["Baillie Gifford Global Discovery ","Global",5,5,5,4,4,5,1,5]
["Baillie Gifford Global Income Growth ","Global Equity Income ",2,2,3,3,2,5,2,2]
["Baillie Gifford High Yield Bond ","Sterling High Yield ",5,5,5,1,2,5,4,5]
["Baillie Gifford International ","Global",5,5,4,3,4,5,1,4]
["Baillie Gifford Investment Grade Bond ","Sterling Corporate Bond ",4,5,2,4,4,5,5,2]
["Baillie Gifford Japanese","Japan ",5,5,4,4,5,4,5,3]
["Baillie Gifford Japanese Smaller Companies ","Japanese Smaller Companies",3,3,5,1,1,3,1,3]
["Baillie Gifford Managed ","Mixed Investment 40-85% Shares",5,4,5,3,3,5,1,5]
["Baillie Gifford Pacific ","Asia Pacific Excluding Japan ",5,5,5,5,3,5,4,5]
["Baillie Gifford Responsible Global Equity Income","Global Equity Income ",null,null,null,null,null,null,2,1]
["Baillie Gifford Strategic Bond ","Sterling Strategic Bond ",4,5,4,3,4,3,5,3]
["Baillie Gifford Sustainable Growth ","Global",5,5,5,5,3,5,1,4]
["Baillie Gifford Sustainable Income","Flexible Investment",3,2,3,null,null,5,2,1]
["Baillie Gifford UK Equity Alpha ","UK All Companies",5,4,5,2,4,5,4,4]
["Barclays Global Core ","Global",3,2,4,1,1,3,1,4]
["Barclays MA Adventurous Growth ","Mixed Investment 40-85% Shares",2,2,2,4,4,1,4,5]
["Barclays Multi-Asset Balanced ","Mixed Investment 20-60% Shares",1,1,2,3,3,2,5,5]
["Barclays Multi-Asset Balanced Income ","Mixed Investment 20-60% Shares",2,1,3,4,4,2,3,5]
["Barclays Multi-Asset Cautious ","Mixed Investment 0-35% Shares ",1,2,1,5,4,1,5,5]
["Barclays Multi-Asset Cautious Income ","Mixed Investment 20-60% Shares",2,2,2,3,3,3,2,2]
["Barclays Multi-Asset Defensive ","Mixed Investment 0-35% Shares ",2,3,2,4,3,3,2,2]
["Barclays Multi-Asset Growth ","Mixed Investment 40-85% Shares",1,2,2,3,3,1,5,5]
["Barclays Multi-Asset Sustainable ","Mixed Investment 40-85% Shares",4,4,4,1,1,5,1,1]
["Barclays Sterling Corporate Bond ","Sterling Corporate Bond ",3,3,3,2,3,5,1,4]
["Barclays UK Alpha ","UK All Companies",1,1,3,4,4,1,5,4]
["Barclays UK Equity Income ","UK Equity Income ",1,2,3,3,4,1,5,5]
["Barclays UK Small and Mid Cap ","UK Smaller Companies ",3,2,5,null,null,null,3,3]
["Barclays Wealth Global Markets 1 ","Mixed Investment 0-35% Shares ",2,2,3,3,1,4,1,1]
["Barclays Wealth Global Markets 2 ","Mixed Investment 20-60% Shares",3,2,4,2,1,5,1,1]
["Barclays Wealth Global Markets 3 ","Mixed Investment 20-60% Shares",3,1,5,3,3,5,1,3]
["Barclays Wealth Wealth Global Markets 4 ","Mixed Investment 40-85% Shares",2,1,5,3,3,4,1,3]
["Barclays Wealth Wealth Global Markets 5 ","Flexible Investment",2,1,5,3,3,4,1,3]
["Barings Eastern Trust ","Asia Pacific Excluding Japan ",5,5,5,5,1,5,4,4]
["Barings Europe Select Trust ","European Smaller Companies",2,2,1,1,2,4,2,4]
["Barings European Growth Trust ","Europe Excluding UK ",3,3,2,4,5,3,4,2]
["Barings German Growth Trust ","Specialist ",1,1,5,5,5,1,5,5]
["Barings Korea Trust ","Specialist ",5,3,5,5,4,4,5,5]
["BlackRock Absolute Return Bond ","Targeted Absolute Return ",2,3,2,4,2,2,5,1]
["BlackRock Aquila Emerging Markets ","Global Emerging Markets ",2,2,2,2,1,1,4,1]
["BlackRock Armed Forces Charities Growth & Income ","Mixed Investment 40-85% Shares",5,5,3,3,3,3,3,2]
["BlackRock Asia ","Asia Pacific Excluding Japan ",2,1,5,5,2,4,4,4]
["BlackRock Balanced Growth Portfolio ","Mixed Investment 40-85% Shares",3,2,2,2,2,3,3,3]
["BlackRock Catholic Charities Growth & Income ","Mixed Investment 40-85% Shares",4,4,3,3,3,3,3,2]
["BlackRock Charities Growth & Income ","Mixed Investment 40-85% Shares",4,4,3,null,2,4,3,3]
["BlackRock Charities UK Bond ","Sterling Strategic Bond ",5,3,4,1,1,4,1,1]
["BlackRock Charities UK Equity ","UK All Companies",2,2,2,2,2,4,2,4]
["BlackRock Charities UK Equity ESG ","UK All Companies",1,1,3,2,2,4,3,4]
["BlackRock Charities UK Equity Index ","UK All Companies",2,2,2,3,3,3,2,3]
["BlackRock Consensus 100 ","Global",2,2,2,3,4,2,3,3]
["BlackRock Consensus 35 ","Mixed Investment 0-35% Shares ",4,2,4,1,3,4,1,1]
["BlackRock Consensus 60 ","Mixed Investment 20-60% Shares",3,2,5,2,3,3,1,1]
["BlackRock Consensus 70 ","Mixed Investment 40-85% Shares",3,2,3,1,1,3,2,1]
["BlackRock Consensus 85","Mixed Investment 40-85% Shares",2,1,4,3,3,2,2,2]
["BlackRock Continental European ","Europe Excluding UK ",4,4,5,2,3,4,1,1]
["BlackRock Continental European Income ","Europe Excluding UK ",3,3,1,1,3,3,1,4]
["BlackRock Corporate Bond ","Sterling Corporate Bond ",4,1,5,4,5,2,5,1]
["BlackRock Corporate Bond 1 to 10 Year ","Sterling Corporate Bond ",2,1,2,4,4,2,1,4]
["BlackRock Developed Markets Sustainable Equity ","Global",4,4,4,2,2,1,1,3]
["BlackRock Dynamic Allocation ","Specialist ",3,3,2,4,2,2,2,1]
["BlackRock Dynamic Diversified Growth ","Specialist ",3,3,2,4,2,3,2,2]
["BlackRock Emerging Markets ","Global Emerging Markets ",4,4,3,5,2,4,3,2]
["BlackRock ESG Strategic Growth ","Specialist ",4,4,3,4,3,4,2,2]
["BlackRock European Absolute Alpha ","Targeted Absolute Return ",3,3,3,1,1,5,1,1]
["BlackRock European Dynamic ","Europe Excluding UK ",4,4,5,2,4,4,2,4]
["BlackRock Global Equity ","Global",1,1,2,4,5,1,3,4]
["BlackRock Global Income ","Global Equity Income ",3,4,2,2,1,2,2,4]
["BlackRock Gold & General ","Specialist ",5,2,5,1,4,5,5,1]
["BlackRock Market Advantage ","Mixed Investment 0-35% Shares ",5,3,5,5,5,4,5,2]
["BlackRock Sustainable Sterling Strategic Bond ","Sterling Strategic Bond ",3,1,5,5,4,3,5,2]
["BlackRock UK ","UK All Companies",5,5,4,1,2,5,1,2]
["BlackRock UK Absolute Alpha ","Targeted Absolute Return ",1,1,1,4,3,3,1,2]
["BlackRock UK Equity","UK All Companies",2,2,3,2,3,5,1,2]
["BlackRock UK Income ","UK Equity Income ",1,1,1,2,1,5,1,2]
["BlackRock UK Smaller Companies ","UK Smaller Companies ",5,3,5,1,5,5,5,3]
["BlackRock UK Special Situations ","UK All Companies",4,4,4,2,4,4,5,4]
["BlackRock US Dynamic ","North America ",1,2,2,3,2,1,4,4]
["BlackRock US Opportunities ","North America ",2,1,4,5,5,1,5,5]
["BM SVS Brooks Macdonald Blueprint Balanced ","Mixed Investment 40-85% Shares",2,4,1,3,2,3,4,2]
["BM SVS Brooks Macdonald Blueprint Cautious Growth ","Mixed Investment 20-60% Shares",1,5,1,1,2,3,3,3]
["BM SVS Brooks Macdonald Blueprint Defensive Income ","Mixed Investment 0-35% Shares ",1,4,1,3,4,2,3,4]
["BM SVS Brooks Macdonald Blueprint Strategic Growth ","Flexible Investment",4,3,3,3,3,3,4,3]
["BM SVS Brooks Macdonald Defensive Capital ","Targeted Absolute Return ",5,3,5,3,5,2,5,5]
["BNY Mellon Asian Income ","Asia Pacific Excluding Japan ",3,5,1,1,4,2,5,2]
["BNY Mellon Asian Opportunities ","Asia Pacific Excluding Japan ",2,2,1,4,4,5,1,3]
["BNY Mellon Emerging Income ","Global Emerging Markets ",2,2,1,1,3,1,5,2]
["BNY Mellon Equity Income","UK Equity Income ",1,1,1,4,3,2,1,3]
["BNY Mellon Equity Income Booster","UK Equity Income ",1,1,1,4,3,2,1,3]
["BNY Mellon Global Absolute Return ","Targeted Absolute Return ",4,5,3,4,4,5,2,4]
["BNY Mellon Global Dynamic Bond ","Targeted Absolute Return ",3,5,2,2,2,4,2,1]
["BNY Mellon Global Dynamic Bond Income","Sterling Strategic Bond ",2,5,2,null,null,4,4,3]
["BNY Mellon Global Emerging Markets Opportunities ","Global Emerging Markets ",2,2,1,4,3,5,1,2]
["BNY Mellon Global Equity ","Global",2,3,1,2,2,4,1,2]
["BNY Mellon Global High Yield Bond ","Sterling High Yield ",5,4,5,1,1,5,5,5]
["BNY Mellon Global Income ","Global Equity Income ",1,1,1,2,2,2,2,3]
["BNY Mellon Global Multi-Strategy ","Mixed Investment 20-60% Shares",5,5,3,3,4,4,3,1]
["BNY Mellon Global Opportunities ","Global",2,2,2,2,3,3,1,1]
["BNY Mellon Growth and Income For Charities ","Mixed Investment 40-85% Shares",1,1,1,1,4,2,1,2]
["BNY Mellon Inflation Linked Corporate Bond ","Sterling Strategic Bond ",2,1,4,3,3,2,2,3]
["BNY Mellon International Bond ","Global Bonds ",2,3,2,1,1,5,1,3]
["BNY Mellon Long Term Global Equity ","Global",1,1,2,2,1,4,2,1]
["BNY Mellon Multi-Asset Balanced ","Mixed Investment 40-85% Shares",1,1,1,1,3,3,1,1]
["BNY Mellon Multi-Asset Diversified Return ","Targeted Absolute Return ",4,2,5,5,5,3,3,5]
["BNY Mellon Multi-Asset Growth","Flexible Investment",1,1,2,5,5,2,1,3]
["BNY Mellon Multi-Asset Income ","Mixed Investment 40-85% Shares",1,1,2,5,5,1,4,4]
["BNY Mellon Real Return ","Targeted Absolute Return ",4,5,3,1,4,4,1,4]
["BNY Mellon Responsible Horizons UK Corporate Bond","Sterling Corporate Bond ",4,1,5,2,4,5,4,3]
["BNY Mellon SRI for Charities ","Flexible Investment",1,1,2,3,4,2,1,2]
["BNY Mellon Sustainable European Opportunities ","Europe Excluding UK ",2,2,1,2,2,4,1,1]
["BNY Mellon Sustainable Global Emerging Markets ","Global Emerging Markets ",2,4,1,null,null,null,1,3]
["BNY Mellon Sustainable Growth & Income for Charities ","Flexible Investment",1,2,2,1,2,4,1,2]
["BNY Mellon Sustainable Real Return","Targeted Absolute Return ",5,5,4,null,null,null,1,4]
["BNY Mellon Sustainable UK Opportunities ","UK All Companies",4,4,4,2,3,5,1,1]
["BNY Mellon UK Equity","UK All Companies",3,3,3,1,2,4,1,3]
["BNY Mellon UK Income ","UK Equity Income ",1,1,3,2,3,3,3,5]
["BNY Mellon US Opportunities","North America ",5,4,5,5,5,5,5,5]
["Brown SVS Brown Shipley Balanced ","Mixed Investment 40-85% Shares",5,5,4,2,3,4,2,1]
["Brown SVS Brown Shipley Cautious ","Mixed Investment 0-35% Shares ",3,3,3,2,3,3,2,1]
["Brown SVS Brown Shipley Dynamic","Flexible Investment",5,4,5,3,4,3,1,2]
["Brown SVS Brown Shipley Growth","Mixed Investment 40-85% Shares",5,5,5,4,4,4,2,1]
["Brown SVS Brown Shipley Income","Mixed Investment 20-60% Shares",5,4,4,3,3,5,1,1]
["CAF UK Equitrack ","UK All Companies",2,2,1,3,2,3,2,3]
["Capital Group UK Global High Income Opportunities ","Sterling Strategic Bond ",null,null,null,null,null,null,null,5]
["Carvetian Electric & General Investment ","Global",3,3,3,1,1,4,1,1]
["Carvetian Fenix Balanced ","Mixed Investment 40-85% Shares",4,3,3,4,4,5,5,5]
["Carvetian Generation ","Flexible Investment",3,5,2,3,1,3,5,1]
["CBF Catholic Investment ","Flexible Investment",3,3,4,null,null,null,1,2]
["CCLA Better World Global Equity ","Global",null,null,null,null,null,null,1,1]
["CFP Castlefield Real Return ","Targeted Absolute Return ",5,4,5,3,5,2,3,4]
["CFP Castlefield Sustainable European ","Europe Excluding UK ",5,5,4,3,1,5,1,2]
["CFP Castlefield Sustainable Portfolio Growth ","Mixed Investment 40-85% Shares",4,4,4,1,3,3,3,2]
["CFP Castlefield Sustainable Portfolio Income ","Mixed Investment 20-60% Shares",3,2,4,null,null,3,2,2]
["CFP Castlefield Sustainable UK Opportunities ","UK All Companies",3,2,4,1,2,4,1,1]
["CFP Castlefield Sustainable UK Smaller Companies ","UK Smaller Companies ",1,5,1,1,2,2,3,1]
["CFP SDL Free Spirit ","UK All Companies",4,4,5,1,1,5,5,1]
["Close Balanced Portfolio ","Mixed Investment 40-85% Shares",5,5,3,1,3,4,1,4]
["Close Conservative Portfolio ","Mixed Investment 20-60% Shares",3,5,2,1,2,4,1,2]
["Close Diversified Income Portfolio ","Mixed Investment 20-60% Shares",4,3,3,2,3,3,5,5]
["Close FTSE techMARK ","Technology & Technology Innovation",1,1,1,1,5,1,4,5]
["Close Growth Portfolio ","Flexible Investment",5,4,4,1,4,4,1,5]
["Close Managed Balanced ","Mixed Investment 40-85% Shares",3,4,2,3,1,5,4,2]
["Close Managed Conservative ","Mixed Investment 20-60% Shares",2,3,2,4,2,4,4,4]
["Close Managed Growth ","Flexible Investment",4,4,3,4,2,5,4,3]
["Close Managed Income ","Mixed Investment 20-60% Shares",3,4,2,4,3,2,4,4]
["Close Select Fixed Income ","Sterling Strategic Bond ",2,2,2,3,4,1,5,5]
["Close Strategic Alpha ","Flexible Investment",5,3,5,5,4,5,3,5]
["Close Sustainable Balanced Portfolio ","Mixed Investment 40-85% Shares",2,4,1,null,null,5,2,1]
["Close Tactical Select Passive Balanced ","Mixed Investment 40-85% Shares",3,3,3,3,3,4,4,3]
["Close Tactical Select Passive Conservative ","Mixed Investment 20-60% Shares",4,3,3,2,3,5,3,3]
["Close Tactical Select Passive Growth ","Flexible Investment",3,2,4,4,4,4,4,4]
["Close Winchester Investment ","Specialist ",4,3,3,5,5,2,5,3]
["COIF Charities Ethical Investment ","Specialist ",3,2,3,1,3,4,4,3]
["COIF Charities Fixed Interest ","Sterling Strategic Bond ",2,3,1,2,2,5,4,2]
["COIF Charities Global Equity Income ","Global",2,1,4,1,1,4,5,1]
["COIF Charities Investment ","Mixed Investment 40-85% Shares",1,1,3,1,2,4,5,1]
["Consistent Opportunities Unit Trust ","UK All Companies",4,5,3,2,5,1,5,2]
["Consistent Practical Investment ","Flexible Investment",2,1,5,5,5,2,5,5]
["Courtiers Ethical Value Equity ","Global",null,null,null,null,null,null,null,5]
["Courtiers Global (ex UK) Equity Income ","Global Equity Income ",5,5,5,2,3,1,5,5]
["Courtiers Investment Grade Bond ","Global Bonds ",1,1,1,2,2,2,3,3]
["Courtiers Total Return Balanced Risk ","Mixed Investment 40-85% Shares",4,2,5,5,5,1,5,4]
["Courtiers Total Return Cautious Risk ","Mixed Investment 20-60% Shares",1,1,3,5,3,1,4,5]
["Courtiers Total Return Growth ","Flexible Investment",5,2,5,5,5,1,5,5]
["Courtiers UK Equity Income ","UK Equity Income ",5,4,5,4,5,1,5,4]
["CT American ","North America ",4,4,3,2,3,4,4,4]
["CT American Extended Alpha ","North America ",5,5,4,5,5,5,5,4]
["CT American Select ","North America ",5,5,4,5,4,4,4,4]
["CT American Smaller Companies (US) ","North American Smaller Companies",4,3,3,1,3,5,3,5]
["CT Asia ","Asia Pacific Excluding Japan ",5,5,4,4,3,4,3,5]
["CT Asia Pacific Equity","Asia Pacific Excluding Japan ",2,2,2,1,4,3,1,3]
["CT China Opportunities ","China/Greater China ",4,3,4,3,2,3,3,3]
["CT Diversified Monthly Income ","Specialist ",2,4,1,4,4,1,2,2]
["CT Dollar Bond ","Global Bonds ",1,1,3,1,1,4,1,4]
["CT Dynamic Real Return ","Targeted Absolute Return ",5,3,5,5,4,4,4,4]
["CT European ","Europe Excluding UK ",2,3,5,1,3,2,4,3]
["CT European Bond ","Global Bonds ",5,5,4,2,1,5,2,1]
["CT European Select ","Europe Excluding UK ",3,3,5,1,1,5,2,1]
["CT European Smaller Companies ","European Smaller Companies",4,4,5,2,1,5,3,1]
["CT FTSE All-Share Tracker","UK All Companies",2,2,2,3,2,3,3,4]
["CT Global Bond ","Global Bonds ",4,5,3,1,1,5,1,1]
["CT Global Emerging Market Equity ","Global Emerging Markets ",5,5,2,3,5,5,2,4]
["CT Global Equity Income ","Global Equity Income ",3,3,3,2,3,2,4,4]
["CT Global Extended Alpha ","Global",5,5,4,3,2,4,2,2]
["CT Global Select ","Global",5,5,4,2,2,4,2,2]
["CT Global Total Return Bond (GBP Hedged)","Global Bonds ",3,1,3,4,4,1,5,2]
["CT High Yield Bond ","Sterling High Yield ",2,2,2,3,4,2,5,4]
["CT Japan ","Japan ",4,4,5,1,1,5,5,1]
["CT Managed Bond ","Mixed Investment 0-35% Shares ",5,3,5,1,1,5,1,1]
["CT Managed Bond Focused ","Mixed Investment 0-35% Shares ",5,2,5,1,1,5,1,1]
["CT Managed Equity ","Flexible Investment",4,2,5,3,2,4,2,4]
["CT Managed Equity & Bond ","Mixed Investment 20-60% Shares",5,3,5,2,2,5,1,2]
["CT Managed Equity Focused ","Mixed Investment 40-85% Shares",4,3,5,2,2,4,2,3]
["CT Managed Equity Income ","Mixed Investment 40-85% Shares",1,1,5,5,5,1,1,4]
["CT Managed Growth ","Flexible Investment",2,2,2,3,3,3,2,3]
["CT MM Navigator Balanced ","Mixed Investment 40-85% Shares",1,3,1,4,4,2,5,3]
["CT MM Navigator Boutiques ","Global",4,4,2,4,4,2,5,5]
["CT MM Navigator Cautious ","Mixed Investment 20-60% Shares",2,4,2,5,5,3,5,3]
["CT MM Navigator Distribution","Mixed Investment 20-60% Shares",2,2,2,3,5,1,5,3]
["CT MM Navigator Growth ","Flexible Investment",2,3,2,4,3,2,5,3]
["CT Monthly Extra Income ","Mixed Investment 40-85% Shares",3,1,5,5,5,1,1,4]
["CT Multi-Manager Investment Trust","Flexible Investment",5,4,5,4,5,5,4,5]
["CT Multi-Sector Bond ","Sterling Strategic Bond ",2,3,2,4,3,3,3,3]
["CT Multi-Sector Higher Income Bond ","Sterling High Yield ",1,1,1,2,1,4,1,1]
["CT North American Equity","North America ",1,4,1,5,4,3,2,3]
["CT Property Growth & Income ","Property Other ",4,4,4,5,1,3,5,2]
["CT Responsible Global Equity","Global",4,3,4,3,1,4,3,5]
["CT Responsible Sterling Corporate Bond","Sterling Corporate Bond ",3,3,3,1,2,4,2,2]
["CT Responsible UK Equity ","UK All Companies",4,4,3,2,4,4,3,2]
["CT Responsible UK Income ","UK Equity Income ",5,4,4,1,2,4,2,1]
["CT Select European Equity","Europe Excluding UK ",2,1,4,2,1,5,2,1]
["CT Select UK Equity Income","UK Equity Income ",3,3,3,5,4,4,3,2]
["CT Sterling Bond ","UK Gilts ",4,3,4,3,3,3,2,1]
["CT Sterling Corporate Bond ","Sterling Corporate Bond ",4,2,4,3,4,3,4,2]
["CT Sterling Short Dated Corporate Bond ","Sterling Corporate Bond ",1,2,1,5,2,1,3,5]
["CT Strategic Bond ","Sterling Strategic Bond ",3,4,3,4,4,3,5,4]
["CT Sustainable Global Equity Income ","Global Equity Income ",null,null,null,null,null,null,null,3]
["CT Sustainable Opportunities Global Equity ","Global",4,3,4,3,1,5,3,5]
["CT UK ","UK All Companies",1,1,4,4,4,3,2,2]
["CT UK Equity Alpha Income ","UK Equity Income ",4,4,3,5,1,4,1,1]
["CT UK Equity Income ","UK Equity Income ",2,2,2,5,2,4,1,1]
["CT UK Extended Alpha ","UK All Companies",1,1,4,4,4,2,2,3]
["CT UK Fixed Interest ","UK Gilts ",4,3,4,3,3,4,2,2]
["CT UK Growth and Income ","UK All Companies",3,3,2,5,4,2,1,1]
["CT UK Index Linked ","UK Index Linked Gilts ",3,2,3,5,3,4,3,4]
["CT UK Institutional ","UK All Companies",3,3,2,5,3,1,3,3]
["CT UK Mid 250 ","UK All Companies",5,5,5,2,5,3,5,5]
["CT UK Monthly Income ","UK Equity Income ",3,3,1,4,2,3,2,2]
["CT UK Smaller Cap Fund ","UK Smaller Companies ",2,2,3,5,5,3,4,3]
["CT UK Smaller Companies ","UK Smaller Companies ",4,2,5,4,4,2,4,3]
["CT UK Sustainable Equity ","UK All Companies",3,3,2,3,2,4,1,1]
["CT US Equity Income ","North America ",1,1,1,2,3,2,4,4]
["CT US Smaller Companies ","North American Smaller Companies",1,1,4,5,5,2,3,4]
["DMS Stirling House Balanced ","Mixed Investment 20-60% Shares",5,5,4,1,1,5,1,1]
["DMS Stirling House Dynamic ","Flexible Investment",5,5,3,4,2,4,1,2]
["DMS Stirling House Growth ","Mixed Investment 40-85% Shares",5,5,3,2,1,5,1,1]
["DMS Stirling House Monthly Income ","Mixed Investment 0-35% Shares ",5,4,5,2,2,5,3,1]
["EdenTree Investment Funds Amity Balanced for Charities ","Mixed Investment 40-85% Shares",5,1,5,5,5,1,5,5]
["EdenTree Investment Funds Amity Global Equity for Charities ","Global",2,3,1,4,4,2,2,5]
["EdenTree Responsible & Sustainable Managed Income ","Mixed Investment 40-85% Shares",4,1,5,5,5,1,4,5]
["EdenTree Responsible and Sustainable European Equity ","Europe Excluding UK ",1,1,2,5,4,1,4,5]
["EdenTree Responsible and Sustainable Global Equity ","Global",3,2,3,5,3,3,5,3]
["EdenTree Responsible And Sustainable Multi-Asset Balanced ","Mixed Investment 40-85% Shares",4,3,4,null,null,null,5,2]
["EdenTree Responsible And Sustainable Multi-Asset Cautious ","Mixed Investment 20-60% Shares",4,2,4,null,null,null,5,3]
["EdenTree Responsible And Sustainable Multi-Asset Growth ","Mixed Investment 40-85% Shares",4,2,5,null,null,null,5,4]
["EdenTree Responsible and Sustainable Short Dated Bond ","Sterling Corporate Bond ",1,5,1,4,1,1,1,3]
["EdenTree Responsible and Sustainable Sterling Bond ","Sterling Strategic Bond ",4,4,3,4,3,3,4,2]
["EdenTree Responsible and Sustainable UK Equity ","UK All Companies",4,5,3,5,2,4,2,2]
["EdenTree Responsible and Sustainable UK Equity Opportunities ","UK All Companies",4,5,4,3,4,3,3,2]
["EF 8AM Balanced ","Mixed Investment 40-85% Shares",5,4,5,2,4,5,4,1]
["EF 8AM Cautious ","Mixed Investment 20-60% Shares",5,5,3,2,3,5,3,2]
["EF 8AM Focussed ","Flexible Investment",5,4,4,5,2,5,1,4]
["EF 8AM Growth ","Mixed Investment 40-85% Shares",5,2,5,3,5,5,4,4]
["EF 8AM Tactical Growth Portfolio ","Flexible Investment",2,1,4,4,4,2,4,4]
["EF Brompton Global Balanced ","Mixed Investment 20-60% Shares",1,4,1,2,3,4,2,2]
["EF Brompton Global Conservative ","Mixed Investment 0-35% Shares ",2,5,2,1,4,2,3,3]
["EF Brompton Global Equity ","Global",3,4,1,2,2,4,4,2]
["EF Brompton Global Growth ","Mixed Investment 40-85% Shares",1,4,1,2,3,4,4,3]
["EF Brompton Global Income ","Mixed Investment 20-60% Shares",3,2,4,1,4,2,4,3]
["EF Brompton Global Opportunities ","Flexible Investment",2,3,2,2,3,4,4,2]
["EF Brunswick Diversified Portfolio ","Mixed Investment 20-60% Shares",4,3,3,1,3,3,4,2]
["EF Brunswick Growth Portfolio ","Flexible Investment",5,3,4,2,5,5,4,4]
["EF New Horizon Balanced Income & Growth ","Mixed Investment 20-60% Shares",4,5,2,3,4,5,5,5]
["EF New Horizon Cautious ","Mixed Investment 0-35% Shares ",3,5,2,4,4,5,5,5]
["EF New Horizon Income ","Mixed Investment 0-35% Shares ",3,3,3,4,4,2,5,5]
["EF Tellsons Endeavour ","Mixed Investment 20-60% Shares",5,5,4,1,2,4,1,3]
["EF WM Global Corporate Autonomies ","Global",1,1,1,3,3,1,4,5]
["EF WM Global Trend ","Specialist ",3,4,2,3,2,2,3,3]
["Elite Balanced ","Mixed Investment 40-85% Shares",3,5,2,1,1,4,3,2]
["Elite EF Rosevine Capital Global Equity ","Global",5,5,5,5,1,5,1,1]
["Elite Verus Sustainable Balanced ","Mixed Investment 40-85% Shares",4,5,2,2,1,5,4,1]
["Epworth Corporate Bond For Charities ","Sterling Corporate Bond ",2,3,2,1,1,2,1,1]
["Epworth Global Equity For Charities ","Global",2,1,5,null,3,3,1,2]
["Epworth Multi Asset For Charities ","Mixed Investment 40-85% Shares",4,3,5,null,4,3,2,3]
["Epworth Sovereign Bond For Charities ","UK Gilts ",4,2,4,4,3,3,1,5]
["Epworth UK Equity For Charities ","UK All Companies",4,4,4,2,1,4,3,2]
["Equitile Resilience ","Global",5,5,5,5,5,5,5,4]
["ES AllianceBernstein Concentrated Global Equity ","Global",4,4,4,null,null,4,3,4]
["ES AllianceBernstein Concentrated US Equity ","North America ",4,5,3,null,null,2,4,3]
["ES AllianceBernstein Europe (ex UK) Equity ","Europe Excluding UK ",1,2,1,4,5,2,4,5]
["ES AllianceBernstein Low Volatility Global Equity","Global",1,3,1,null,null,3,2,2]
["ES AllianceBernstein Sustainable Global Equity ","Global",5,3,5,null,null,null,4,3]
["ES AllianceBernstein Sustainable US Equity ","North America ",4,2,5,null,null,5,5,3]
["ES Baker Steel Gold & Precious Metals ","Specialist ",5,2,5,2,5,5,5,1]
["ES Investec Wealth & Investment Balanced Fund ","Mixed Investment 40-85% Shares",4,4,3,null,null,4,2,1]
["ES Investec Wealth & Investment Cautious Fund ","Mixed Investment 20-60% Shares",4,4,4,null,null,5,2,1]
["ES Investec Wealth & Investment Growth Fund ","Mixed Investment 40-85% Shares",4,4,4,null,null,4,1,1]
["ES Investec Wealth & Investment Income Fund ","Mixed Investment 40-85% Shares",4,5,3,null,null,3,2,1]
["ES R&M Global Alpha ","Global",2,1,2,5,5,1,4,5]
["ES R&M Global Recovery ","Global",2,1,4,5,5,1,5,5]
["ES R&M UK Alpha ","UK All Companies",4,3,4,5,5,1,5,5]
["ES R&M UK Dynamic Equity ","UK All Companies",4,5,4,5,3,2,3,3]
["ES R&M UK Equity Income ","UK Equity Income ",4,4,1,2,1,5,1,2]
["ES R&M UK Listed Smaller Companies ","UK Smaller Companies ",2,3,2,4,1,3,1,3]
["ES R&M UK Recovery ","UK All Companies",4,3,4,5,5,1,5,5]
["Fidelity Allocator World ","Global",4,4,2,3,4,3,3,4]
["Fidelity Alternative Listed Equity Feeder","Global",null,null,null,null,null,null,null,1]
["Fidelity American ","North America ",4,3,4,2,1,5,1,1]
["Fidelity American Special Situations ","North America ",4,3,2,5,5,1,4,5]
["Fidelity Asia ","Asia Pacific Excluding Japan ",5,3,5,4,1,5,2,3]
["Fidelity Asia Pacific Ex Japan Equity Feeder ","Asia Pacific Excluding Japan ",null,null,null,null,null,null,null,1]
["Fidelity Asia Pacific Opportunities ","Asia Pacific Excluding Japan ",2,2,4,3,2,4,2,1]
["Fidelity Asian Dividend ","Asia Pacific Excluding Japan ",2,2,1,1,4,1,4,1]
["Fidelity China Consumer ","China/Greater China ",2,2,5,5,3,4,3,3]
["Fidelity Emerging Markets ","Global Emerging Markets ",5,5,2,3,3,4,3,5]
["Fidelity Enhanced Income ","UK Equity Income ",1,1,1,3,1,5,1,1]
["Fidelity Europe Ex UK Equity Feeder ","Europe Excluding UK ",null,null,null,null,null,null,null,4]
["Fidelity European ","Europe Excluding UK ",1,1,1,1,1,4,1,1]
["Fidelity Extra Income ","Sterling Strategic Bond ",4,4,4,4,4,3,4,4]
["Fidelity Fidelity UK Equity Feeder ","UK All Companies",null,null,null,null,null,null,null,4]
["Fidelity Global Aggregate Bond Feeder ","Global Bonds ",null,null,null,null,null,null,null,1]
["Fidelity Global Dividend ","Global Equity Income ",1,1,1,1,1,4,3,2]
["Fidelity Global Emerging Markets Equity Feeder ","Global Emerging Markets ",null,null,null,null,null,null,null,1]
["Fidelity Global Enhanced Income ","Global Equity Income ",2,2,1,1,1,4,3,2]
["Fidelity Global High Yield ","Sterling High Yield ",3,2,1,2,5,3,3,4]
["Fidelity Global Property ","Property Other ",3,5,2,1,2,2,1,4]
["Fidelity Global Special Situations ","Global",4,3,3,4,5,3,4,4]
["Fidelity Global Sub-IG Fixed Income Feeder ","Global Bonds ",null,null,null,null,null,null,null,4]
["Fidelity Index Emerging Markets ","Global Emerging Markets ",3,3,3,4,1,3,3,1]
["Fidelity Index Europe ex UK ","Europe Excluding UK ",2,2,2,3,3,3,2,3]
["Fidelity Index Japan ","Japan ",3,3,4,2,3,4,2,4]
["Fidelity Index Pacific ex Japan ","Asia Pacific Excluding Japan ",3,4,1,1,5,1,2,4]
["Fidelity Index Sterling Corporate Bond","Sterling Corporate Bond ",4,2,4,null,null,null,2,2]
["Fidelity Index UK ","UK All Companies",2,2,2,4,3,3,2,3]
["Fidelity Index UK Gilt","UK Gilts ",2,4,2,null,null,null,4,3]
["Fidelity Index US ","North America ",3,3,3,3,4,3,2,2]
["Fidelity Index World ","Global",3,3,3,3,4,3,2,3]
["Fidelity Japan ","Japan ",1,1,1,2,2,1,3,3]
["Fidelity Japan Equity Feeder ","Japan ",null,null,null,null,null,null,null,1]
["Fidelity Japan Smaller Companies ","Japan ",5,4,5,5,3,5,4,3]
["Fidelity Moneybuilder Balanced ","Mixed Investment 40-85% Shares",4,2,5,3,3,2,1,1]
["Fidelity Moneybuilder Dividend ","UK Equity Income ",2,2,1,3,1,5,1,1]
["Fidelity Multi Asset Allocator Adventurous ","Flexible Investment",4,4,3,3,3,3,1,3]
["Fidelity Multi Asset Allocator Defensive ","Mixed Investment 0-35% Shares ",4,4,3,1,2,5,1,1]
["Fidelity Multi Asset Allocator Growth ","Mixed Investment 40-85% Shares",4,5,2,1,1,4,1,1]
["Fidelity Multi Asset Allocator Strategic ","Mixed Investment 20-60% Shares",4,5,3,1,1,5,1,1]
["Fidelity Multi Asset Balanced Income ","Mixed Investment 20-60% Shares",4,4,3,1,3,2,4,4]
["Fidelity Multi Asset Income ","Mixed Investment 0-35% Shares ",5,5,3,3,5,2,5,4]
["Fidelity Multi Asset Income & Growth ","Mixed Investment 40-85% Shares",3,5,2,1,2,2,4,2]
["Fidelity Multi Asset Open Adventurous ","Flexible Investment",1,1,2,2,2,2,3,2]
["Fidelity Multi Asset Open Defensive ","Mixed Investment 0-35% Shares ",2,1,2,2,2,2,3,1]
["Fidelity Multi Asset Open Growth ","Mixed Investment 40-85% Shares",1,2,1,1,1,2,3,1]
["Fidelity Multi Asset Open Strategic ","Mixed Investment 20-60% Shares",1,1,2,2,2,2,3,1]
["Fidelity North American Equity Feeder ","North America ",null,null,null,null,null,null,null,1]
["Fidelity Open World","Global",1,3,1,2,2,2,3,2]
["Fidelity Select 50 Balanced ","Mixed Investment 20-60% Shares",2,3,1,2,2,3,3,3]
["Fidelity Short Dated Corporate Bond ","Sterling Corporate Bond ",1,1,1,4,1,1,2,4]
["Fidelity Special Situations ","UK All Companies",2,2,3,4,5,1,5,5]
["Fidelity Strategic Bond ","Sterling Strategic Bond ",4,4,4,2,3,4,3,2]
["Fidelity Sustainable Asia Equity ","Asia Pacific Excluding Japan ",2,2,4,4,2,4,1,5]
["Fidelity Sustainable Emerging Markets Equity ","Global Emerging Markets "]
["Fidelity Sustainable European Equity ","Europe Excluding UK ",3,3,4,4,2,5,1,1]
["Fidelity Sustainable Global Equity ","Global",3,2,4,1,3,5,3,2]
["Fidelity Sustainable Global Equity Income","Global Equity Income ",null,null,null,null,null,null,1,1]
["Fidelity Sustainable MoneyBuilder Income ","Sterling Corporate Bond ",4,5,3,2,3,3,3,2]
["Fidelity Sustainable Multi Asset Balanced ","Mixed Investment 20-60% Shares",4,5,3,null,null,null,2,3]
["Fidelity Sustainable Multi Asset Conservative ","Mixed Investment 0-35% Shares ",5,3,4,null,null,null,4,2]
["Fidelity Sustainable Multi Asset Growth ","Mixed Investment 40-85% Shares",4,5,3,null,null,null,3,4]
["Fidelity Sustainable Water & Waste ","Global",4,4,4,null,5,2,4,4]
["Fidelity UK Opportunities ","UK All Companies",5,5,5,4,4,1,5,5]
["Fidelity UK Select ","UK All Companies",3,4,3,2,3,4,3,2]
["Fidelity UK Smaller Companies ","UK Smaller Companies ",1,1,4,3,5,1,3,5]
["First Arrow Diversified ","Flexible Investment",2,5,1,1,null,4,5]
["First Sentier Global Property Securities ","Property Other ",3,4,3,3,2,2,2,5]
["FP Apollo Multi Asset Adventurous ","Flexible Investment",4,4,3,5,5,3,4,3]
["FP Apollo Multi Asset Balanced ","Mixed Investment 20-60% Shares",2,4,1,5,5,1,4,4]
["FP Apollo Multi Asset Cautious ","Mixed Investment 20-60% Shares",1,4,1,5,3,1,4,2]
["FP Carmignac Emerging Discovery ","Global Emerging Markets ",2,2,1,null,1,2,2,3]
["FP Carmignac Emerging Markets ","Global Emerging Markets ",1,1,3,null,1,5,1,5]
["FP Carmignac Emerging Patrimoine ","Mixed Investment 20-60% Shares",1,1,5,null,2,5,1,2]
["FP Carmignac European Leaders ","Europe Excluding UK ",4,4,4,null,1,5,1,1]
["FP Carmignac Global Equity Compounders ","Global",2,2,3,null,null,4,1,1]
["FP Carmignac Patrimoine ","Mixed Investment 20-60% Shares",1,2,1,null,1,5,4,1]
["FP Carmignac Unconstrained Global Bond ","Sterling Strategic Bond ",1,1,1,null,1,5,3,3]
["FP Foresight Sustainable Future Themes ","Global",5,3,5,null,null,null,3,5]
["FP Foresight Sustainable Real Estate Securities ","Property Other ",4,3,4,null,null,5,3,3]
["FP Mattioli Woods Adventurous ","Flexible Investment",5,5,4,2,4,5,4,5]
["FP Mattioli Woods Balanced ","Mixed Investment 40-85% Shares",3,5,1,1,2,4,4,2]
["FP Mattioli Woods Cautious ","Flexible Investment",2,5,1,1,1,3,3,1]
["FP Mattioli Woods Growth ","Flexible Investment",4,5,2,2,3,5,4,3]
["FP Mattioli Woods Passive Adventurous ","Flexible Investment",2,2,3,null,null,null,3,5]
["FP Mattioli Woods Passive Balanced ","Mixed Investment 40-85% Shares",2,4,1,null,null,null,3,2]
["FP Mattioli Woods Passive Cautious ","Flexible Investment",2,5,1,null,null,null,2,1]
["FP Mattioli Woods Passive Growth ","Flexible Investment",3,3,2,null,null,null,4,3]
["FP Octopus UK Future Generations ","UK All Companies",5,5,1,null,null,null,4,2]
["FP Octopus UK Micro Cap Growth ","UK Smaller Companies ",3,5,1,1,1,4,2,2]
["FP Octopus UK Multi Cap Income ","UK Equity Income ",5,5,2,1,1,5,4,1]
["FP Pictet Multi Asset Portfolio ","Targeted Absolute Return ",5,4,4,2,4,5,4,5]
["FP Russell Investments International Growth Assets ","Global",4,3,3,4,5,1,3,2]
["FP Russell Investments Multi Asset Growth I ","Mixed Investment 0-35% Shares ",4,2,4,4,4,3,2,2]
["FP Russell Investments Multi Asset Growth II ","Mixed Investment 20-60% Shares",3,3,3,3,3,3,2,1]
["FP Russell Investments Multi Asset Growth III ","Mixed Investment 20-60% Shares",3,2,4,5,5,2,2,4]
["FP Russell Investments Multi Asset Growth IV ","Mixed Investment 40-85% Shares",3,3,3,4,4,2,2,3]
["FP Russell Investments Multi Asset Growth V ","Mixed Investment 40-85% Shares",3,2,4,5,5,1,2,5]
["FP Russell Investments Multi Asset Income ","Mixed Investment 20-60% Shares",2,1,3,3,5,1,3,5]
["FP Russell Investments Real Assets ","Flexible Investment",5,4,4,1,5,1,4,2]
["FP Russell Investments UK Growth Assets ","UK All Companies",2,2,3,2,4,1,4,5]
["FP Volare Adventurous ","Mixed Investment 40-85% Shares",null,null,null,null,null,null,4,4]
["FP Volare Balanced ","Mixed Investment 40-85% Shares",1,4,1,1,1,4,2,1]
["FP Volare Cautious ","Mixed Investment 20-60% Shares",1,3,1,1,1,5,2,1]
["FP Volare Defensive ","Mixed Investment 20-60% Shares",1,5,1,1,1,4,4,1]
["FP Volare Growth ","Mixed Investment 40-85% Shares",2,3,2,1,2,5,2,2]
["FP Volare Strategic Income ","Mixed Investment 40-85% Shares",1,3,1,1,1,2,4,1]
["FP WHEB Sustainability ","Global",4,2,5,5,2,5,3,5]
["FSSA All China","China/Greater China ",1,1,3,1,1,2,1,1]
["FSSA Asia All Cap ","Asia Pacific Excluding Japan ",1,2,2,2,2,3,1,5]
["FSSA Asia Focus ","Asia Pacific Excluding Japan ",1,1,2,1,2,4,1,4]
["FSSA Global Emerging Markets Focus","Global Emerging Markets ",1,1,4,1,5,2,1,5]
["FSSA Greater China Growth ","China/Greater China ",2,2,1,1,4,1,5,2]
["FSSA Japan Focus ","Japan ",5,5,5,1,1,5,1,1]
["FTF Brandywine Global Income Optimiser ","Sterling Strategic Bond ",3,5,2,1,2,3,2,3]
["FTF ClearBridge US Equity Income ","North America ",1,2,1,2,3,2,4,4]
["FTF ClearBridge US Value ","North America ",3,1,4,5,5,1,5,5]
["FTF Franklin Sterling Corporate Bond ","Sterling Corporate Bond ",3,3,3,2,3,5,4,4]
["FTF Franklin UK Gilt ","UK Gilts ",2,4,1,3,2,3,5,4]
["FTF Franklin US Opportunities ","North America ",5,5,5,1,1,5,1,1]
["FTF Martin Currie Asia Unconstrained ","Asia Pacific Excluding Japan ",2,1,5,null,1,3,2,5]
["FTF Martin Currie Emerging Markets ","Global Emerging Markets ",5,3,5,5,2,4,5,5]
["FTF Martin Currie European Unconstrained ","Europe Excluding UK ",5,5,5,2,1,5,4,1]
["FTF Martin Currie Global Unconstrained ","Global",4,2,5,1,4,5,3,1]
["FTF Martin Currie Japan Equity ","Japan ",5,5,5,3,1,5,1,2]
["FTF Martin Currie UK Equity Income ","UK Equity Income ",1,1,3,3,1,3,2,2]
["FTF Martin Currie UK Managers Focus ","UK All Companies",4,4,4,4,2,3,4,2]
["FTF Martin Currie UK Mid Cap ","UK All Companies",4,4,5,4,4,3,4,4]
["FTF Martin Currie UK Opportunities ","UK All Companies",1,1,3,2,1,3,2,2]
["FTF Martin Currie UK Rising Dividends ","UK All Companies",1,1,3,3,1,3,1,1]
["FTF Martin Currie UK Smaller Companies ","UK Smaller Companies ",4,5,3,5,1,2,3,2]
["FTF Martin Currie US Unconstrained ","North America ",4,2,5,1,1,5,4,1]
["FTF Royce US Smaller Companies ","North American Smaller Companies",1,1,5,5,4,1,5,1]
["FTF Templeton Global Emerging Markets ","Global Emerging Markets ",1,1,5,4,2,3,3,1]
["FTF Templeton Global Leaders ","Global",4,2,4,5,1,4,5,2]
["FTF Templeton Global Total Return Bond ","Global Bonds ",5,3,5,5,4,2,5,3]
["FTF Western Asset Global Multi Strategy Bond ","Global Bonds ",4,3,5,5,5,3,5,5]
["Fundsmith Equity ","Global",1,1,2,1,1,4,1,1]
["GAM Disruptive Growth","Global",5,5,4,null,3,2,2,1]
["GAM UK Equity Income ","UK Equity Income ",3,3,4,2,4,1,3,5]
["Guinness TB Guinness Asian Equity Income ","Asia Pacific Excluding Japan ",3,3,3,null,null,1,3,2]
["Halifax Cautious Managed ","Mixed Investment 20-60% Shares",5,3,5,5,4,1,2,1]
["Halifax Corporate Bond ","Sterling Corporate Bond ",5,3,5,1,4,4,2,2]
["Halifax Ethical ","Global",4,4,2,2,4,2,2,3]
["Halifax European ","Europe Excluding UK ",3,3,2,3,3,2,2,3]
["Halifax Far Eastern ","Asia Pacific Excluding Japan ",4,4,3,3,3,4,4,3]
["Halifax Fund of Investment Trusts ","Global",5,4,4,4,5,4,4,4]
["Halifax International Growth ","Global",3,3,1,4,3,2,3,4]
["Halifax Japanese ","Japan ",4,3,4,2,3,2,4,4]
["Halifax North American ","North America ",2,4,1,4,1,3,2,2]
["Halifax Smaller Companies ","UK Smaller Companies ",3,1,5,1,5,4,4,4]
["Halifax Special Situations ","UK All Companies",1,1,4,1,4,1,1,1]
["Halifax UK Equity Income ","UK Equity Income ",3,3,3,2,2,4,2,2]
["Halifax UK Equity Tracker ","UK All Companies",3,3,2,4,3,3,3,4]
["Halifax UK Growth ","UK All Companies",3,3,3,3,2,4,3,4]
["Halifax UK Large Company Tracker ","UK All Companies",1,1,1,3,2,2,2,4]
["Handelsbanken Adventurous ","Global",4,5,2,null,3,4,4,3]
["Handelsbanken Balanced Sustainable Multi Asset ","Mixed Investment 20-60% Shares",5,4,5,null,3,5,4,5]
["Handelsbanken Cautious Sustainable Multi Asset ","Mixed Investment 0-35% Shares ",5,4,5,null,4,5,5,4]
["Handelsbanken Defensive Sustainable Multi Asset ","Mixed Investment 0-35% Shares ",4,3,3,null,2,4,4,2]
["Handelsbanken Growth Sustainable Multi Asset ","Mixed Investment 40-85% Shares",5,5,4,null,4,5,5,4]
["HSBC American Index ","North America ",3,2,3,3,3,3,3,2]
["HSBC Balanced ","Mixed Investment 40-85% Shares",3,4,2,5,4,2,3,4]
["HSBC Corporate Bond ","Sterling Corporate Bond ",4,2,4,3,5,4,4,3]
["HSBC Europe Ex-UK Equity ","Europe Excluding UK ",3,3,4,null,null,null,1,1]
["HSBC European Index ","Europe Excluding UK ",3,3,3,3,3,3,2,3]
["HSBC FTSE 100 Index ","UK All Companies",1,1,1,3,1,2,2,2]
["HSBC FTSE 250 Index ","UK All Companies",5,5,5,5,5,4,4,4]
["HSBC FTSE All Share Index ","UK All Companies",2,2,1,4,2,2,2,3]
["HSBC Global Property ","Property Other ",3,4,2,4,3,2,3,3]
["HSBC Income ","UK Equity Income ",1,1,1,3,4,1,2,3]
["HSBC Japan Index ","Japan ",3,4,2,2,2,3,4,2]
["HSBC Monthly Income ","Mixed Investment 40-85% Shares",1,1,5,5,5,1,3,4]
["HSBC Pacific Index ","Asia Pacific Excluding Japan ",4,4,3,2,5,2,5,2]
["HSBC UK Gilt Index ","UK Gilts ",3,5,2,2,2,2,3,4]
["HSBC UK Growth & Income ","UK All Companies",1,1,2,4,4,1,2,4]
["HSBC World Selection Dividend Distribution Portfolio ","Mixed Investment 20-60% Shares",4,4,3,3,3,3,5,5]
["Huntress IFSL Ravenscroft Balanced ","Mixed Investment 20-60% Shares",2,3,2,1,1,5,3,2]
["IFSL ACUMEN Income Portfolio ","Mixed Investment 20-60% Shares",2,1,3,5,5,1,5,5]
["IFSL ACUMEN Portfolio 3 ","Mixed Investment 0-35% Shares ",3,5,1,1,4,5,1,1]
["IFSL ACUMEN Portfolio 4 ","Mixed Investment 20-60% Shares",3,5,1,4,5,4,1,1]
["IFSL ACUMEN Portfolio 5 ","Mixed Investment 20-60% Shares",3,5,1,5,5,5,2,2]
["IFSL ACUMEN Portfolio 6 ","Mixed Investment 40-85% Shares",4,5,1,5,5,5,3,1]
["IFSL ACUMEN Portfolio 7 ","Mixed Investment 40-85% Shares",3,5,1,5,5,5,3,1]
["IFSL ACUMEN Portfolio 8 ","Flexible Investment",3,5,1,5,5,5,3,2]
["IFSL AMR Diversified Portfolio ","Mixed Investment 40-85% Shares",5,3,5,5,5,2,2,5]
["IFSL Avellemy European Equity ","Europe Excluding UK ",3,3,1,null,null,null,3,2]
["IFSL Avellemy UK Equity ","UK All Companies",4,4,2,null,null,null,3,1]
["IFSL Avellemy UK Equity Income ","UK Equity Income ",1,1,3,null,null,null,2,2]
["IFSL Avellemy US Equity ","North America ",2,1,5,null,null,null,1,1]
["IFSL CAF Alternative Strategies ","Targeted Absolute Return ",4,4,3,3,3,4,3,3]
["IFSL CAF ESG Cautious ","Mixed Investment 0-35% Shares ",null,null,null,null,null,null,2,5]
["IFSL CAF ESG Growth ","Flexible Investment",null,null,null,null,null,null,2,2]
["IFSL CAF ESG Income and Growth ","Mixed Investment 20-60% Shares",null,null,null,null,null,null,1,1]
["IFSL CAF Fixed Interest ","Sterling Strategic Bond ",3,3,2,2,3,5,2,1]
["IFSL CAF International Equity ","Global",3,4,1,4,2,3,3,2]
["IFSL CAF UK Equity ","UK All Companies",2,2,1,3,1,3,1,3]
["IFSL Church House Balanced Equity Income ","Mixed Investment 40-85% Shares",5,1,5,3,5,1,1,2]
["IFSL Church House Investment Grade Fixed Interest","Sterling Corporate Bond ",1,4,1,5,2,2,5,5]
["IFSL Church House Tenax Absolute Return Strategies ","Targeted Absolute Return ",4,3,4,4,2,4,3,4]
["IFSL Church House UK Equity Growth","UK All Companies",4,4,4,4,1,5,1,1]
["IFSL Church House UK Smaller Companies ","UK Smaller Companies ",2,1,4,5,1,4,1,2]
["IFSL CPN Defensive Strategy ","Mixed Investment 0-35% Shares "]
["IFSL CPN Global Opportunities ","Global"]
["IFSL Equilibrium Adventurous Portfolio ","Mixed Investment 20-60% Shares",5,5,5,4,5,4,5,5]
["IFSL Equilibrium Balanced Portfolio ","Mixed Investment 20-60% Shares",4,5,3,3,4,2,4,4]
["IFSL Equilibrium Cautious Portfolio ","Mixed Investment 20-60% Shares",3,5,2,2,4,2,4,2]
["IFSL Equilibrium Defensive Portfolio ","Global Bonds ",3,5,2,null,null,2,5,4]
["IFSL Equilibrium Global Equity Portfolio ","Global",5,5,2,null,null,4,5,3]
["IFSL Hathaway ","Mixed Investment 40-85% Shares",5,3,5,1,5,1,5,1]
["IFSL IFSL Rockhold Fixed Interest ","Global Bonds ",2,5,1,null,null,null,3,3]
["IFSL IFSL Rockhold Global Equity ","Global",2,4,1,null,null,null,4,3]
["IFSL Marlborough Balanced ","Mixed Investment 40-85% Shares",2,4,1,3,1,2,4,4]
["IFSL Marlborough Bond Income ","Sterling Corporate Bond ",4,3,3,4,3,2,3,3]
["IFSL Marlborough Cautious ","Mixed Investment 20-60% Shares",1,4,1,2,2,4,3,4]
["IFSL Marlborough Conservative ","Mixed Investment 0-35% Shares ",1,5,1,null,null,4,4,4]
["IFSL Marlborough European Special Situations ","Europe Excluding UK ",5,5,2,3,5,1,4,3]
["IFSL Marlborough Extra Income ","Mixed Investment 40-85% Shares",1,1,3,5,5,1,3,1]
["IFSL Marlborough Far East Growth ","Asia Pacific Excluding Japan ",5,5,1,5,1,2,5,3]
["IFSL Marlborough Global ","Global",3,5,1,3,1,4,4,3]
["IFSL Marlborough Global Bond ","Global Bonds ",3,4,3,3,3,4,3,3]
["IFSL Marlborough Global Innovation ","Global",5,5,5,5,5,1,5,5]
["IFSL Marlborough Global SmallCap ","Global",null,null,null,null,null,null,null,5]
["IFSL Marlborough High Yield Fixed Interest ","Sterling High Yield ",1,1,2,4,3,1,4,3]
["IFSL Marlborough Multi Cap Income ","UK Equity Income ",5,5,5,2,5,5,3,3]
["IFSL Marlborough Multi-Cap Growth ","UK All Companies",5,5,5,1,2,5,1,3]
["IFSL Marlborough Special Situations ","UK All Companies",5,5,2,1,4,4,5,3]
["IFSL Marlborough UK Micro-Cap Growth ","UK Smaller Companies ",3,5,1,2,2,5,4,3]
["IFSL Marlborough US Multi-Cap Income ","North America ",1,2,1,1,1,2,1,4]
["IFSL Mazarin Adventurous ","Flexible Investment",3,3,3,null,null,5,3,3]
["IFSL Mazarin Balanced ","Mixed Investment 40-85% Shares",2,3,2,null,2,3,4,2]
["IFSL Mazarin Cautious ","Mixed Investment 20-60% Shares",1,4,1,null,3,3,5,2]
["IFSL Meon Adaptive Growth ","Global",null,null,null,null,null,null,1,2]
["IFSL RC Brown UK Primary Opportunities ","UK All Companies",4,5,1,2,2,2,4,4]
["IFSL Sanlam Balanced ","Mixed Investment 40-85% Shares",3,4,1,3,3,4,4,1]
["IFSL Sanlam Cautious ","Mixed Investment 20-60% Shares",4,3,3,2,3,4,4,1]
["IFSL Sanlam Conservative ","Mixed Investment 0-35% Shares ",4,2,4,null,null,3,5,1]
["IFSL Sanlam Defensive ","Mixed Investment 20-60% Shares",4,3,3,null,1,4,4,1]
["IFSL Sanlam Growth ","Flexible Investment",3,4,2,4,4,4,4,2]
["IFSL Signia Balanced ","Mixed Investment 20-60% Shares",4,4,3,5,3,4,2,2]
["IFSL Signia Conservative ","Mixed Investment 0-35% Shares ",2,3,2,5,3,2,3,3]
["IFSL Signia Growth ","Mixed Investment 40-85% Shares",5,5,4,5,4,4,3,2]
["IFSL Signia Sovereign ","Global Bonds ",1,2,1,3,2,3,2,2]
["IFSL Titan Equity Growth ","Global"]
["IFSL YOU Adventurous ","Flexible Investment",null,null,null,null,null,null,null,4]
["IFSL YOU Multi-Asset Blend Balanced ","Mixed Investment 20-60% Shares",2,3,2,null,1,3,3,4]
["IFSL YOU Multi-Asset Blend Cautious ","Mixed Investment 0-35% Shares ",null,null,null,null,null,null,null,4]
["IFSL YOU Multi-Asset Blend Growth ","Mixed Investment 40-85% Shares",2,2,3,null,1,3,4,4]
["Invesco Asian (UK)","Asia Pacific Excluding Japan ",1,1,4,4,4,2,1,1]
["Invesco Asian Equity Income (UK) ","Asia Pacific Excluding Japan ",1,1,5,1,5,2,1,3]
["Invesco China Equity (UK)","China/Greater China ",1,1,1,2,1,2,5,1]
["Invesco Corporate Bond (UK)","Sterling Corporate Bond ",2,1,4,5,2,2,4,4]
["Invesco Distribution (UK)","Mixed Investment 20-60% Shares",4,1,5,4,4,3,3,4]
["Invesco Emerging Markets ex China (UK)","Global Emerging Markets ",1,1,1,1,5,1,5,1]
["Invesco Environmental Climate Opportunities Bond (UK) ","Sterling Strategic Bond ",2,1,3,null,null,null,3,4]
["Invesco European Equity (UK) ","Europe Excluding UK ",1,1,3,5,5,1,5,5]
["Invesco European Equity Income (UK) ","Europe Excluding UK ",1,1,2,5,4,1,5,4]
["Invesco European Focus (UK) ","Europe Excluding UK ",1,1,4,4,2,1,5,5]
["Invesco European Smaller Companies (UK)","European Smaller Companies",1,1,3,4,1,1,5,5]
["Invesco Global Bond (UK)","Global Bonds ",2,1,2,3,3,5,3,4]
["Invesco Global Emerging Markets (UK)","Global Emerging Markets ",1,1,4,5,4,2,2,1]
["Invesco Global Equity (UK)","Global",1,1,4,5,5,2,2,1]
["Invesco Global Equity Income (UK) ","Global Equity Income ",1,1,5,5,4,4,3,4]
["Invesco Global Ex UK Enhanced Index (UK)","Global",3,3,3,4,3,2,3,4]
["Invesco Global Financial Capital (UK) ","Specialist ",2,1,5,5,5,1,4,5]
["Invesco Global Focus (UK)","Global",5,3,5,5,1,5,1,1]
["Invesco Global Smaller Companies (UK)","Global",4,2,4,4,5,2,5,5]
["Invesco Global Targeted Income (UK) ","Targeted Absolute Return ",1,1,1,2,2,3,1,1]
["Invesco Global Targeted Returns (UK) ","Targeted Absolute Return ",1,1,2,2,1,5,1,1]
["Invesco High Yield (UK)","Sterling High Yield ",4,5,2,5,4,1,3,5]
["Invesco Income & Growth (UK)","UK All Companies",3,3,3,1,4,5,1,1]
["Invesco Japanese Smaller Companies (UK)","Japanese Smaller Companies",5,5,3,3,3,5,3,1]
["Invesco Managed Growth (UK)","Flexible Investment",1,1,4,5,5,1,4,5]
["Invesco Managed Income (UK)","Mixed Investment 40-85% Shares",1,1,4,5,5,2,4,5]
["Invesco Monthly Income Plus (UK)","Sterling Strategic Bond ",3,2,3,5,5,2,4,5]
["Invesco Responsible Japanese Equity Value Discovery (UK)","Japan ",4,4,1,4,5,3,2,3]
["Invesco Sustainable UK Companies (UK) ","UK All Companies",4,4,5,5,4,2,3,1]
["Invesco Tactical Bond (UK)","Sterling Strategic Bond ",1,1,2,5,2,2,2,4]
["Invesco UK Equity High Income (UK)","UK All Companies",3,3,2,5,4,2,2,2]
["Invesco UK Equity Income (UK)","UK All Companies",3,3,3,5,4,2,2,2]
["Invesco UK Opportunities (UK)","UK All Companies",1,1,3,5,4,1,4,2]
["Invesco UK Smaller Companies Equity (UK)","UK Smaller Companies ",4,3,4,3,4,3,5,2]
["Invesco US Equity (UK)","North America ",3,4,2,5,3,2,2,3]
["iShares 100 UK Equity Index (UK) ","UK All Companies",1,1,1,3,2,2,2,3]
["iShares 350 UK Equity Index (UK) ","UK All Companies",2,2,2,4,2,3,2,4]
["iShares Continental European Equity Index (UK) ","Europe Excluding UK ",3,2,3,2,3,3,2,3]
["iShares Corporate Bond Index (UK) ","Sterling Corporate Bond ",3,3,2,1,4,4,1,1]
["iShares Emerging Markets Equity Index (UK) ","Global Emerging Markets ",2,3,2,3,1,3,2,3]
["iShares Environment & Low Carbon Tilt Real Estate Index ","Property Other ",2,3,3,2,4,1,1,5]
["iShares ESG Overseas Corporate Bond Index (UK) ","Global Bonds ",1,1,2,1,3,5,2,5]
["iShares Index Linked Gilt Index (UK) ","UK Index Linked Gilts ",4,3,4,2,4,3,4,1]
["iShares Japan Equity Index (UK) ","Japan ",2,2,2,3,1,4,3,1]
["iShares Mid Cap UK Equity Index (UK) ","UK All Companies",5,4,5,5,5,4,4,3]
["iShares North American Equity Index (UK) ","North America ",4,3,3,2,3,4,3,3]
["iShares Over 15 Years Corporate Bond Index ","Sterling Corporate Bond ",5,5,5,1,5,5,5,1]
["iShares Over 15 Years Gilts Index (UK) ","UK Gilts ",5,5,5,1,1,5,5,1]
["iShares Overseas Government Bond Index (UK) ","Global Bonds ",2,2,2,1,1,5,1,2]
["iShares Pacific ex Japan Equity Index (UK) ","Asia Pacific Excluding Japan ",4,4,3,2,5,2,5,1]
["iShares UK Equity Index (UK) ","UK All Companies",2,2,1,4,2,3,2,2]
["iShares UK Gilts All Stocks Index (UK) ","UK Gilts ",3,4,2,2,3,2,4,3]
["iShares US Equity Index (UK) ","North America ",3,3,3,3,3,4,2,2]
["Janus Henderson Absolute Return","Targeted Absolute Return ",1,1,2,null,2,2,2,3]
["Janus Henderson All Stocks Credit","Sterling Corporate Bond ",3,5,2,null,2,4,2,1]
["Janus Henderson Asia Pacific Capital Growth","Asia Pacific Excluding Japan ",4,3,4,null,1,5,2,5]
["Janus Henderson Asian Dividend Income Unit Trust","Asia Pacific Excluding Japan ",4,5,1,null,4,2,5,2]
["Janus Henderson Cautious Managed","Mixed Investment 20-60% Shares",3,1,5,null,5,1,3,2]
["Janus Henderson China Opportunities","China/Greater China ",5,5,4,null,4,4,4,5]
["Janus Henderson Diversified Growth ","Flexible Investment",3,2,3,1,1,3,3,1]
["Janus Henderson Emerging Markets Opportunities","Global Emerging Markets ",4,5,4,null,3,3,4,4]
["Janus Henderson European Absolute Return","Targeted Absolute Return ",2,1,4,null,3,1,3,5]
["Janus Henderson European Focus","Europe Excluding UK ",2,3,3,null,3,2,4,5]
["Janus Henderson European Growth","Europe Excluding UK ",1,2,2,null,4,2,3,3]
["Janus Henderson European Selected Opportunities","Europe Excluding UK ",1,1,3,null,2,2,4,5]
["Janus Henderson European Smaller Companies","European Smaller Companies",1,1,2,null,4,1,5,5]
["Janus Henderson Fixed Interest Monthly Income","Sterling Strategic Bond ",5,2,5,null,5,4,2,1]
["Janus Henderson Global Equity","Global",4,5,3,null,2,5,1,5]
["Janus Henderson Global Equity Income","Global Equity Income ",1,1,1,null,2,3,3,3]
["Janus Henderson Global Property Equities ","Property Other ",null,null,null,null,null,null,null,5]
["Janus Henderson Global Responsible Managed","Mixed Investment 40-85% Shares",4,2,5,null,3,5,1,2]
["Janus Henderson Global Sustainable Equity","Global",4,3,4,null,3,5,2,2]
["Janus Henderson Global Technology Leaders","Technology & Technology Innovation",1,2,1,null,4,2,2,3]
["Janus Henderson Index-Linked Bond G","UK Index Linked Gilts ",5,4,5,null,5,5,5,1]
["Janus Henderson Inst Japan Index Opportunities ","Japan ",3,3,3,3,2,4,2,2]
["Janus Henderson Inst Long Dated Credit","Sterling Corporate Bond ",5,5,5,null,5,5,5,1]
["Janus Henderson Inst Long Dated Gilt","UK Gilts ",5,5,5,null,1,5,5,1]
["Janus Henderson Inst North American Index Opportunities ","North America ",4,4,3,3,4,4,3,2]
["Janus Henderson Inst Overseas Bond ","Global Bonds ",2,3,2,1,1,5,1,2]
["Janus Henderson Inst UK Equity Tracker Trust ","UK All Companies",3,3,2,4,3,3,2,4]
["Janus Henderson Inst UK Gilt","UK Gilts ",3,4,3,null,4,5,5,1]
["Janus Henderson Inst UK Index Opportunities Trust","UK All Companies",3,3,2,null,3,2,2,3]
["Janus Henderson Japan Opportunities","Japan ",3,3,3,null,4,4,5,5]
["Janus Henderson Multi-Asset Absolute Return","Targeted Absolute Return ",2,2,3,null,4,3,5,4]
["Janus Henderson Multi-Manager Active","Flexible Investment",3,3,3,null,2,2,3,3]
["Janus Henderson Multi-Manager Distribution","Mixed Investment 20-60% Shares",3,4,2,null,3,2,3,3]
["Janus Henderson Multi-Manager Diversified","Mixed Investment 0-35% Shares ",3,1,4,null,4,2,4,2]
["Janus Henderson Multi-Manager Global Select","Global",3,4,1,null,4,2,3,3]
["Janus Henderson Multi-Manager Income & Growth","Mixed Investment 20-60% Shares",2,2,3,null,3,1,3,3]
["Janus Henderson Multi-Manager Managed","Mixed Investment 40-85% Shares",2,3,3,null,2,1,3,3]
["Janus Henderson Sterling Bond Unit Trust","Sterling Corporate Bond ",3,4,2,null,2,4,2,1]
["Janus Henderson Strategic Bond","Sterling Strategic Bond ",4,4,4,null,3,5,1,1]
["Janus Henderson UK Alpha","UK All Companies",5,4,5,null,5,4,5,5]
["Janus Henderson UK Equity Income & Growth","UK Equity Income ",3,3,4,null,4,3,2,4]
["Janus Henderson UK Responsible Income","UK Equity Income ",3,3,4,null,2,5,1,2]
["Janus Henderson UK Smaller Companies","UK Smaller Companies ",4,2,5,null,4,4,2,4]
["Janus Henderson US Growth","North America ",5,4,4,null,1,5,3,1]
["Janus Henderson US Sustainable Equity ","North America ",null,null,null,null,null,null,null,2]
["JGF-Jupiter Investment Grade Bond","Sterling Corporate Bond ",5,5,5,1,3,4,5,3]
["JGF-Jupiter Merian Asia Pacific","Asia Pacific Excluding Japan ",3,4,3,5,3,3,4,4]
["JGF-Jupiter Merian Global Equity","Global",2,2,2,4,5,2,3,4]
["JGF-Jupiter Merian Global Strategic Bond ","Sterling Strategic Bond ",1,1,1,1,1,1,2,4]
["JGF-Jupiter Merian North American Equity","North America ",1,2,2,4,5,4,3,3]
["JGF-Jupiter Monthly Income Bond","Sterling Strategic Bond ",2,4,2,4,4,1,4,5]
["JGF-Jupiter UK Alpha","UK All Companies",2,2,4,null,4,2,4,5]
["JGF-Jupiter UK Mid Cap","UK All Companies",5,5,5,4,5,4,5,4]
["JGF-Jupiter UK Smaller Companies","UK Smaller Companies ",5,4,5,4,4,5,5,3]
["JOHCM Global Opportunities ","Global",1,1,1,1,1,1,3,5]
["JOHCM Regnan Global Equity Impact Solutions ","Global",5,3,5,null,null,5,3,3]
["JOHCM Regnan Sustainable Water and Waste ","Global",2,2,3,null,null,null,3,4]
["JOHCM UK Dynamic ","UK All Companies",1,1,4,4,5,1,4,5]
["JOHCM UK Equity Income ","UK Equity Income ",4,4,5,5,5,1,5,5]
["JOHCM UK Opportunities ","UK All Companies",1,1,4,1,1,4,3,1]
["JPM Emerging Markets Sustainable Equity ","Global Emerging Markets ",2,2,3,null,null,4,1,3]
["JPM Europe (ex-UK) Research Enhanced Index Equity ","Europe Excluding UK ",1,1,2,null,3,2,1,2]
["JPM Global Research Enhanced Index Equity ","Global",2,3,2,null,4,2,2,3]
["JPM JPM Climate Change Solutions ","Global",2,1,5,null,null,null,5,5]
["JPM Multi Asset Income ","Mixed Investment 20-60% Shares",5,3,5,3,5,1,2,1]
["JPM Multi-Asset Cautious ","Mixed Investment 0-35% Shares ",4,3,4,null,3,3,1,1]
["JPM Multi-Asset Growth ","Flexible Investment",3,2,4,null,4,1,2,2]
["JPM Multi-Asset Moderate ","Mixed Investment 40-85% Shares",4,3,4,null,2,2,1,1]
["JPM UK Equity Core ","UK All Companies",2,2,2,3,3,2,2,4]
["JPM UK Equity Index ","UK All Companies",2,2,2,null,3,3,2,3]
["JPM US Research Enhanced Index Equity ","North America ",2,3,2,null,4,2,3,2]
["Jupiter Asian Income ","Asia Pacific Excluding Japan ",1,1,1,3,4,1,5,2]
["Jupiter China ","China/Greater China ",1,1,3,3,5,1,2,2]
["Jupiter Corporate Bond ","Sterling Corporate Bond ",5,5,4,1,3,3,5,5]
["Jupiter Ecology ","Global",1,1,5,4,3,3,4,4]
["Jupiter European ","Europe Excluding UK ",4,4,4,1,1,5,1,1]
["Jupiter European Smaller Companies ","European Smaller Companies",4,4,4,null,null,5,1,1]
["Jupiter European Special Situations ","Europe Excluding UK ",5,5,5,2,1,5,1,1]
["Jupiter Flexible Macro ","Targeted Absolute Return ",5,5,3,1,1,5,4,3]
["Jupiter Fund of Investment Trusts ","Global",5,5,4,3,5,5,5,4]
["Jupiter Global Emerging Markets ","Global Emerging Markets ",5,5,3,4,5,1,3,5]
["Jupiter Global Sustainable Equities ","Global",2,2,3,2,1,5,3,3]
["Jupiter Global Value Equity ","Global",1,1,2,5,4,1,4,5]
["Jupiter Growth & Income ","UK All Companies",1,1,3,4,4,1,4,5]
["Jupiter Income Trust ","UK Equity Income ",1,1,3,5,2,1,3,5]
["Jupiter Japan Income ","Japan ",2,2,3,1,4,2,1,4]
["Jupiter Merlin Balanced Portfolio ","Mixed Investment 40-85% Shares",1,1,4,1,1,1,5,5]
["Jupiter Merlin Conservative Portfolio ","Mixed Investment 0-35% Shares ",5,1,5,3,3,2,4,3]
["Jupiter Merlin Growth Portfolio ","Flexible Investment",2,1,4,3,3,2,4,5]
["Jupiter Merlin Income Portfolio ","Mixed Investment 20-60% Shares",1,1,3,3,2,2,4,4]
["Jupiter Merlin Real Return ","Targeted Absolute Return ",4,4,3,1,4,3,4,4]
["Jupiter Merlin Worldwide Portfolio ","Global",2,2,2,2,2,2,5,4]
["Jupiter Monthly Alternative Income ","Specialist ",5,5,3,3,5,2,4,4]
["Jupiter Multi-Asset Income ","Mixed Investment 0-35% Shares ",4,5,3,3,3,1,5,5]
["Jupiter Multi-Asset Income and Growth ","Mixed Investment 40-85% Shares",1,3,1,5,5,2,2,5]
["Jupiter Responsible Income ","UK All Companies",3,4,1,4,1,4,1,1]
["Jupiter Strategic Bond ","Sterling Strategic Bond ",4,4,4,1,2,4,2,2]
["Jupiter UK Growth ","UK All Companies",3,3,1,5,5,5,1,1]
["Jupiter UK Opportunities ","Targeted Absolute Return ",1,2,1,3,1,3,3,2]
["Jupiter UK Smaller Companies Equity ","UK Smaller Companies ",4,3,4,5,5,3,5,3]
["Jupiter UK Special Situations ","UK All Companies",1,1,3,5,3,1,4,5]
["L&G (N) Tracker Trust ","UK All Companies",2,2,1,3,2,3,2,3]
["L&G Active Global High Yield Bond ","Sterling High Yield ",4,5,4,5,5,5,3,2]
["L&G Active Short Dated Sterling Corporate Bond ","Sterling Corporate Bond ",1,3,1,5,3,1,4,5]
["L&G Active Sterling Corporate Bond","Sterling Corporate Bond ",4,3,4,3,5,5,3,2]
["L&G Active Sterling Corporate Bond Plus","Sterling Corporate Bond ",4,3,4,3,4,3,4,3]
["L&G All Stocks Gilt Index Trust ","UK Gilts ",2,4,2,2,3,2,4,3]
["L&G All Stocks Index Linked Gilt Index Trust ","UK Index Linked Gilts ",2,3,3,2,3,2,2,3]
["L&G Asia Pacific Equity Income ","Asia Pacific Excluding Japan ",1,2,1,2,5,1,4,2]
["L&G European Equity Income ","Europe Excluding UK ",2,2,3,5,5,1,5,5]
["L&G European Index Trust ","Europe Excluding UK ",2,2,2,2,3,3,2,3]
["L&G Future World Climate Change Equity Factors Index ","Global",2,2,2,2,4,1,4,2]
["L&G Future World ESG Developed Index ","Global",3,3,3,3,3,3,3,2]
["L&G Future World ESG UK Index ","UK All Companies",3,4,2,3,2,3,1,3]
["L&G Future World Sustainable European Equity Focus ","Europe Excluding UK ",5,5,5,5,1,5,4,1]
["L&G Future World Sustainable Opportunities ","Mixed Investment 20-60% Shares",1,1,5,5,1,5,5,1]
["L&G Future World Sustainable UK Equity ","UK All Companies",4,4,5,5,5,5,3,2]
["L&G Future World Sustainable UK Equity Focus","UK All Companies",5,5,5,5,4,5,4,1]
["L&G Global 100 Index Trust ","Global",3,2,3,4,2,3,3,1]
["L&G Global Emerging Markets Index ","Global Emerging Markets ",3,3,2,2,1,3,3,3]
["L&G Global Equity Index ","Global",3,3,4,3,4,3,4,3]
["L&G Global Inflation Linked Bond Index ","Global Bonds ",5,3,5,3,4,3,1,2]
["L&G Global Real Estate Dividend Index ","Property Other ",2,4,2,2,5,1,2,4]
["L&G Global Technology Index Trust ","Technology & Technology Innovation",2,1,4,4,3,1,5,1]
["L&G International Index Trust ","Global",3,2,4,3,4,3,4,3]
["L&G Japan Index Trust","Japan ",2,3,2,2,2,3,3,2]
["L&G Mixed Investment 0-35% ","Mixed Investment 0-35% Shares ",3,1,5,4,5,3,2,3]
["L&G Mixed Investment 20-60% ","Mixed Investment 20-60% Shares",4,1,5,4,4,4,2,2]
["L&G Mixed Investment 40-85% ","Mixed Investment 40-85% Shares",4,2,5,4,5,3,3,2]
["L&G Mixed Investment Income 0-35% ","Mixed Investment 0-35% Shares ",3,1,5,4,5,3,4,3]
["L&G Mixed Investment Income 20-60% ","Mixed Investment 20-60% Shares",4,1,5,3,5,2,4,3]
["L&G MSCI World Socially Responsible Investment (SRI) Index","Global",4,3,4,5,5,4,3,1]
["L&G Multi Manager Balanced Trust ","Mixed Investment 40-85% Shares",3,3,4,3,4,2,4,4]
["L&G Multi Manager Growth Trust ","Flexible Investment",3,2,3,3,3,2,4,4]
["L&G Multi Manager Income Trust ","Mixed Investment 20-60% Shares",4,3,4,4,4,2,4,4]
["L&G Multi-Asset Target Return ","Targeted Absolute Return ",4,2,4,5,4,4,5,2]
["L&G Pacific Index Trust","Asia Pacific Excluding Japan ",4,4,3,1,5,2,5,2]
["L&G Short Dated Sterling Corporate Bond Index ","Sterling Corporate Bond ",1,2,1,4,1,1,2,4]
["L&G Sterling Corporate Bond Index ","Sterling Corporate Bond ",2,4,2,1,2,4,1,1]
["L&G Strategic Bond ","Sterling Strategic Bond ",1,1,2,3,3,1,5,5]
["L&G UK 100 Index Trust ","UK All Companies",1,1,1,3,2,2,2,3]
["L&G UK 350 Index","UK All Companies",2,2,1,null,2,3,2,3]
["L&G UK Equity Income ","UK Equity Income ",2,2,3,5,5,1,3,5]
["L&G UK Index Trust","UK All Companies",2,2,1,4,2,3,2,3]
["L&G UK Mid Cap Index ","UK All Companies",5,4,5,5,5,3,5,5]
["L&G UK Smaller Companies Trust ","UK Smaller Companies ",2,1,4,5,3,3,1,4]
["L&G US Index Trust","North America ",4,3,4,4,4,4,5,2]
["L&G Worldwide Trust ","Flexible Investment",4,2,5,4,4,3,4,4]
["Lazard Developing Markets ","Global Emerging Markets ",3,2,4,5,5,2,5,3]
["Lazard Emerging Markets ","Global Emerging Markets ",2,1,1,1,4,1,5,1]
["Lazard European Alpha ","Europe Excluding UK ",3,3,1,3,3,3,4,4]
["Lazard European Smaller Companies ","European Smaller Companies",5,5,2,3,5,2,4,3]
["Lazard Global Equity Income ","Global Equity Income ",5,4,3,4,4,2,4,5]
["Lazard Managed Balanced ","Mixed Investment 40-85% Shares",5,2,5,2,3,2,2,4]
["Lazard Managed Equity ","Global",1,1,3,2,5,1,3,5]
["Lazard Multicap UK Income ","UK Equity Income ",3,3,3,2,3,2,3,4]
["Lazard UK Omega ","UK All Companies",1,1,4,4,3,2,3,5]
["LF Adam Worldwide ","Global",2,3,1,2,5,2,3,2]
["LF Aegon Multi-Asset 1 ","Mixed Investment 0-35% Shares ",4,2,4,null,1,4,1,1]
["LF Aegon Multi-Asset 2 ","Mixed Investment 0-35% Shares ",3,1,4,null,1,4,1,2]
["LF Aegon Multi-Asset 3 ","Mixed Investment 20-60% Shares",3,2,3,null,1,4,1,2]
["LF Aegon Multi-Asset 4 ","Mixed Investment 40-85% Shares",2,2,3,null,2,3,1,3]
["LF Aegon Multi-Asset 5 ","Mixed Investment 40-85% Shares",1,1,4,null,4,2,2,5]
["LF Aegon Multi-Asset Income 2 ","Mixed Investment 0-35% Shares ",4,2,5,null,2,3,1,3]
["LF Aegon Multi-Asset Income 3 ","Mixed Investment 20-60% Shares",4,2,4,null,2,3,1,2]
["LF Bentley Global Growth ","Flexible Investment",5,4,3,2,3,5,2,3]
["LF Bentley Sterling Income ","Specialist ",4,5,1,2,1,3,1,1]
["LF Bentley US Dollar Balanced ","Specialist ",3,4,1,1,1,4,1,3]
["LF Blue Whale Growth ","Global",5,4,5,1,2,5,2,2]
["LF Brook Absolute Return ","Targeted Absolute Return ",1,1,5,1,5,1,5,5]
["LF Brook Continental European ","Europe Excluding UK ",1,1,5,1,4,1,5,5]
["LF Canlife Asia Pacific ","Asia Pacific Excluding Japan ",5,5,4,3,2,4,3,4]
["LF Canlife Corporate Bond ","Sterling Corporate Bond ",3,2,3,2,5,4,3,2]
["LF Canlife European ","Europe Excluding UK ",2,2,2,2,4,3,2,2]
["LF Canlife Global Equity ","Global",2,2,3,4,3,2,2,3]
["LF Canlife Global Equity Income ","Global Equity Income ",5,5,3,3,2,5,1,2]
["LF Canlife Global Macro Bond ","Global Bonds ",4,2,4,2,2,4,5,5]
["LF Canlife North American ","North America ",3,2,4,2,2,4,3,3]
["LF Canlife Portfolio III ","Mixed Investment 0-35% Shares ",4,3,4,2,2,2,2,3]
["LF Canlife Portfolio IV ","Mixed Investment 20-60% Shares",4,2,4,2,1,2,2,3]
["LF Canlife Portfolio V ","Mixed Investment 40-85% Shares",2,2,3,2,1,2,2,3]
["LF Canlife Portfolio VI ","Mixed Investment 40-85% Shares",2,2,3,4,3,3,2,5]
["LF Canlife Portfolio VII ","Flexible Investment",2,1,4,5,4,2,3,5]
["LF Canlife Short Duration Corporate Bond ","Sterling Corporate Bond ",1,1,1,5,1,1,2,5]
["LF Canlife UK Equity ","UK All Companies",2,2,3,5,4,2,2,5]
["LF Canlife UK Equity and Bond Income ","Specialist ",2,1,4,5,5,1,4,5]
["LF Canlife UK Equity Income ","UK Equity Income ",2,2,2,4,3,2,2,4]
["LF Canlife UK Government Bond ","UK Gilts ",4,5,3,4,2,3,4,3]
["LF Cautela ","Flexible Investment",4,4,2,1,3,2,4,1]
["LF Equity Income ","UK Equity Income ",5,5,5,5,1,5,5]
["LF Gresham House UK Micro Cap ","UK Smaller Companies ",1,5,1,2,1,2,2,1]
["LF Gresham House UK Multi Cap Income ","UK Equity Income ",4,5,1,1,1,2,2,1]
["LF Gresham House UK Smaller Companies ","UK Smaller Companies ",1,2,1,2,4,1,1,1]
["LF Havelock Global Select ","Global",1,1,4,4,4,1,3,4]
["LF IM Balanced Portfolio ","Mixed Investment 20-60% Shares",5,5,4,3,4,1,1,4]
["LF IM Global Strategy ","Flexible Investment",4,5,2,5,4,5,2,4]
["LF Lightman European ","Europe Excluding UK ",2,1,3,5,5,1,5,5]
["LF Montanaro Better World ","Global",5,5,5,1,2,5,1,2]
["LF Montanaro European Income ","Europe Excluding UK ",5,4,4,1,4,5,3,2]
["LF Montanaro Global Select ","Global",5,2,5,null,2,5,1,2]
["LF Montanaro UK Income ","UK All Companies",5,5,5,2,3,5,5,1]
["LF Morant Wright Nippon Yield","Japan ",1,1,1,5,4,1,2,5]
["LF Odey Opus ","Flexible Investment",1,1,5,null,null,null,5,5]
["LF Odey Portfolio ","Mixed Investment 40-85% Shares",1,3,1,1,1,1,5,5]
["LF Purisima PCG ","Global",5,4,5,5,5,4,5,1]
["LF Resilient MM Balanced Managed ","Mixed Investment 40-85% Shares",5,4,5,2,4,4,5,4]
["LF Ruffer Diversified Return ","Targeted Absolute Return ",3,3,3,null,null,null,4,2]
["LF Ruffer Equity & General ","Flexible Investment",1,1,2,2,1,1,5,2]
["LF Ruffer European ","Mixed Investment 40-85% Shares",5,2,5,5,5,1,5,2]
["LF Ruffer Gold ","Specialist ",5,3,5,1,1,5,5,1]
["LF Ruffer Japanese ","Flexible Investment",1,1,5,4,1,5,5,2]
["LF Ruffer Total Return ","Mixed Investment 20-60% Shares",1,1,1,3,1,1,5,1]
["LF Stewart Ivory Invest Mkt ","Flexible Investment",4,2,5,3,5,3,2,3]
["LF Waverton Absolute Return II ","Specialist ",1,4,1,2,1,1,4,3]
["LGIM Future World Asia Pacific (ex Japan) Equity Index ","Asia Pacific Excluding Japan ",2,3,2,null,null,null,2,4]
["LGIM Future World Emerging Markets Equity Index ","Global Emerging Markets ",3,3,2,null,null,null,2,3]
["LGIM Future World Europe (ex UK) Equity Index ","Europe Excluding UK ",2,2,2,null,null,null,1,2]
["LGIM Future World Global Equity Index ","Global",2,3,1,null,1,3,2,3]
["LGIM Future World Japan Equity Index ","Japan ",3,4,2,null,null,null,2,2]
["LGIM Future World North America Equity Index ","North America ",3,4,2,null,null,null,2,1]
["LGIM PMC 5 to 15 Year Gilts Index ","UK Gilts ",1,1,4,4,4,1,1,2]
["LGIM PMC All World Equity Index ","Global",2,3,1,3,3,3,2,3]
["LGIM PMC Future World UK Equity Index ","UK All Companies",3,4,1,null,null,3,1,3]
["Liontrust Balanced ","Mixed Investment 40-85% Shares",5,3,5,5,1,5,1,1]
["Liontrust China ","China/Greater China ",4,3,5,4,2,3,4,4]
["Liontrust Emerging Markets ","Global Emerging Markets ",5,5,1,2,4,4,5,3]
["Liontrust European Dynamic ","Europe Excluding UK ",2,2,4,4,5,1,5,5]
["Liontrust Global Alpha ","Flexible Investment",5,5,5,5,2,5,1,4]
["Liontrust Global Dividend ","Global Equity Income ",4,4,5,1,3,4,2,1]
["Liontrust Global Innovation ","Global",5,5,5,5,1,5,1,4]
["Liontrust Global Smaller Companies ","Global",5,4,5,5,2,5,1,5]
["Liontrust Global Technology ","Technology & Technology Innovation",4,3,3,2,2,4,1,1]
["Liontrust Income ","UK Equity Income ",2,2,3,1,2,5,2,3]
["Liontrust Japan Equity ","Japan ",1,1,5,5,5,1,5,5]
["Liontrust MA Active Dynamic ","Flexible Investment",2,1,5,4,3,3,2,4]
["Liontrust MA Active Growth ","Flexible Investment",3,1,5,3,3,2,2,3]
["Liontrust MA Active Intermediate Income ","Mixed Investment 20-60% Shares",5,2,5,2,2,4,1,2]
["Liontrust MA Active Moderate Income ","Mixed Investment 0-35% Shares ",5,2,5,2,2,5,2,1]
["Liontrust MA Active Progressive ","Mixed Investment 40-85% Shares",5,3,5,2,2,3,2,1]
["Liontrust MA Diversified Real Assets ","Specialist ",4,5,3,3,3,3,4,2]
["Liontrust MA Monthly High Income ","Mixed Investment 0-35% Shares ",5,2,5,3,5,4,4,3]
["Liontrust MA UK Equity ","UK All Companies",3,3,2,1,1,3,2,2]
["Liontrust Russia ","Specialist ",4,1,5,1,5,3,5,3]
["Liontrust Special Situations ","UK All Companies",3,3,4,1,1,4,4,1]
["Liontrust Strategic Bond ","Sterling Strategic Bond ",3,2,3,3,4,3,3,2]
["Liontrust Sustainable Future Cautious Managed ","Mixed Investment 40-85% Shares",5,5,5,1,1,5,1,1]
["Liontrust Sustainable Future Corporate Bond ","Sterling Corporate Bond ",5,1,5,5,5,4,5,3]
["Liontrust Sustainable Future Defensive Managed ","Mixed Investment 20-60% Shares",5,4,5,1,2,5,1,2]
["Liontrust Sustainable Future European Growth ","Europe Excluding UK ",5,5,5,3,1,4,3,2]
["Liontrust Sustainable Future Global Growth ","Global",5,5,5,2,1,5,1,4]
["Liontrust Sustainable Future Managed ","Mixed Investment 40-85% Shares",5,4,5,2,3,5,1,4]
["Liontrust Sustainable Future Managed Growth ","Flexible Investment",5,3,5,3,2,5,1,5]
["Liontrust Sustainable Future UK Growth ","UK All Companies",5,5,4,1,3,5,3,4]
["Liontrust UK Ethical ","UK All Companies",5,5,5,1,4,5,4,4]
["Liontrust UK Growth ","UK All Companies",1,1,1,1,1,4,1,1]
["Liontrust UK Micro Cap ","UK Smaller Companies ",1,1,1,2,1,1,2,1]
["Liontrust UK Smaller Companies ","UK Smaller Companies ",2,3,2,1,1,5,4,1]
["Liontrust US Opportunities ","North America ",5,5,3,2,4,4,2,4]
["M&G Absolute Return Bond ","Targeted Absolute Return ",3,4,2,3,3,4,3,3]
["M&G Asian ","Asia Pacific Excluding Japan ",1,1,5,5,4,1,3,4]
["M&G Better Health Solutions ","Global",2,5,1,null,null,null,1,2]
["M&G Charifund ","UK Equity Income ",4,4,2,2,2,4,4,4]
["M&G Climate Solutions ","Global",4,2,5,null,null,5,5,5]
["M&G Corporate Bond ","Sterling Corporate Bond ",2,1,3,5,5,2,2,3]
["M&G Dividend ","UK Equity Income ",4,4,3,3,3,3,4,3]
["M&G Emerging Markets Bond ","Global EM Bonds - Blended",1,1,1,1,1,1,5,5]
["M&G Emerging Markets Monthly Income ","Flexible Investment",1,1,3,null,null,1,5,5]
["M&G Episode Allocation ","Mixed Investment 20-60% Shares",1,1,4,5,5,2,2,3]
["M&G Episode Growth ","Mixed Investment 40-85% Shares",1,1,2,5,5,4,2,4]
["M&G Episode Income ","Mixed Investment 20-60% Shares",5,3,5,5,4,3,2,3]
["M&G European Corporate Bond ","Global Bonds ",3,3,4,3,2,4,4,5]
["M&G European Index Tracker ","Europe Excluding UK ",2,2,2,2,2,2,2,3]
["M&G Gilt & Fixed Interest Income ","UK Gilts ",2,3,3,4,4,3,5,4]
["M&G Global Convertibles ","Specialist ",3,4,2,2,1,5,3,4]
["M&G Global Dividend ","Global Equity Income ",3,3,4,5,5,2,5,4]
["M&G Global Emerging Markets ","Global Emerging Markets ",1,1,3,2,5,1,2,4]
["M&G Global Floating Rate High Yield ","Sterling High Yield ",1,1,1,2,2,1,1,1]
["M&G Global Government Bond ","Global Bonds ",2,1,3,2,2,4,4,3]
["M&G Global High Yield Bond ","Sterling High Yield ",3,3,3,4,4,3,2,1]
["M&G Global Macro Bond ","Global Bonds ",1,1,2,1,1,4,2,3]
["M&G Global Strategic Value ","Global",1,1,2,4,5,1,4,5]
["M&G Global Sustain Paris Aligned ","Global",1,1,2,2,4,3,2,4]
["M&G Global Target Return ","Targeted Absolute Return ",1,1,2,5,3,4,2,2]
["M&G Global Themes ","Global",2,3,2,1,3,2,4,4]
["M&G Index Tracker ","UK All Companies",2,2,2,4,2,3,3,4]
["M&G Index-Linked Bond ","UK Index Linked Gilts ",3,1,4,4,2,1,2,3]
["M&G Japan ","Japan ",1,1,1,4,5,1,3,4]
["M&G Japan Smaller Companies ","Japanese Smaller Companies",1,1,1,5,5,1,5,5]
["M&G Managed Growth ","Flexible Investment",1,1,4,5,5,1,3,5]
["M&G North American Dividend ","North America ",2,2,3,2,5,1,5,3]
["M&G North American Value ","North America ",1,1,2,5,4,1,5,5]
["M&G Optimal Income ","Sterling Strategic Bond ",2,1,4,5,5,1,1,2]
["M&G Positive Impact ","Global",1,1,4,1,2,4,2,5]
["M&G Recovery ","UK All Companies",4,4,5,5,5,2,5,5]
["M&G Short Dated Corporate Bond ","Sterling Corporate Bond ",1,1,1,5,1,1,3,5]
["M&G Smaller Companies ","UK Smaller Companies ",3,2,4,4,3,2,4,5]
["M&G Strategic Corporate Bond ","Sterling Corporate Bond ",2,1,3,5,5,1,4,3]
["M&G Sustainable Global Corporate Bond ","Global Bonds ",null,null,null,null,null,null,2,2]
["M&G Sustainable Global High Yield Bond ","Sterling High Yield ",3,3,3,null,3,3,2,2]
["M&G Sustainable Multi Asset ","Mixed Investment 20-60% Shares",5,3,5,5,4,5,1,2]
["M&G UK Income Distribution ","Flexible Investment",2,1,4,5,5,1,5,5]
["M&G UK Inflation Linked Corporate Bond ","Sterling Strategic Bond ",1,1,1,3,1,1,1,3]
["M&G UK Sustain Paris Aligned ","UK All Companies",5,5,4,3,1,5,1,5]
["Man GLG European Alpha Income ","Europe Excluding UK ",2,2,1,4,5,2,2,2]
["Man GLG Income ","UK Equity Income ",1,1,5,4,5,3,5,5]
["Man GLG Japan Core Alpha ","Japan ",1,1,4,5,5,1,4,5]
["Man GLG Sterling Corporate Bond ","Sterling Corporate Bond ",1,1,4,null,null,null,5,5]
["Man GLG Strategic Bond ","Sterling Strategic Bond ",2,5,1,2,4,3,5,3]
["Man GLG Undervalued Assets ","UK All Companies",1,1,5,5,5,1,5,5]
["Margetts BLENHEIM Diversified Alternatives ","Targeted Absolute Return ",4,3,4,null,null,4,4,3]
["Margetts BLENHEIM Diversified Fixed Income ","Sterling Strategic Bond ",1,5,1,null,null,4,3,4]
["Margetts BLENHEIM Diversified Property ","Property Other ",1,5,1,null,null,4,4,2]
["Margetts BLENHEIM Ethical Opportunities ","Mixed Investment 20-60% Shares",1,4,1,null,null,5,2,3]
["Margetts BLENHEIM Overseas Equity ","Flexible Investment",4,2,4,null,null,5,3,5]
["Margetts BLENHEIM UK Equity ","UK All Companies",4,4,1,null,null,4,4,5]
["Margetts International Strategy ","Global",3,3,3,3,5,3,5,5]
["Margetts MGTS Sentinel Defensive ","Mixed Investment 0-35% Shares ",1,1,3,2,1,1,4,3]
["Margetts MGTS Sentinel Enterprise ","Flexible Investment",4,2,5,1,2,5,1,1]
["Margetts MGTS Sentinel Growth ","Mixed Investment 40-85% Shares",4,5,1,1,1,5,1,4]
["Margetts MGTS Sentinel Navigator ","Mixed Investment 20-60% Shares",4,3,2,3,5,4,5,5]
["Margetts MGTS Sentinel Universal ","Mixed Investment 40-85% Shares",3,5,2,2,4,3,3,3]
["Margetts Opes Growth ","Global",4,5,3,2,5,4,4,5]
["Margetts Opes Income ","Flexible Investment",3,1,4,4,5,2,3,5]
["Margetts Prima Adventurous ","Global",4,4,2,null,2,4,4,3]
["Margetts Prima Balanced ","Mixed Investment 40-85% Shares",4,2,4,null,2,4,3,4]
["Margetts Prima Cautious ","Mixed Investment 0-35% Shares ",2,1,4,null,3,3,4,5]
["Margetts Providence Strategy ","Mixed Investment 20-60% Shares",2,1,5,5,5,1,3,5]
["Margetts Select Strategy ","Mixed Investment 40-85% Shares",2,1,5,5,5,2,4,5]
["Margetts Venture Strategy ","Flexible Investment",5,3,5,5,4,5,4,5]
["Marks & Spencer High Income ","Sterling Strategic Bond ",4,5,3,5,4,4,4,3]
["Marks & Spencer UK 100 Companies ","UK All Companies",1,1,1,2,1,1,2,4]
["Marks & Spencer UK Select Portfolio ","UK All Companies",1,1,1,2,3,1,2,4]
["Marks & Spencer Worldwide Mgd ","Mixed Investment 40-85% Shares",3,5,2,2,2,2,3,3]
["McInroy & Wood Balanced ","Mixed Investment 40-85% Shares",1,1,1,1,1,5,1,1]
["McInroy & Wood Emerging Markets ","Global Emerging Markets ",1,1,1,1,3,2,1,4]
["McInroy & Wood Income ","Mixed Investment 40-85% Shares",1,1,1,1,1,2,2,2]
["McInroy & Wood Smaller Companies ","Global",5,4,5,1,3,4,4,4]
["Merian UK Equity Income","UK Equity Income ",1,1,4,4,4,2,4,4]
["MF Eclipse Active Adventurous ","Flexible Investment",null,null,null,null,null,null,null,3]
["MF Eclipse Active Defensive ","Mixed Investment 20-60% Shares",null,null,null,null,null,null,null,1]
["MF Eclipse Passive Adventurous ","Flexible Investment",null,null,null,null,null,null,null,3]
["MGTS AFH DA Asia ex Japan Equity ","Asia Pacific Excluding Japan ",4,5,4,5,1,4,3,4]
["MGTS AFH DA European Equity ","Europe Excluding UK ",1,1,1,5,3,3,3,3]
["MGTS AFH DA Global Emerging Markets Equity ","Global Emerging Markets ",5,4,3,4,4,3,4,2]
["MGTS AFH DA North American Equity ","North America ",3,3,3,5,2,3,3,3]
["MGTS AFH DA UK Alpha ","UK All Companies",1,1,4,4,3,2,3,5]
["MGTS AFH DA UK Equity ","UK All Companies",3,3,2,null,null,1,4,4]
["MGTS AFH DA UK Multi-Cap Growth ","UK All Companies",2,3,2,3,3,2,3,4]
["MGTS AFH DA UK Smaller Companies ","UK Smaller Companies ",3,1,4,5,4,3,2,4]
["MGTS Clarion Explorer Portfolio ","Flexible Investment",5,4,4,4,3,4,5,5]
["MGTS Clarion Meridian Portfolio ","Mixed Investment 40-85% Shares",5,5,3,3,3,4,5,4]
["MGTS Clarion Navigator Portfolio ","Mixed Investment 40-85% Shares",4,5,2,null,null,4,5,3]
["MGTS Clarion Prudence Portfolio","Mixed Investment 20-60% Shares",4,5,3,null,null,3,5,3]
["MGTS Future Money Dynamic Growth ","Mixed Investment 40-85% Shares",4,3,4,5,4,4,4,4]
["MGTS Future Money Income ","Mixed Investment 20-60% Shares",3,1,5,5,5,1,4,4]
["MGTS Future Money Real Growth ","Mixed Investment 20-60% Shares",4,1,5,5,4,1,3,4]
["MGTS Future Money Real Value ","Mixed Investment 20-60% Shares",3,1,4,4,2,2,2,1]
["MGTS IBOSS 1 ","Mixed Investment 0-35% Shares ",1,4,1,3,3,2,4,3]
["MGTS IBOSS 2 ","Mixed Investment 20-60% Shares",2,4,2,2,2,3,3,3]
["MGTS IBOSS 4 ","Mixed Investment 40-85% Shares",3,4,2,2,1,4,4,2]
["MGTS IBOSS 6 ","Flexible Investment",3,3,3,2,2,3,4,3]
["MGTS IDAD Future Wealth ","Flexible Investment",5,5,5,null,null,null,1,5]
["MGTS IDAD Refined Growth ","Flexible Investment",1,1,5,null,null,null,2,4]
["MGTS Progeny Dynamic Bond ","Global Bonds ",5,2,5,null,null,null,3,1]
["MGTS Progeny Dynamic Equity ","Global",3,3,3,null,null,null,4,5]
["MGTS Progeny ProFolio Model 30-50% Shares ","Mixed Investment 20-60% Shares",null,null,null,null,null,null,null,2]
["MGTS Progeny ProFolio Model 50-70% Shares ","Mixed Investment 40-85% Shares",null,null,null,null,null,null,null,2]
["MGTS Progeny ProFolio Model 70-90% Shares ","Mixed Investment 40-85% Shares",null,null,null,null,null,null,null,5]
["MGTS Progeny Systematic Bond ","Global Bonds ",5,2,5,null,null,null,2,1]
["MGTS Progeny Systematic Equity ","Global",2,2,2,null,null,null,4,5]
["MGTS SIIION Adventurous ","Mixed Investment 40-85% Shares"]
["MGTS SIIION Balanced ","Mixed Investment 40-85% Shares"]
["MGTS SIIION Cautious ","Mixed Investment 20-60% Shares"]
["MGTS Tempus Cautious Portfolio ","Mixed Investment 20-60% Shares",5,2,5,null,null,4,5,4]
["MGTS Tempus Defensive Portfolio ","Mixed Investment 0-35% Shares ",1,1,3,null,null,1,4,5]
["MGTS Tempus Enterprise Portfolio ","Flexible Investment",4,2,5,null,null,5,1,1]
["MGTS Tempus Growth Portfolio ","Mixed Investment 40-85% Shares",4,5,1,null,null,5,1,4]
["MGTS Tempus Universal Portfolio ","Mixed Investment 40-85% Shares",2,3,2,null,null,3,3,3]
["MGTS Wealth Solutions Adventurous ","Flexible Investment",5,5,2,null,null,5,2,4]
["MGTS Wealth Solutions Balanced ","Mixed Investment 40-85% Shares",3,3,3,null,null,3,3,1]
["MGTS Wealth Solutions Defensive ","Mixed Investment 20-60% Shares",1,1,2,null,null,3,5,2]
["MI Activus Diversified ","Flexible Investment",4,5,1,null,null,null,5,2]
["MI Charles Stanley Equity ","UK All Companies",4,4,4,1,1,5,1,1]
["MI Charles Stanley Monthly High Income ","Mixed Investment 0-35% Shares ",5,1,5,4,5,1,5,5]
["MI Charles Stanley Multi Asset Adventurous ","Flexible Investment",5,3,4,5,3,5,2,3]
["MI Charles Stanley Multi Asset Cautious ","Mixed Investment 20-60% Shares",2,4,1,4,1,5,2,1]
["MI Charles Stanley Multi Asset Growth ","Mixed Investment 40-85% Shares",5,4,4,4,2,5,2,2]
["MI Charles Stanley Multi Asset Moderate ","Mixed Investment 40-85% Shares",4,4,2,3,1,5,2,1]
["MI Charles Stanley UK & International Growth ","Global",2,3,1,3,4,2,4,3]
["MI Diversified Strategy","Flexible Investment",3,3,3,3,2,2,5,3]
["MI Hawksmoor Distribution ","Mixed Investment 40-85% Shares",4,4,3,1,4,2,5,3]
["MI Hawksmoor Global Opportunities ","Flexible Investment",5,3,4,2,5,1,5,4]
["MI Hawksmoor Vanbrugh ","Mixed Investment 20-60% Shares",2,3,2,1,3,2,5,4]
["MI Metropolis Value ","Global",4,2,5,5,1,1,5,4]
["MI MI Chelverton European Select ","Europe Excluding UK ",3,3,4,5,5,1,3,4]
["MI MI Chelverton UK Equity Growth ","UK All Companies",5,5,2,1,4,1,5,3]
["MI MI Chelverton UK Equity Income","UK Equity Income ",5,5,5,2,5,2,5,3]
["MI Psigma Multi Asset Balanced Fund of Funds ","Mixed Investment 20-60% Shares",2,3,2,3,2,2,4,3]
["MI Psigma Multi Asset Cautious Fund of Funds ","Mixed Investment 20-60% Shares",2,5,1,null,1,3,4,1]
["MI Psigma Multi Asset Growth Fund of Funds ","Mixed Investment 40-85% Shares",2,3,2,null,1,2,4,3]
["MI Somerset Asia Income ","Asia Pacific Excluding Japan ",3,3,2,2,4,1,5,1]
["MI Somerset Emerging Markets Discovery ","Global Emerging Markets ",4,4,4,null,3,2,4,4]
["MI Somerset Emerging Markets Dividend Growth ","Global Emerging Markets ",3,3,2,1,4,1,3,1]
["MI Somerset Global Emerging Markets ","Global Emerging Markets ",4,5,4,2,3,5,1,4]
["MI Thornbridge Global Opportunities ","Global",1,1,4,1,5,1,5,5]
["Montreux Capital Management (UK) Montreux Healthcare ","Specialist ",1,1,2,null,1,4,3]
["Morgan Stanley Developing Opportunity ","Global Emerging Markets ",2,2,5,null,null,5,1,5]
["Morgan Stanley Global Brands ","Global",1,2,1,1,1,3,1,1]
["Morgan Stanley Global Insight ","Global",5,5,5,null,null,null,1,3]
["Morgan Stanley Global Sustain ","Global",5,4,5,null,5,3,2,1]
["Morgan Stanley Multi-Asset Sustainable Balanced ","Flexible Investment",2,4,2,null,null,null,1,4]
["Morgan Stanley Multi-Asset Sustainable Moderate ","Flexible Investment",1,5,1,null,null,null,1,3]
["Morgan Stanley Sterling Corporate Bond ","Sterling Corporate Bond ",3,1,4,4,5,3,4,4]
["Morgan Stanley Sustainable Fixed Income Opportunities Fund ","Global Bonds ",2,4,1,null,null,2,4,3]
["Morgan Stanley US Advantage ","North America ",5,4,5,1,1,5,1,1]
["Natixis H2O MultiReturns ","Targeted Absolute Return ",1,1,5,5,5,1,1,5]
["Natixis Harris Associates Global Concentrated Equity ","Global",2,1,4,5,5,1,3,4]
["Natixis Loomis Sayles U.S. Equity Leaders ","North America ",3,1,5,5,1,4,1,1]
["NFU Mutual Gilt & Corporate Bond ","Sterling Strategic Bond ",5,3,5,2,2,4,1,2]
["NFU Mutual Global Growth","Global",2,2,3,null,null,3,4,3]
["NFU Mutual Mixed Portfolio 20 60% Shares","Mixed Investment 20-60% Shares",4,1,5,4,4,2,2,5]
["NFU Mutual Mixed Portfolio 40 85% shares","Mixed Investment 40-85% Shares",2,1,5,3,5,1,3,4]
["NFU Mutual Mixed Portfolio Max 100% Shares","Flexible Investment",2,1,4,3,5,1,3,4]
["NFU Mutual UK Equity Income ","UK Equity Income ",2,2,2,2,2,2,4,3]
["NFU Mutual UK Growth ","UK All Companies",4,4,3,1,3,3,3,2]
["Ninety One American Franchise ","North America ",1,1,4,1,1,4,1,1]
["Ninety One Asia Pacific Franchise ","Asia Pacific Excluding Japan ",1,1,4,4,1,5,1,1]
["Ninety One Diversified Income ","Mixed Investment 0-35% Shares ",1,1,1,4,3,1,3,1]
["Ninety One Emerging Markets Blended Debt ","Global EM Bonds - Blended",5,5,5,5,5,5,1,1]
["Ninety One Emerging Markets Equity ","Global Emerging Markets ",5,5,3,5,2,4,5,2]
["Ninety One Global Environment ","Global",1,1,5,null,3,5,1,3]
["Ninety One Global Franchise ","Global",2,3,3,1,2,3,1,1]
["Ninety One Global Gold ","Specialist ",5,2,5,1,4,5,5,1]
["Ninety One Global Income Opportunities ","Mixed Investment 20-60% Shares",3,2,2,5,4,2,3,1]
["Ninety One Global Macro Allocation ","Flexible Investment",1,1,5,4,3,4,1,1]
["Ninety One Global Multi-Asset Sustainable Growth ","Mixed Investment 40-85% Shares",1,1,4,1,2,5,1,1]
["Ninety One Global Quality Dividend Growth ","Global",1,2,1,1,1,2,1,1]
["Ninety One Global Special Situations ","Global",1,1,5,5,5,1,5,5]
["Ninety One Global Strategic Equity ","Global",4,2,4,5,4,2,5,3]
["Ninety One Global Sustainable Equity ","Global",2,3,2,4,4,3,1,2]
["Ninety One Global Total Return Credit ","Sterling Strategic Bond ",3,4,3,5,5,2,5,5]
["Ninety One Multi Asset Protector ","Specialist ",1,5,1,4,2,2,2,1]
["Ninety One Multi Asset Protector 2 ","Specialist ",2,4,1,4,2,3,2,1]
["Ninety One UK Alpha ","UK All Companies",2,2,2,2,1,4,4,2]
["Ninety One UK Equity Income ","UK All Companies",1,1,1,2,1,4,1,1]
["Ninety One UK Smaller Companies ","UK Smaller Companies ",5,4,4,3,2,4,5,2]
["Ninety One UK Special Situations ","UK All Companies",1,1,5,5,5,1,5,5]
["Ninety One UK Sustainable Equity ","UK All Companies",4,5,1,1,1,5,2,1]
["Oasis Crescent Global Equity ","Global",1,2,1,null,null,1,2,2]
["Oasis Crescent Global Income ","Global",1,1,1,null,null,3,2,1]
["Oasis Crescent Global Low Equity ","Global",1,5,1,null,null,2,2,2]
["Oasis Crescent Global Medium Equity ","Global",1,3,1,null,null,2,2,2]
["Oasis Crescent Global Property Equity ","Property Other ",4,3,4,null,null,3,2,5]
["Oasis Crescent Global Short Term Income ","Global Bonds ",1,1,4,null,null,1,3,5]
["Oasis Crescent Variable ","Mixed Investment 20-60% Shares",3,2,4,null,null,1,2,5]
["Oldfield Overstone Global Equity Income ","Global Equity Income ",2,2,5,3,5,1,5,5]
["Omnis Asia Pacific ex-Japan Equity ","Asia Pacific Excluding Japan ",5,5,2,3,3,5,3,1]
["Omnis Investments Ltd Omnis Absolute Return Bond ","Targeted Absolute Return ",3,3,2,null,3,3,3,1]
["Omnis Investments Ltd Omnis Diversified Returns ","Targeted Absolute Return ",2,5,1,null,1,1,2,4]
["Omnis Investments Ltd Omnis European Equity Leaders ","Europe Excluding UK ",1,1,1,null,2,4,1,1]
["Omnis Investments Ltd Omnis European Equity Opportunities ","Europe Excluding UK ",4,4,4,null,4,5,3,4]
["Omnis Investments Ltd Omnis Global Emerging Markets Equity Leaders ","Global Emerging Markets ",3,4,4,null,2,3,2,4]
["Omnis Investments Ltd Omnis Global Emerging Markets Equity Opportunities ","Global Emerging Markets ",4,4,4,null,5,1,3,1]
["Omnis Investments Ltd Omnis Managed Adventurous ","Mixed Investment 40-85% Shares",3,1,5,4,4,4,4,5]
["Omnis Investments Ltd Omnis Managed Balanced ","Mixed Investment 40-85% Shares",4,3,4,1,1,4,3,2]
["Omnis Investments Ltd Omnis Managed Cautious ","Mixed Investment 0-35% Shares ",4,1,5,2,2,5,2,3]
["Omnis Investments Ltd Omnis Multi-Manager Adventurous ","Mixed Investment 40-85% Shares",3,2,4,5,4,2,4,5]
["Omnis Investments Ltd Omnis Multi-Manager Balanced","Mixed Investment 20-60% Shares",4,3,5,5,4,3,3,5]
["Omnis Investments Ltd Omnis Multi-Manager Cautious ","Mixed Investment 20-60% Shares",5,3,4,1,1,4,2,1]
["Omnis Investments Ltd Omnis Multi-Manager Distribution ","Mixed Investment 20-60% Shares",3,1,3,4,4,1,5,2]
["Omnis Investments Ltd Omnis Short-Dated Bond ","Global Bonds ",1,1,2,null,4,1,4,4]
["Omnis Investments Ltd Omnis US Equity Leaders ","North America ",3,4,2,null,2,2,2,3]
["Omnis Investments Ltd Omnis US Smaller Companies ","North American Smaller Companies",3,4,1,null,1,3,1,2]
["Omnis Japanese Equity ","Japan ",2,2,1,4,3,2,5,4]
["Omnis Sterling Corporate Bond ","Sterling Corporate Bond ",5,2,5,3,4,5,3,2]
["Omnis UK All Companies ","UK All Companies",2,2,3,3,3,3,3,2]
["Omnis UK Gilt ","UK Gilts ",5,2,5,2,2,4,3,1]
["Omnis UK Smaller Companies ","UK Smaller Companies ",4,3,3,5,2,2,3,3]
["One Family Stockmarket 100 Trust ","UK All Companies",1,1,1,3,2,2,3,3]
["Orbis Global Balanced ","Mixed Investment 40-85% Shares",1,1,4,5,2,1,5,3]
["Orbis Global Cautious ","Targeted Absolute Return ",2,2,4,4,4,2,2,3]
["Orbis Global Equity ","Global",1,1,4,5,4,1,5,5]
["Partners Group Generations ","Flexible Investment",1,3,1,1,2,1,2,1]
["Premier Miton Cautious Monthly Income ","Mixed Investment 20-60% Shares",2,4,1,2,5,1,5,5]
["Premier Miton Cautious Multi Asset ","Mixed Investment 20-60% Shares",3,5,1,1,4,2,5,5]
["Premier Miton Corporate Bond Monthly Income ","Sterling Corporate Bond ",2,5,2,4,2,2,1,5]
["Premier Miton Defensive Growth ","Targeted Absolute Return ",2,5,1,3,2,1,1,1]
["Premier Miton Defensive Multi Asset ","Mixed Investment 0-35% Shares ",1,5,1,1,2,2,3,5]
["Premier Miton Diversified Balanced Growth ","Mixed Investment 40-85% Shares",2,3,1,3,2,2,5,2]
["Premier Miton Diversified Cautious Growth ","Mixed Investment 20-60% Shares",1,2,1,4,3,2,5,4]
["Premier Miton Diversified Dynamic Growth ","Flexible Investment",4,2,4,5,3,2,5,4]
["Premier Miton Diversified Growth ","Mixed Investment 40-85% Shares",4,3,3,4,3,1,5,5]
["Premier Miton Diversified Income ","Mixed Investment 20-60% Shares",1,1,2,3,5,1,5,5]
["Premier Miton Diversified Sustainable Growth ","Mixed Investment 40-85% Shares",2,4,1,1,3,4,3,3]
["Premier Miton European Equity Income ","Europe Excluding UK ",4,5,1,null,null,null,4,5]
["Premier Miton European Opportunities ","Europe Excluding UK ",5,5,5,1,1,5,2,4]
["Premier Miton European Sustainable Leaders ","Europe Excluding UK ",5,5,5,null,null,null,4,4]
["Premier Miton Global Smaller Companies ","Global",4,5,1,null,null,null,5,4]
["Premier Miton Global Sustainable Growth ","Global",4,4,3,5,2,5,2,5]
["Premier Miton Global Sustainable Optimum Income ","Global Equity Income ",5,5,4,5,1,5,3,4]
["Premier Miton Monthly Income ","UK Equity Income ",1,1,1,3,5,3,1,1]
["Premier Miton Multi-Asset Absolute Return ","Targeted Absolute Return ",4,3,4,3,3,2,3,3]
["Premier Miton Multi-Asset Distribution ","Mixed Investment 20-60% Shares",4,2,4,3,5,1,5,5]
["Premier Miton Multi-Asset Global Growth ","Flexible Investment",3,2,3,3,4,1,5,5]
["Premier Miton Multi-Asset Growth & Income ","Mixed Investment 40-85% Shares",4,5,1,2,3,2,5,5]
["Premier Miton Multi-Asset Monthly Income ","Mixed Investment 20-60% Shares",4,1,4,4,5,1,5,5]
["Premier Miton Optimum Income ","UK Equity Income ",2,2,1,3,5,2,1,1]
["Premier Miton Pan European Property Share ","Property Other ",5,1,5,5,5,2,5,4]
["Premier Miton Responsible UK Equity ","UK All Companies",4,5,3,5,5,4,3,1]
["Premier Miton Strategic Monthly Income Bond ","Sterling Strategic Bond ",1,5,1,null,null,2,3,5]
["Premier Miton UK Growth ","UK All Companies",4,5,3,2,5,4,3,2]
["Premier Miton UK Multi Cap Income ","UK Equity Income ",5,5,1,1,1,2,5,2]
["Premier Miton UK Smaller Companies ","UK Smaller Companies ",5,4,3,4,1,1,5,5]
["Premier Miton UK Value Opportunities ","UK All Companies",5,4,5,1,5,2,5,5]
["Premier Miton US Opportunities ","North America ",5,2,5,1,4,1,5,5]
["Premier Miton US Smaller Companies ","North American Smaller Companies",5,5,3,3,2,5,1,1]
["Premier Miton Worldwide Opportunities ","Flexible Investment",5,4,3,2,5,1,5,4]
["PUTM Bothwell Sub-Sovereign Bond ","UK Gilts ",1,1,1,5,5,1,1,5]
["PUTM Far East ","Asia Pacific Excluding Japan ",5,4,5,3,3,4,3,5]
["PUTM UK Equity Listed ","UK All Companies",2,2,1,5,4,2,3,4]
["Quilter Investors Cirilium Adventurous Portfolio ","Flexible Investment",5,4,5,5,5,3,5,5]
["Quilter Investors Cirilium Balanced Portfolio ","Mixed Investment 20-60% Shares",4,5,3,4,4,4,4,3]
["Quilter Investors Cirilium Conservative Portfolio ","Mixed Investment 0-35% Shares ",3,5,3,4,5,2,4,3]
["Quilter Investors Cirilium Dynamic Portfolio ","Flexible Investment",5,4,5,4,5,3,5,5]
["Quilter Investors Cirilium Moderate Portfolio ","Mixed Investment 40-85% Shares",5,5,3,4,4,4,5,4]
["Quilter Investors Creation Adventurous Portfolio ","Mixed Investment 40-85% Shares",1,1,4,5,5,3,2,5]
["Quilter Investors Ethical Equity ","Global",2,1,4,5,4,4,3,2]
["Quilter Investors Global Dynamic Equity ","Global",3,4,1,3,4,3,2,5]
["Quilter Investors Global Unconstrained Equity ","Global",1,1,4,1,5,1,5,5]
["Quilter Investors Investors Dynamic Bond ","Sterling Strategic Bond ",3,2,3,4,3,2,5,5]
["Quilter Investors UK Equity Index ","UK All Companies",3,3,2,4,2,3,3,3]
["R&M ES River and Mercantile European ","Europe Excluding UK ",1,2,4,null,null,1,4,4]
["Rathbone Active Income and Growth Fund ","Mixed Investment 20-60% Shares",3,2,4,2,3,2,4,5]
["Rathbone Core Investment Fund for Charities Fund ","Mixed Investment 40-85% Shares",4,3,2,3,4,2,4,5]
["Rathbone High Quality Bond Fund ","Sterling Corporate Bond ",1,2,1,4,1,1,1,4]
["Rathbone Income Fund ","UK Equity Income ",2,2,2,1,2,3,3,3]
["RBS UK Equity ","UK All Companies",1,1,2,1,2,1,4,4]
["Royal Bank of Scot Coutts Managed Ambitious ","Mixed Investment 40-85% Shares",2,2,3,2,4,3,1,3]
["Royal Bank of Scot Personal Portfolio Balanced ","Mixed Investment 20-60% Shares",null,null,null,null,null,null,null,3]
["Royal Bank of Scot Stakeholder Inv ","Mixed Investment 20-60% Shares",null,null,null,1,3,2,1]
["Royal London Cautious Managed ","Mixed Investment 0-35% Shares ",2,3,2,3,1,2,3,3]
["Royal London Corporate Bond ","Sterling Corporate Bond ",2,4,2,3,3,2,5,5]
["Royal London Corporate Bond Monthly Income Trust ","Sterling Corporate Bond ",2,4,2,2,2,3,4,4]
["Royal London Diversified Asset-Backed Securities ","Targeted Absolute Return ",2,2,1,5,2,1,2,3]
["Royal London Emerging Markets ESG Leaders Equity Tracker","Global Emerging Markets ",5,4,5,null,1,4,4,1]
["Royal London Ethical Bond ","Sterling Strategic Bond ",5,3,5,2,3,4,3,2]
["Royal London European Growth ","Europe Excluding UK ",2,2,3,3,1,3,2,3]
["Royal London European Growth Trust ","Europe Excluding UK ",3,2,3,1,2,3,2,3]
["Royal London Global Equity Diversified","Global",2,2,2,3,3,3,2,3]
["Royal London Global Equity Income ","Global Equity Income ",2,2,4,null,null,4,4,4]
["Royal London Global Equity Select","Global",1,1,4,4,2,1,4,4]
["Royal London Global Index Linked ","Global Bonds ",5,4,5,2,3,3,2,1]
["Royal London Global Sustainable Equity ","Global",4,2,5,null,null,5,1,2]
["Royal London GMAP Adventurous ","Mixed Investment 40-85% Shares",2,3,1,5,4,2,5,5]
["Royal London GMAP Balanced ","Mixed Investment 20-60% Shares",1,4,1,3,2,2,4,4]
["Royal London GMAP Conservative ","Sterling Strategic Bond ",3,4,2,1,1,3,2,1]
["Royal London GMAP Defensive ","Mixed Investment 0-35% Shares ",2,4,1,4,3,1,5,4]
["Royal London GMAP Dynamic ","Global",2,2,2,4,5,2,4,4]
["Royal London GMAP Growth ","Mixed Investment 40-85% Shares",2,5,1,3,3,3,5,4]
["Royal London Index Linked ","UK Index Linked Gilts ",2,2,2,4,2,2,3,4]
["Royal London International Government Bond ","Global Bonds ",3,4,2,3,2,3,1,1]
["Royal London Investment Grade Short Dated Credit ","Sterling Corporate Bond ",1,1,1,4,1,1,1,4]
["Royal London Multi Asset Strategies ","Flexible Investment",1,5,1,2,1,2,5,2]
["Royal London Short Duration Credit ","Sterling Strategic Bond ",1,2,1,3,2,2,3,4]
["Royal London Short Duration Gilts ","UK Gilts ",1,1,1,5,5,1,5,5]
["Royal London Short Duration Global Index Linked ","Global Bonds ",3,2,3,4,3,1,1,1]
["Royal London Sterling Credit","Sterling Corporate Bond ",3,4,3,3,4,2,5,5]
["Royal London Sustainable Diversified Trust ","Mixed Investment 20-60% Shares",5,1,5,1,3,5,1,3]
["Royal London Sustainable Growth ","Mixed Investment 40-85% Shares",null,null,null,null,null,null,1,2]
["Royal London Sustainable Leaders Trust ","UK All Companies",3,3,3,1,1,5,1,1]
["Royal London Sustainable Managed Growth Trust ","Mixed Investment 0-35% Shares ",5,1,5,2,2,5,1,2]
["Royal London Sustainable Managed Income Trust ","Sterling Corporate Bond ",2,3,2,2,2,3,3,3]
["Royal London Sustainable World Trust ","Mixed Investment 40-85% Shares",5,2,5,1,2,5,1,3]
["Royal London UK Broad Equity Tilt ","UK All Companies",2,3,1,4,3,4,3,3]
["Royal London UK Dividend Growth ","UK All Companies",3,3,4,4,3,3,4,4]
["Royal London UK Equity ","UK All Companies",1,1,2,3,2,4,1,3]
["Royal London UK Equity Income ","UK Equity Income ",2,2,4,4,3,3,3,3]
["Royal London UK FTSE4Good Tracker Trust ","UK All Companies",2,2,2,3,1,3,1,3]
["Royal London UK Government Bond ","UK Gilts ",2,2,2,3,4,2,3,4]
["Royal London UK Growth Trust ","UK All Companies",4,4,4,3,4,5,3,4]
["Royal London UK Income With Growth Trust ","Mixed Investment 40-85% Shares",3,1,5,5,5,1,5,5]
["Royal London UK Mid-Cap Growth ","UK All Companies",5,4,5,3,4,5,4,2]
["Royal London UK Opportunities ","UK All Companies",5,4,5,5,5,4,5,4]
["Royal London UK Smaller Companies ","UK Smaller Companies ",4,5,3,3,2,4,3,2]
["Royal London US Growth Trust ","North America ",2,2,3,4,3,4,2,2]
["Ruffer LLP Charity Assets Trust ","Flexible Investment",1,1,1,2,1,1,5,1]
["Santander Atlas Income Portfolio","Mixed Investment 20-60% Shares",4,3,4,2,2,3,5,3]
["Santander Enhanced Income Portfolio ","UK Equity Income ",5,4,5,3,3,4,4,2]
["Santander Equity Income Unit Trust ","UK Equity Income ",5,5,5,2,4,4,4,2]
["Santander Europe (Excluding UK) Equities ","Europe Excluding UK ",1,2,1,3,4,2,3,2]
["Santander International Multi Index ","Mixed Investment 40-85% Shares",3,2,3,3,2,3,2,3]
["Santander Japan Equities ","Japan ",4,4,3,4,2,2,3,1]
["Santander Max 100% Shares Portfolio ","Global",3,4,1,4,2,3,3,3]
["Santander Max 30% Shares Portfolio ","Mixed Investment 20-60% Shares",3,2,3,1,1,5,1,1]
["Santander Max 70% Shares Unit Trust ","Mixed Investment 40-85% Shares",3,2,4,2,4,4,1,1]
["Santander Multi Index 4 ","Mixed Investment 40-85% Shares",2,2,4,4,2,3,3,3]
["Santander Sterling Bond ","Sterling Strategic Bond ",5,3,5,2,2,5,2,1]
["Santander UK Equities ","UK All Companies",4,5,4,3,3,4,4,3]
["Santander UK Growth Unit Trust ","UK All Companies",5,4,5,4,4,4,5,3]
["Santander United States Equities ","North America ",4,5,3,4,2,4,2,4]
["Sarasin Climate Active Endowment ","Mixed Investment 40-85% Shares",3,4,2,4,2,5,1,2]
["Sarasin Endowments ","Mixed Investment 40-85% Shares",3,4,2,4,2,4,1,2]
["Sarasin Food & Agriculture Opportunities ","Specialist ",5,4,4,5,4,4,3,5]
["Sarasin Global Dividend ","Global Equity Income ",3,3,2,4,3,3,2,3]
["Sarasin Global Equity Real Return ","Mixed Investment 40-85% Shares",5,5,4,5,2,5,3,2]
["Sarasin Global Higher Dividend ","Global Equity Income ",4,4,2,3,2,4,1,2]
["Sarasin Growth ","Mixed Investment 40-85% Shares",3,4,2,null,null,null,5,3]
["Sarasin Income & Reserves ","Mixed Investment 0-35% Shares ",5,5,4,1,1,5,3,2]
["Sarasin Multi Asset Strategic ","Mixed Investment 20-60% Shares",5,5,4,2,1,5,1,1]
["Sarasin Responsible Corporate Bond ","Sterling Corporate Bond ",2,5,2,1,3,5,1,2]
["Sarasin Responsible Global Equity ","Global",4,4,2,2,2,2,1,4]
["Sarasin Thematic Global Equity ","Global",3,4,2,4,3,2,1,4]
["Sarasin Tomorrows World Multi Asset ","Mixed Investment 40-85% Shares",3,5,1,null,null,null,1,2]
["Sarasin UK Thematic Smaller Companies ","UK Smaller Companies ",5,1,5,5,1,5,2,5]
["Schroder All Maturities Corporate Bond","Sterling Corporate Bond ",4,4,4,1,2,4,2,1]
["Schroder Asian Alpha Plus ","Asia Pacific Excluding Japan ",3,3,3,5,1,3,4,5]
["Schroder Asian Discovery ","Specialist ",4,2,4,5,5,4,5,5]
["Schroder Asian Income ","Asia Pacific Excluding Japan ",2,3,2,2,3,1,5,1]
["Schroder Asian Income Maximiser ","Asia Pacific Excluding Japan ",1,2,1,2,2,1,5,1]
["Schroder Blended Portfolio 3","Mixed Investment 0-35% Shares ",2,4,1,null,null,3,4,4]
["Schroder Blended Portfolio 4","Mixed Investment 20-60% Shares",1,4,1,null,null,3,3,3]
["Schroder Blended Portfolio 5","Mixed Investment 20-60% Shares",2,3,2,null,null,3,4,4]
["Schroder Blended Portfolio 6","Mixed Investment 40-85% Shares",2,3,2,null,null,3,4,3]
["Schroder Blended Portfolio 7","Mixed Investment 40-85% Shares",2,2,3,null,null,3,4,4]
["Schroder Blended Portfolio 8","Flexible Investment",2,2,3,null,null,3,3,4]
["Schroder Countrywide Managed Balanced ","Mixed Investment 40-85% Shares",3,2,4,null,null,1,3,4]
["Schroder European ","Europe Excluding UK ",4,4,3,5,4,3,5,4]
["Schroder European Alpha Plus ","Europe Excluding UK ",4,4,5,4,5,5,5,4]
["Schroder European Recovery ","Europe Excluding UK ",1,1,5,4,5,1,5,5]
["Schroder European Smaller Companies ","European Smaller Companies",5,5,1,5,5,3,4,2]
["Schroder European Sustainable Equity ","Europe Excluding UK ",4,4,2,5,5,4,5,3]
["Schroder Gilt and Fixed Interest ","UK Gilts ",4,3,4,3,4,2,1,3]
["Schroder Global Cities Real Estate ","Property Other ",4,3,3,2,3,5,1,5]
["Schroder Global Emerging Markets ","Global Emerging Markets ",3,3,3,4,1,3,4,4]
["Schroder Global Equity","Global",3,2,4,2,3,4,5,3]
["Schroder Global Equity Income ","Global Equity Income ",1,1,4,4,4,1,5,4]
["Schroder Global Healthcare ","Global",1,5,1,1,1,5,1,1]
["Schroder Global Recovery ","Global",1,1,5,4,5,1,5,5]
["Schroder Global Sustainable Growth","Global",1,1,3,null,null,3,2,1]
["Schroder Global Sustainable Value Equity","Global",1,1,4,5,5,1,5,4]
["Schroder High Yield Opportunities ","Sterling High Yield ",5,3,4,5,5,1,5,4]
["Schroder Income ","UK Equity Income ",3,3,5,5,3,1,4,5]
["Schroder Income Maximiser ","UK Equity Income ",3,3,5,5,2,1,4,5]
["Schroder Income Portfolio ","Mixed Investment 20-60% Shares",1,2,2,4,2,1,3,4]
["Schroder Institutional Pacific ","Asia Pacific Excluding Japan ",1,2,1,1,5,1,2,3]
["Schroder Long Dated Corporate Bond ","Sterling Corporate Bond ",5,4,5,null,5,5,5,1]
["Schroder Managed Balanced ","Mixed Investment 40-85% Shares",4,3,3,5,4,3,5,4]
["Schroder Managed Wealth Portfolio ","Mixed Investment 20-60% Shares",2,4,1,3,3,4,3,3]
["Schroder MM Diversity ","Mixed Investment 20-60% Shares",1,1,1,1,1,1,5,2]
["Schroder Monthly Income ","Mixed Investment 20-60% Shares",4,2,5,5,4,1,5,4]
["Schroder Multi-Asset Total Return ","Targeted Absolute Return ",4,4,4,5,5,5,3,2]
["Schroder Prime UK Equity ","UK All Companies",1,1,2,2,3,2,4,4]
["Schroder QEP Global Active Value ","Global",2,1,3,5,4,1,5,5]
["Schroder QEP Global Core ","Global",2,3,2,4,3,2,3,3]
["Schroder Recovery ","UK All Companies",1,1,5,5,4,1,5,5]
["Schroder Sterling Corporate Bond","Sterling Corporate Bond ",5,4,5,4,5,2,5,4]
["Schroder Strategic Bond ","Sterling Strategic Bond ",3,2,3,4,4,1,4,3]
["Schroder Strategic Credit ","Sterling Strategic Bond ",2,1,2,5,5,1,5,5]
["Schroder Sustainable Bond ","Sterling Strategic Bond ",1,5,1,3,3,1,1,3]
["Schroder Sustainable Future Multi-Asset ","Flexible Investment",2,5,1,3,2,4,3,1]
["Schroder Sustainable UK Equity ","UK All Companies",2,2,2,4,4,2,1,2]
["Schroder SUTL Cazenove Charity Bond","Sterling Strategic Bond ",5,5,5,1,1,5,1,1]
["Schroder SUTL Cazenove Charity Multi-Asset ","Flexible Investment",2,4,1,4,2,5,2,2]
["Schroder SUTL Cazenove GBP Cautious ","Mixed Investment 0-35% Shares ",2,5,1,null,null,4,4,2]
["Schroder SUTL Cazenove GBP Equity Focus ","Mixed Investment 40-85% Shares",2,4,1,null,null,5,2,5]
["Schroder SUTL Cazenove Sustainable Growth ","Mixed Investment 40-85% Shares",1,3,1,null,null,5,2,1]
["Schroder Tellworth UK Dynamic Absolute Return ","Targeted Absolute Return ",3,3,2,2,4,1,4,2]
["Schroder Tokyo ","Japan ",1,1,1,3,3,2,5,5]
["Schroder UK Alpha Income ","UK Equity Income ",4,4,2,4,4,4,2,4]
["Schroder UK Alpha Plus ","UK All Companies",1,1,4,5,3,2,2,2]
["Schroder UK Dynamic Smaller Companies ","UK Smaller Companies ",2,4,2,3,5,2,1,1]
["Schroder UK Mid 250 ","UK All Companies",4,3,5,4,5,2,4,5]
["Schroder UK Multi-Cap Income ","UK Equity Income ",5,5,5,4,1,1,4,2]
["Schroder UK Smaller Companies ","UK Smaller Companies ",4,3,2,1,4,4,4,4]
["Schroder US Equity Income Maximiser ","North America ",2,3,2,3,2,3,4,2]
["Schroder US Mid Cap ","North America ",1,1,4,3,5,1,5,5]
["Schroder US Smaller Companies ","North American Smaller Companies",2,2,2,4,5,1,4,3]
["Scottish Friendly Managed Growth ","Mixed Investment 40-85% Shares",1,1,3,5,5,4,5,5]
["Scottish Friendly UK Growth ","UK All Companies",3,3,3,5,4,5,4,5]
["Scottish Widows Adventurous Growth ","Mixed Investment 40-85% Shares",2,1,4,4,5,1,4,5]
["Scottish Widows American Growth ","North America ",2,3,1,4,1,3,2,2]
["Scottish Widows Balanced Growth ","Mixed Investment 40-85% Shares",3,3,2,3,2,2,4,3]
["Scottish Widows Balanced Growth Portfolio ","Mixed Investment 20-60% Shares",4,4,3,5,4,2,3,4]
["Scottish Widows Balanced Income Portfolio ","Flexible Investment",3,4,2,1,2,3,3,1]
["Scottish Widows Cautious Growth ","Mixed Investment 20-60% Shares",5,4,5,3,1,5,3,1]
["Scottish Widows Cautious Income Portfolio 1 ","Mixed Investment 20-60% Shares",4,4,3,1,1,4,2,1]
["Scottish Widows Cautious Income Portfolio 2 ","Mixed Investment 0-35% Shares ",4,3,4,4,4,2,4,2]
["Scottish Widows Corporate Bd ","Sterling Corporate Bond ",5,2,5,null,null,5,1,1]
["Scottish Widows Emerging Markets ","Global Emerging Markets ",4,5,3,3,2,4,5,1]
["Scottish Widows Environmental Investor ","UK All Companies",2,2,1,1,1,5,3,1]
["Scottish Widows Ethical ","UK All Companies",2,2,2,1,1,4,2,2]
["Scottish Widows European Growth ","Europe Excluding UK ",3,3,1,3,1,1,1,4]
["Scottish Widows European Select Growth ","Europe Excluding UK ",4,4,3,1,4,3,4,4]
["Scottish Widows Gilt ","UK Gilts ",5,2,5,null,null,4,2,4]
["Scottish Widows Global Environmental Solutions ","UK Equity Income ",2,2,4,2,2,4,1,1]
["Scottish Widows Global Growth ","Global",2,3,1,4,3,2,3,4]
["Scottish Widows Global Select Growth ","Global",3,3,1,2,1,2,3,4]
["Scottish Widows High Income Bd ","Sterling High Yield ",4,4,5,null,null,4,2,3]
["Scottish Widows International Bd ","Global Bonds ",3,5,1,null,null,5,1,1]
["Scottish Widows Japan Growth ","Japan ",3,3,4,1,4,2,4,2]
["Scottish Widows Pacific Growth ","Asia Pacific Excluding Japan ",4,5,3,3,3,3,4,2]
["Scottish Widows Progressive Growth ","Mixed Investment 40-85% Shares",2,1,4,4,5,1,4,5]
["Scottish Widows Progressive Growth Portfolio 1 ","Mixed Investment 40-85% Shares",2,3,2,4,5,1,3,5]
["Scottish Widows Progressive Growth Portfolio 2 ","Global",2,4,1,2,4,1,4,3]
["Scottish Widows Regular Income ","Mixed Investment 40-85% Shares",3,1,5,3,5,1,3,5]
["Scottish Widows Strategic Inc ","Sterling Strategic Bond ",5,3,5,null,null,4,3,3]
["Scottish Widows UK Equity Income ","UK Equity Income ",3,3,2,1,1,3,2,4]
["Scottish Widows UK Growth ","UK All Companies",3,3,3,2,1,2,3,5]
["Scottish Widows UK Select Growth ","UK All Companies",1,1,3,1,1,1,2,2]
["Scottish Widows UK Smaller Companies ","UK Smaller Companies ",2,2,3,1,3,3,3,4]
["SJP Adventurous Growth ","Mixed Investment 40-85% Shares",3,1,5,5,5,3,2,5]
["SJP Adventurous International Growth ","Mixed Investment 40-85% Shares",3,3,4,5,4,3,1,5]
["SJP Balance InRetirement UT ","Mixed Investment 20-60% Shares",5,3,5,null,null,4,2,5]
["SJP Balanced Growth ","Mixed Investment 20-60% Shares",4,2,4,5,4,5,4,5]
["SJP Balanced International Growth ","Mixed Investment 20-60% Shares",2,3,1,1,1,5,3,5]
["SJP Balanced Managed ","Mixed Investment 40-85% Shares",2,2,3,3,2,5,5,4]
["SJP Conservative Growth ","Mixed Investment 0-35% Shares ",4,2,4,5,5,4,5,5]
["SJP Conservative International Growth ","Mixed Investment 0-35% Shares ",1,4,1,1,1,5,5,5]
["SJP Continental European ","Europe Excluding UK ",3,3,1,2,4,2,5,4]
["SJP Corporate Bond ","Sterling High Yield ",2,4,1,1,1,4,1,2]
["SJP Diversified Assets (FAIF) ","Flexible Investment",1,3,1,1,1,2,4,1]
["SJP Diversified Bond ","Global Bonds ",4,5,4,5,5,1,5,5]
["SJP Emerging Markets Equity ","Global Emerging Markets ",5,4,5,1,4,5,2,2]
["SJP Gilts","UK Gilts ",1,1,1,5,5,1,2,5]
["SJP Global ","Global Equity Income ",3,4,3,5,5,1,3,5]
["SJP Global Absolute Return","Targeted Absolute Return ",3,5,1,4,3,4,2,2]
["SJP Global Emerging Markets ","Global Emerging Markets ",4,5,5,1,2,4,1,4]
["SJP Global Equity ","Global Equity Income ",5,5,2,4,3,5,3,4]
["SJP Global Growth ","Global",5,5,3,2,2,4,3,2]
["SJP Global High Yield Bond ","Global Bonds ",4,2,5,5,5,2,5,5]
["SJP Global Quality ","Global",4,4,2,3,3,4,2,5]
["SJP Global Smaller Companies ","Global",5,4,4,5,5,1,5,5]
["SJP Global Value ","Global Equity Income ",3,3,4,4,2,1,4,5]
["SJP Growth InRetirement UT ","Mixed Investment 40-85% Shares",5,3,4,null,null,3,3,4]
["SJP Index Linked Gilts ","UK Index Linked Gilts ",1,1,1,5,1,1,1,5]
["SJP International Equity ","Global",4,5,2,1,1,4,4,4]
["SJP Investment Grade Corporate Bond ","Sterling Corporate Bond ",2,5,2,5,5,5,1,1]
["SJP Japan ","Japan ",2,2,3,5,4,1,1,1]
["SJP Managed Growth ","Mixed Investment 40-85% Shares",3,5,1,5,2,2,3,3]
["SJP North American ","North America ",2,2,3,4,4,1,5,5]
["SJP Prudence InRetirement UT ","Mixed Investment 0-35% Shares ",4,2,5,null,null,2,2,5]
["SJP Strategic Income ","Mixed Investment 0-35% Shares ",5,4,4,5,5,1,5,5]
["SJP Strategic Managed ","Mixed Investment 40-85% Shares",1,1,3,5,4,2,1,3]
["SJP Sustainable & Responsible Equity ","Global",1,1,4,2,1,4,2,2]
["SJP UK ","UK All Companies",3,3,3,3,3,5,3,4]
["SJP UK Equity Income ","UK Equity Income ",3,3,4,2,4,3,3,4]
["SJP Worldwide Income ","Global",1,3,1,1,1,2,2,1]
["Slater Growth ","UK All Companies",5,5,3,1,3,2,4,5]
["Slater Income ","UK Equity Income ",4,5,1,1,5,3,5,4]
["Slater Recovery ","UK All Companies",5,5,1,1,1,1,4,2]
["SPW Adventurous Solution ","Mixed Investment 40-85% Shares",2,3,3,4,4,1,4,5]
["SPW Balanced Solution ","Mixed Investment 20-60% Shares",2,4,2,5,3,1,4,3]
["SPW Cautious Solution ","Mixed Investment 0-35% Shares ",3,4,3,5,4,3,4,2]
["SPW Defensive Solution ","Mixed Investment 0-35% Shares ",3,3,4,4,2,4,3,1]
["SPW Discovery Solution ","Flexible Investment",3,5,2,2,1,3,3,1]
["SPW Dynamic Solution ","Mixed Investment 40-85% Shares",2,3,2,4,4,1,4,4]
["SPW Multi-Manager Global Real Estate Securities","Property Other ",3,2,3,1,3,1,1,4]
["SPW Multi-Manager UK Equity","UK All Companies",1,1,3,3,3,2,4,5]
["SPW Multi-Manager UK Equity Income","UK Equity Income ",2,2,4,4,2,1,3,4]
["SPW Strategic Solution ","Mixed Investment 40-85% Shares",2,4,2,4,2,1,4,4]
["State Street Asia Pacific Ex-Jpn Screened (ex Controversies and CW) Idx Eq ","Asia Pacific Excluding Japan ",4,4,2,1,5,2,3,3]
["State Street Europe ex UK Screened (ex Controversies and CW) Idx Eq ","Europe Excluding UK ",2,1,1,1,2,2,3,2]
["State Street Jpn Scrnd (ex Controversies and CW) Idx Eq ","Japan ",2,2,2,1,2,3,2,5]
["State Street North America Screened (ex Controversies and CW) Idx Eq ","North America ",3,1,4,3,3,3,1,2]
["State Street UK Scrend (ex Controversies and CW) Idx Eq ","UK All Companies",2,2,1,2,2,3,4,2]
["Stewart Investor European (ex UK) Sustainability ","Europe Excluding UK ",5,5,4,null,null,null,1,1]
["Stewart Investors Asia Pacific Leaders Sustainability ","Specialist ",3,2,4,2,3,5,2,4]
["Stewart Investors Asia Pacific Sustainability ","Specialist ",1,1,4,1,3,4,1,5]
["Stewart Investors Global Emerging Markets","Specialist ",1,1,3,1,4,3,4,5]
["Stewart Investors Global Emerging Markets Leaders ","Specialist ",2,2,3,2,4,3,2,4]
["Stewart Investors Global Emerging Markets Leaders Sustainability ","Specialist ",4,3,4,null,null,null,1,4]
["Stewart Investors Global Emerging Markets Sustainability ","Specialist ",2,2,4,1,3,5,1,4]
["Stewart Investors Worldwide Leaders Sustainability","Global",1,1,3,1,1,5,1,2]
["Stewart Investors Worldwide Sustainability ","Global",4,2,5,1,1,5,1,1]
["SUTL Cazenove Charity Equity Income","UK Equity Income ",3,3,2,3,3,4,2,3]
["SUTL Cazenove Charity Equity Value","UK All Companies",2,2,5,5,3,1,4,5]
["SUTL Cazenove Charity Non-UCITS Responsible Multi-Asset ","Flexible Investment",2,2,2,2,1,4,2,2]
["SUTL Cazenove GBP Balanced ","Mixed Investment 20-60% Shares",1,5,1,3,2,5,2,3]
["SUTL Cazenove GBP Growth ","Mixed Investment 40-85% Shares",1,5,1,3,1,5,3,3]
["SVM Continental Europe ","Europe Excluding UK ",5,5,2,1,5,4,5,5]
["SVM UK Growth ","UK All Companies",5,5,5,3,5,5,5,2]
["SVM UK Opportunities ","UK All Companies",5,4,5,5,5,1,5,5]
["SVM World Equity ","Global",5,5,5,5,5,1,5,5]
["SVS Aubrey China ","China/Greater China ",3,4,2,null,null,null,1,5]
["SVS Aubrey Europe Ex-UK ","Europe Excluding UK ",5,5,5,null,null,null,5,1]
["SVS Aubrey Global Conviction ","Global",5,5,5,4,2,5,3,3]
["SVS Aubrey Global Emerging Markets ","Global Emerging Markets ",3,4,1,null,null,null,1,5]
["SVS Dowgate Wealth European Growth ","Europe Excluding UK ",5,5,4,null,null,null,5,4]
["SVS Dowgate Wealth UK Small Cap Growth ","UK Smaller Companies ",3,2,4,null,null,null,1,5]
["SVS Gryphon Peapod ","Mixed Investment 40-85% Shares",2,4,1,1,3,5,3,3]
["SVS Heritage Balanced Portfolio ","Flexible Investment",4,3,3,1,5,1,5,4]
["SVS Innovation ","Flexible Investment",5,2,5,4,4,1,1,3]
["SVS Kennox Strategic Value ","Global",1,1,1,4,2,1,5,3]
["SVS Levitas A ","Mixed Investment 40-85% Shares",4,4,3,4,4,3,4,5]
["SVS Levitas B ","Mixed Investment 0-35% Shares ",2,5,2,2,2,3,1,3]
["SVS Pharaoh Income Fund ","Mixed Investment 40-85% Shares",5,4,3,2,3,4,4,5]
["SVS Quercus Growth Fund ","Global",4,5,2,2,2,4,5,2]
["SVS Saltus Fixed Income ","Global Bonds ",null,5,1,4,4,1,4,4]
["SVS Saltus Global Equity ","Global",null,5,1,1,5,5,4,1]
["SVS Saltus Growth Assets ","Flexible Investment",null,5,1,1,3,2,2,1]
["SVS Saltus Multi Asset Class ","Flexible Investment",null,5,1,1,1,5,2,1]
["SVS Saltus Real Return ","Flexible Investment",null,5,1,1,1,2,2,1]
["SVS Saltus Wealth","Flexible Investment",2,2,2,1,2,4,4,2]
["SVS Sanlam North American Equity ","North America ",1,1,2,2,3,3,4,1]
["SVS Sherwood Fund ","Mixed Investment 40-85% Shares",5,3,4,4,5,2,5,5]
["SVS Sussex Growth Fund ","Global",5,5,3,2,4,3,5,4]
["SVS Sussex Income Fund ","Mixed Investment 40-85% Shares",2,1,4,2,5,1,5,5]
["SVS WAM Global Growth ","Global",null,null,null,null,null,null,null,1]
["SVS Zeus Dynamic Opportunities ","UK All Companies",null,null,null,null,null,null,null,4]
["T. Bailey Dynamic ","Mixed Investment 20-60% Shares",5,5,4,2,5,5,5,5]
["T. Bailey Fund Srvs Ltd (ACD) Aptus Global Financials ","Global Equity Income ",1,1,5,3,5,1,5,5]
["T. Bailey Fund Srvs Ltd (ACD) Heriot Global ","Global",3,2,3,2,1,4,2,1]
["T. Bailey Fund Srvs Ltd (ACD) Heriot Global Smaller Companies ","Global",5,4,5,null,null,null,2,4]
["T. Bailey Fund Srvs Ltd (ACD) Ocean Equity ","UK All Companies",4,4,4,1,1,5,1,1]
["T. Bailey Fund Srvs Ltd (ACD) TB Calibre Equity ","Global",4,3,4,3,3,4,4,1]
["T. Bailey Fund Srvs Ltd (ACD) TB Doherty Balanced Managed ","Mixed Investment 40-85% Shares",2,2,4,4,3,4,5,4]
["T. Bailey Fund Srvs Ltd (ACD) TB Doherty Cautious Managed ","Mixed Investment 20-60% Shares",2,1,4,4,4,5,5,5]
["T. Bailey Fund Srvs Ltd (ACD) TB Doherty Distribution ","Mixed Investment 20-60% Shares",5,3,5,4,3,4,5,1]
["T. Bailey Growth ","Global",5,5,3,1,2,5,5,4]
["T. Bailey Multi-Asset Growth ","Mixed Investment 40-85% Shares",5,5,3,null,null,null,5,4]
["T. Bailey UK Responsibly Invested Equity ","UK All Companies",5,5,4,null,null,null,3,1]
["T. Rowe Price Asian Opportunities Equity ","Asia Pacific Excluding Japan ",3,1,5,4,1,3,1,2]
["T. Rowe Price Continental European Equity ","Europe Excluding UK ",4,4,3,2,1,4,2,2]
["T. Rowe Price Dynamic Global Bond ","Targeted Absolute Return ",3,2,3,1,1,2,4,5]
["T. Rowe Price Emerging Markets Discovery Equity ","Global Emerging Markets ",1,1,1,null,5,1,1,2]
["T. Rowe Price Global Focused Growth Equity ","Global",5,4,5,5,3,5,1,3]
["T. Rowe Price Global High Yield Opportunities Bond ","Global Bonds ",null,null,null,null,null,null,null,5]
["T. Rowe Price Global Select Equity Fund ","Global",null,null,null,null,null,null,2,3]
["T. Rowe Price Global Technology Equity ","Technology & Technology Innovation",5,4,5,5,1,5,1,2]
["T. Rowe Price Global Value Equity ","Global",null,null,null,null,null,null,3,5]
["T. Rowe Price Japanese Equity ","Japan ",4,5,2,1,1,5,1,4]
["T. Rowe Price Responsible UK Equity ","UK All Companies",3,4,3,null,null,5,1,1]
["T. Rowe Price US All-Cap Opportunities Equity ","North America ",null,null,null,null,null,null,3,4]
["T. Rowe Price US Equity ","North America ",1,4,1,1,2,2,1,2]
["T. Rowe Price US Large Cap Growth Equity ","North America ",5,4,5,2,2,5,1,1]
["T. Rowe Price US Large Cap Value Equity ","North America ",2,2,2,4,5,1,4,5]
["T. Rowe Price US Smaller Companies Equity ","North American Smaller Companies",3,3,1,2,1,4,2,3]
["TB Chawton Global Equity Income ","Global Equity Income ",3,3,3,null,1,5,1,2]
["TB Enigma Dynamic Growth ","Flexible Investment",1,5,1,1,2,4,3,2]
["TB Enigma Global Sector Rotation ","Global",null,null,null,null,null,null,null,4]
["TB Evenlode Global Equity ","Global",1,2,3,null,null,2,1,1]
["TB Evenlode Global Income ","Global Equity Income ",2,2,3,1,1,3,1,1]
["TB Evenlode Income ","UK All Companies",1,1,1,1,1,5,1,1]
["TB Guinness European Equity Income ","Europe Excluding UK ",null,null,null,null,null,null,null,2]
["TB Guinness Global Equity Income ","Global Equity Income ",2,2,1,null,null,4,1,1]
["TB Guinness Global Innovators ","Global",null,null,null,null,null,null,null,1]
["TB Guinness Sustainable Global Equity ","Global",null,null,null,null,null,null,null,2]
["TB Mellifera Managed","Mixed Investment 40-85% Shares",5,5,3,1,4,3,5,3]
["TB Opie Street Income ","Mixed Investment 40-85% Shares",4,2,4,null,null,null,4,2]
["TB Saracen Global Income & Growth ","Global Equity Income ",1,1,5,5,5,1,5,5]
["TB Saracen UK Alpha ","UK All Companies",5,5,4,3,5,1,5,4]
["TB Saracen UK Income ","UK Equity Income ",5,5,4,5,5,2,5,4]
["TB TB Amati Strategic Innovation ","Global",null,null,null,null,null,null,1,4]
["TB TB Amati UK Listed Smaller Companies","UK Smaller Companies ",3,5,2,4,3,4,4,5]
["TB Whitman UK Small Cap Growth ","UK Smaller Companies ",3,5,2,null,null,5,3,2]
["The 140 Investment Managers Broadway ICVC Balanced ","Mixed Investment 20-60% Shares",1,1,4,5,2,1,5,4]
["The 140 Investment Managers Broadway ICVC Growth ","Global",3,4,2,3,1,1,5,1]
["The 140 Investment Managers Broadway ICVC Income ","Global Bonds ",4,3,3,5,4,1,5,5]
["Thesis Arch House ","Mixed Investment 40-85% Shares",1,3,1,null,null,null,1,1]
["Thesis Ariel ","Mixed Investment 40-85% Shares",4,5,3,null,null,null,1,2]
["Thesis BPM Trust ","Flexible Investment",5,3,5,5,3,1,5,4]
["Thesis Climate Assets Balanced ","Mixed Investment 40-85% Shares",3,2,4,2,2,5,2,1]
["Thesis Climate Assets Growth ","Global",null,null,null,null,null,null,null,1]
["Thesis CP Balanced ","Flexible Investment",1,4,1,null,null,null,2,1]
["Thesis Destiny A ","Global",2,2,2,4,4,2,3,4]
["Thesis Destiny B ","Global",1,2,2,4,4,2,3,4]
["Thesis Eldon ","North America ",5,1,5,4,1,1,5,1]
["Thesis Elfynn International ","Flexible Investment",5,5,4,3,1,4,4,4]
["Thesis Glenhuntley Portfolio Trust ","Flexible Investment",4,3,4,2,1,1,5,1]
["Thesis Hawarwatza ","Flexible Investment",1,3,1,null,null,null,1,1]
["Thesis Hawthorn Portfolio ","Mixed Investment 40-85% Shares",3,4,2,2,1,1,5,1]
["Thesis Headway ","Flexible Investment",3,5,2,2,1,3,4,1]
["Thesis Hector","Flexible Investment",4,5,1,null,null,4,5,1]
["Thesis Juniper ","Mixed Investment 40-85% Shares",4,2,4,4,2,2,2,3]
["Thesis Latour Growth ","Mixed Investment 40-85% Shares",5,4,4,3,1,1,5,2]
["Thesis Lavaud ","Global",3,3,3,2,2,3,1,2]
["Thesis Libero Balanced ","Mixed Investment 40-85% Shares",5,5,3,2,3,4,3,2]
["Thesis Lime Grove ","Flexible Investment",4,3,3,null,null,null,3,1]
["Thesis Lion Growth ","Global",5,5,3,1,1,5,4,2]
["Thesis Mazener ","Flexible Investment",4,3,4,4,1,3,2,4]
["Thesis Northern Star ","Flexible Investment",1,3,1,null,null,null,2,3]
["Thesis Pippin Return","Flexible Investment",null,null,null,null,null,null,null,3]
["Thesis PM ","Mixed Investment 40-85% Shares",1,1,1,2,1,1,4,1]
["Thesis Rates Credit and Inflation Exposure ","Mixed Investment 0-35% Shares ",3,2,3,null,null,5,1,1]
["Thesis Scarp ","Mixed Investment 40-85% Shares",3,3,3,null,null,null,3,2]
["Thesis Staderas ","Flexible Investment",3,5,1,2,1,5,4,2]
["Thesis The Castor ","Flexible Investment",null,null,null,null,null,null,null,4]
["Thesis The Delta Growth ","Flexible Investment",null,null,null,null,null,null,null,2]
["Thesis The Deribee Growth ","Flexible Investment",null,null,null,null,null,null,null,2]
["Thesis The Diversification ICVC ","Flexible Investment",1,2,1,1,1,4,1,2]
["Thesis The Houndstar ","Global",2,1,5,null,null,null,3,1]
["Thesis THE Millau ","Flexible Investment",null,null,null,null,null,null,null,2]
["Thesis The Saint Martins ","Global",4,5,1,4,3,3,4,1]
["Thesis The TM Lancewood ","Global",4,4,3,3,3,4,2,2]
["Thesis The Vinings ","Flexible Investment",3,5,1,4,3,4,3,3]
["Thesis TM Balanced ","Mixed Investment 40-85% Shares",5,2,5,2,1,1,5,3]
["Thesis TM Equity Exposure ","Global",5,4,5,null,null,null,5,3]
["Thesis TM Growth ","Global",4,4,2,2,1,1,5,1]
["Thesis TM Lime ","Flexible Investment",2,4,1,2,1,3,3,1]
["Thesis TM New Court","Flexible Investment",4,3,4,null,null,1,4,3]
["Thesis TM New Court Equity Growth","Global",4,4,3,null,null,1,5,2]
["Thesis TM OAK Sterling ","Mixed Investment 40-85% Shares",5,5,4,null,null,5,5,2]
["Thesis TM Optimal ","Global",5,5,3,null,null,3,5,5]
["Thesis TM P1 Sustainable World ","Mixed Investment 40-85% Shares",4,4,4,null,null,4,4,2]
["Thesis TM Private Portfolio ","Mixed Investment 40-85% Shares",4,4,4,2,1,1,5,2]
["Thesis TM Rates Credit and Inflation Exposure ","Global Bonds ",5,4,5,null,null,null,4,4]
["Thesis TM Redwheel Global Equity Income ","Global Equity Income ",2,2,2,null,null,3,4,2]
["Thesis TM Tellworth UK Select ","Targeted Absolute Return ",1,1,1,5,1,1,1,3]
["Thesis TM Total Return ","Global",3,5,1,1,1,1,5,1]
["Thesis Trowbridge ","Flexible Investment",3,5,2,2,1,2,5,1]
["TIME Investments ARC TIME Freehold Income Authorised","Property Other ",1,1,1,3,1,4,null,1]
["TIME Investments ARC TIME Property Long Income & Growth Feeder Trust ","Property Other ",2,5,1,null,null,null,4,1]
["TIME Investments ARC TIME Property Long Income & Growth PAIF ","Property Other ",1,5,2,null,null,null,4,1]
["TM Brown Advisory Global Leaders ","Global",null,null,null,null,null,null,2,1]
["TM Brunsdon Adventurous Growth ","Flexible Investment",5,4,4,4,4,4,4,4]
["TM Brunsdon Cautious Growth ","Mixed Investment 0-35% Shares ",2,5,2,1,3,4,3,4]
["TM Cerno Global Leaders ","Global",2,1,5,4,1,4,3,1]
["TM Cerno Select ","Flexible Investment",5,5,2,3,1,4,4,2]
["TM CRUX European ","Europe Excluding UK ",4,4,3,4,2,4,3,2]
["TM CRUX European Special Situations ","Europe Excluding UK ",4,4,2,4,5,4,3,5]
["TM CRUX UK Core ","UK All Companies",3,2,4,1,1,1,3,5]
["TM CRUX UK Smaller Companies ","UK Smaller Companies ",null,null,null,null,null,null,null,5]
["TM CRUX UK Special Situations ","UK All Companies",5,4,5,4,5,1,5,5]
["TM Fulcrum Diversified Liquid Alternatives","Specialist ",2,3,2,3,3,1,3,4]
["TM Home Investor ","Property Other ",1,1,1,4,1,5,3,1]
["TM Rectory Sustainability ","Flexible Investment",5,2,5,2,3,5,2,5]
["TM Redwheel Global Emerging Markets Fund ","Global Emerging Markets ",5,3,5,null,null,null,2,3]
["TM Redwheel UK Equity Income ","UK Equity Income ",2,2,5,4,3,1,4,5]
["TM Stonehage Fleming Global Balanced Portfolio","Mixed Investment 40-85% Shares",1,5,1,null,null,null,2,1]
["TM Stonehage Fleming Global Equities ","Global",3,5,1,5,5,4,2,4]
["TM Stonehage Fleming Global Equities II ","Global",3,4,2,null,null,null,2,4]
["TM Stonehage Fleming Global Growth Portfolio","Mixed Investment 40-85% Shares",2,4,1,null,null,null,2,3]
["TM Tellworth UK Income & Growth ","UK Equity Income ",4,4,5,null,null,null,5,5]
["TM Tellworth UK Smaller Companies ","UK Smaller Companies ",2,3,2,3,3,1,2,1]
["TM UBS (UK) Balanced ","Mixed Investment 20-60% Shares",3,2,4,4,4,3,2,4]
["TM UBS (UK) Global Balanced ","Mixed Investment 20-60% Shares",4,2,4,4,3,3,3,3]
["TM UBS (UK) Global Equity ","Global",3,3,2,3,4,2,4,3]
["TM UBS (UK) Global Growth ","Mixed Investment 40-85% Shares",3,2,3,4,4,3,3,4]
["TM UBS (UK) Global Yield ","Mixed Investment 0-35% Shares ",4,2,4,5,4,3,3,4]
["TM UBS (UK) Growth ","Mixed Investment 40-85% Shares",2,2,4,3,4,2,2,4]
["TM UBS (UK) Income Focus ","Mixed Investment 40-85% Shares",2,1,4,4,4,1,3,4]
["TM UBS (UK) UK Equity ","UK All Companies",3,3,2,2,2,3,1,3]
["TM Veritas Equity Strategy ","Global",null,null,null,null,null,null,null,1]
["Trojan Ethical Global Income ","Global Equity Income ",4,5,1,null,null,null,1,1]
["Troy Asset Management Ltd Trojan","Flexible Investment",1,4,1,1,1,3,1,1]
["Troy Asset Management Ltd Trojan Ethical","Flexible Investment",1,4,1,null,null,4,1,1]
["Troy Asset Management Ltd Trojan Global Equity ","Global",3,4,3,1,2,3,1,1]
["Troy Asset Management Ltd Trojan Global Income ","Global Equity Income ",4,5,1,1,1,3,1,1]
["Troy Asset Management Ltd Trojan Income ","UK All Companies",4,5,1,1,1,5,1,1]
["True Potential Investments True Potential 7IM Aggressive ","Mixed Investment 40-85% Shares",1,2,2,4,4,2,2,5]
["True Potential Investments True Potential 7IM Balanced ","Mixed Investment 20-60% Shares",2,3,2,4,2,2,2,5]
["True Potential Investments True Potential 7IM Cautious ","Mixed Investment 0-35% Shares ",3,4,3,4,3,2,2,5]
["True Potential Investments True Potential 7IM Defensive ","Mixed Investment 0-35% Shares ",3,5,2,3,1,4,1,4]
["True Potential Investments True Potential 7IM Growth ","Global",1,4,1,2,1,2,4,3]
["True Potential Investments True Potential Close Brothers Balanced ","Mixed Investment 40-85% Shares",4,4,3,1,3,4,1,2]
["True Potential Investments True Potential Close Brothers Cautious ","Mixed Investment 0-35% Shares ",2,1,3,3,5,3,1,5]
["True Potential Investments True Potential Close Brothers Cautious Income ","Mixed Investment 0-35% Shares ",4,2,4,5,5,1,5,5]
["True Potential Investments True Potential Close Brothers Growth ","Flexible Investment",4,3,4,1,4,4,1,3]
["True Potential Investments True Potential Global Managed ","Mixed Investment 40-85% Shares",2,3,1,4,1,3,2,1]
["True Potential Investments True Potential Goldman Sachs Balanced ","Mixed Investment 20-60% Shares",5,3,4,5,4,5,3,4]
["True Potential Investments True Potential Goldman Sachs Income Builder ","Flexible Investment",4,2,5,4,4,2,3,1]
["True Potential Investments True Potential Growth-Aligned Aggressive ","Mixed Investment 40-85% Shares",3,2,4,5,5,2,4,5]
["True Potential Investments True Potential Growth-Aligned Balanced ","Mixed Investment 40-85% Shares",2,4,1,4,2,3,3,2]
["True Potential Investments True Potential Growth-Aligned Cautious ","Mixed Investment 20-60% Shares",1,3,1,4,2,4,2,2]
["True Potential Investments True Potential Growth-Aligned Defensive ","Mixed Investment 0-35% Shares ",1,3,1,5,2,3,2,3]
["True Potential Investments True Potential Growth-Aligned Growth ","Mixed Investment 40-85% Shares",2,2,2,5,4,3,4,4]
["True Potential Investments True Potential Schroders Cautious ","Mixed Investment 0-35% Shares ",1,1,2,null,3,1,5,5]
["True Potential Investments True Potential Schroders Cautious Income ","Mixed Investment 40-85% Shares",1,1,2,null,1,1,5,4]
["True Potential Investments True Potential SEI Aggressive ","Mixed Investment 40-85% Shares",1,1,3,5,5,1,2,5]
["True Potential Investments True Potential SEI Balanced ","Mixed Investment 20-60% Shares",3,1,4,4,5,1,2,5]
["True Potential Investments True Potential SEI Cautious ","Mixed Investment 0-35% Shares ",2,2,3,3,5,1,2,5]
["True Potential Investments True Potential SEI Defensive ","Mixed Investment 0-35% Shares ",1,4,1,1,1,1,1,2]
["True Potential Investments True Potential SEI Growth ","Mixed Investment 40-85% Shares",2,1,3,3,5,1,2,5]
["True Potential Investments True Potential Threadneedle Monthly Income ","Flexible Investment",2,1,5,5,5,1,1,3]
["True Potential Investments True Potential UBS Aggressive ","Mixed Investment 40-85% Shares",5,4,5,5,3,2,1,3]
["True Potential Investments True Potential UBS Balanced ","Mixed Investment 20-60% Shares",5,4,5,5,2,2,1,4]
["True Potential Investments True Potential UBS Cautious ","Mixed Investment 20-60% Shares",3,4,2,3,1,2,1,3]
["True Potential Investments True Potential UBS Defensive ","Mixed Investment 0-35% Shares ",1,4,1,5,1,1,1,4]
["True Potential Investments True Potential UBS Growth ","Mixed Investment 40-85% Shares",5,5,5,4,1,2,1,3]
["True Potential Pictet Aggressive ","Flexible Investment",4,4,3,null,null,null,3,4]
["True Potential Pictet Balanced ","Mixed Investment 40-85% Shares",4,5,2,null,null,null,3,2]
["True Potential Pictet Cautious ","Mixed Investment 20-60% Shares",1,3,1,null,null,null,1,3]
["True Potential Pictet Defensive ","Mixed Investment 0-35% Shares ",2,3,1,null,null,null,2,4]
["True Potential Pictet Growth ","Flexible Investment",4,4,3,null,null,null,2,3]
["True Potential UBS Income ","Mixed Investment 20-60% Shares",5,5,3,null,null,null,1,5]
["True Potential Waverton Income ","Mixed Investment 20-60% Shares",3,4,2,null,null,null,3,3]
["TwentyFour Asset Backed Income ","Specialist ",2,2,3,2,3,1,5,3]
["TwentyFour Core Corporate Bond ","Sterling Corporate Bond ",3,5,3,3,1,3,3,5]
["TwentyFour Dynamic Bond ","Sterling Strategic Bond ",4,3,4,3,5,2,5,5]
["TwentyFour Focus Bond ","Sterling Strategic Bond ",3,3,3,5,5,1,5,5]
["TwentyFour Monument Bond ","Specialist ",1,3,1,3,2,2,4,2]
["UBS FTSE RAFI Developed 1000 Index","Global",1,1,4,3,5,1,5,5]
["UBS Global Allocation UK ","Mixed Investment 40-85% Shares",3,4,1,4,4,2,3,5]
["UBS Global Diversified Income ","Mixed Investment 20-60% Shares",5,5,4,2,5,4,4,5]
["UBS Global Emerging Markets Equity ","Global Emerging Markets ",4,4,4,5,4,3,5,5]
["UBS Global Enhanced Equity Income Sustainable ","Global Equity Income ",5,3,5,4,5,3,4,1]
["UBS Global Optimal ","Global",2,2,2,4,5,1,4,5]
["UBS Global Strategic Bond ","Sterling Strategic Bond ",1,4,1,2,5,3,5,2]
["UBS MSCI World Minimum Volatility Index ","Global",1,2,1,1,2,3,1,1]
["UBS Multi Asset Income","Mixed Investment 20-60% Shares",5,5,4,2,4,5,5,2]
["UBS S&P 500 Index ","North America ",2,1,4,3,3,3,1,1]
["UBS Sterling Corporate Bond Indexed","Sterling Corporate Bond ",3,2,4,2,3,5,1,3]
["UBS UK Equity Income ","UK Equity Income ",1,1,4,5,5,1,4,5]
["UBS US Equity ","North America ",4,3,3,5,5,2,4,5]
["UBS US Growth ","North America ",5,5,5,4,1,5,4,1]
["Unicorn Mastertrust","Flexible Investment",5,4,5,4,5,4,5,5]
["Unicorn Outstanding British Companies ","UK All Companies",4,5,1,1,1,5,3,1]
["Unicorn UK Growth ","UK All Companies",5,5,3,2,5,4,5,1]
["Unicorn UK Income ","UK Equity Income ",5,5,5,1,5,5,5,1]
["Unicorn UK Smaller Companies ","UK Smaller Companies ",1,3,1,3,3,3,2,1]
["Vanguard FTSE Developed Europe ex-UK Equity Index ","Europe Excluding UK ",2,1,1,1,2,2,3,3]
["Vanguard FTSE Developed World ex-UK Equity Index ","Global",2,1,4,3,3,3,2,2]
["Vanguard FTSE U.K. All Share Index Unit Trust ","UK All Companies",2,2,2,2,2,2,5,2]
["Vanguard FTSE UK Equity Income Index ","UK Equity Income ",2,2,3,3,3,4,5,3]
["Vanguard Global Emerging Markets ","Global Emerging Markets ",2,2,4,3,5,2,4,4]
["Vanguard LifeStrategy 100% Equity ","Global",2,1,4,3,4,2,3,3]
["Vanguard LifeStrategy 20% Equity ","Mixed Investment 0-35% Shares ",5,2,5,1,1,5,1,1]
["Vanguard LifeStrategy 40% Equity ","Mixed Investment 20-60% Shares",5,2,5,1,1,4,1,1]
["Vanguard LifeStrategy 60% Equity ","Mixed Investment 40-85% Shares",4,2,5,1,1,4,1,1]
["Vanguard LifeStrategy 80% Equity ","Mixed Investment 40-85% Shares",3,1,5,3,3,3,1,3]
["Vanguard Target Retirement 2015 ","Mixed Investment 20-60% Shares",2,2,3,1,1,4,1,1]
["Vanguard Target Retirement 2020 ","Mixed Investment 40-85% Shares",2,2,3,1,1,4,1,1]
["Vanguard Target Retirement 2025 ","Mixed Investment 40-85% Shares",3,2,4,1,1,4,1,1]
["Vanguard Target Retirement 2030 ","Mixed Investment 40-85% Shares",3,2,5,2,1,3,1,1]
["Vanguard Target Retirement 2035 ","Mixed Investment 40-85% Shares",3,2,5,2,2,3,1,2]
["Vanguard Target Retirement 2040 ","Mixed Investment 40-85% Shares",3,1,5,2,3,3,1,2]
["Vanguard Target Retirement 2045 ","Mixed Investment 40-85% Shares",3,1,5,3,3,3,1,3]
["Vanguard Target Retirement 2050 ","Mixed Investment 40-85% Shares",2,1,5,3,3,3,1,3]
["Vanguard Target Retirement 2055 ","Mixed Investment 40-85% Shares",2,1,5,3,3,3,1,3]
["Vanguard UK Inflation-Linked Gilt Index ","UK Index Linked Gilts ",1,5,1,1,1,5,1,5]
["Vanguard UK Long Duration Gilt Index ","UK Gilts ",5,5,5,1,1,5,1,2]
["Vanguard US Equity Index ","North America ",3,1,5,3,4,3,1,3]
["Virgin Climate Change ","Global",4,4,3,5,5,1,4,4]
["Virgin Global Share ","Global",3,4,3,2,3,3,4,3]
["Virgin Money Bond and Gilt ","Sterling Strategic Bond ",5,2,5,1,1,5,1,1]
["Virgin Money Growth 1 ","Mixed Investment 20-60% Shares",3,3,3,1,2,1,1,1]
["Virgin Money Growth 2 ","Mixed Investment 40-85% Shares",2,2,2,1,3,1,2,3]
["Virgin Pension Bond and Gilt ","Sterling Strategic Bond ",5,2,5,1,1,5,1,1]
["Virgin Pension Global Share ","Global Equity Income ",4,5,4,3,3,5,4,3]
["Virgin Pension Growth ","UK All Companies",2,2,2,2,2,2,4,3]
["Virgin Pension Growth 1 ","Flexible Investment",2,3,2,1,1,2,1,1]
["Virgin Pension Growth 2 ","Flexible Investment",2,2,2,1,3,1,2,3]
["Virgin UK Index Tracking ","UK All Companies",1,1,1,2,2,2,4,1]
["VT AI-FUNDS Tactical High Yield Bond ","Sterling Strategic Bond ",1,5,1,null,1,2,1,2]
["VT AJ Bell Adventurous ","Flexible Investment",1,1,3,5,4,3,2,4]
["VT AJ Bell Balanced ","Mixed Investment 40-85% Shares",1,1,1,2,2,4,2,2]
["VT AJ Bell Cautious ","Mixed Investment 0-35% Shares ",1,5,1,3,3,3,1,3]
["VT AJ Bell Global Growth ","Flexible Investment",1,1,4,5,5,3,3,5]
["VT AJ Bell Income ","Flexible Investment",2,2,2,1,1,1,2,3]
["VT AJ Bell Income & Growth ","Flexible Investment",1,1,4,3,5,1,3,5]
["VT AJ Bell Moderately Adventurous ","Mixed Investment 40-85% Shares",1,1,2,4,4,4,2,4]
["VT AJ Bell Moderately Cautious ","Mixed Investment 20-60% Shares",1,4,1,2,2,4,1,3]
["VT AJ Bell Responsible Growth ","Flexible Investment",4,3,4,null,null,4,2,4]
["VT Argonaut Absolute Return ","Targeted Absolute Return ",3,1,5,1,1,2,5,1]
["VT Argonaut Equity Income ","Europe Excluding UK ",3,3,3,3,1,1,4,5]
["VT Argonaut European Alpha ","Europe Excluding UK ",5,5,1,2,2,4,5,5]
["VT Asset Intelligence Defensive ","Global Bonds ",1,5,1,null,null,2,4,4]
["VT Asset Intelligence Growth ","Global",3,4,1,null,null,3,3,4]
["VT Astute Balanced ","Mixed Investment 20-60% Shares",3,3,3,null,null,5,2,4]
["VT Astute Conservative ","Mixed Investment 0-35% Shares ",1,4,2,null,null,5,3,4]
["VT Astute Growth ","Mixed Investment 40-85% Shares",5,4,5,null,null,5,3,5]
["VT Avastra Global Alternatives ","Specialist ",4,5,2,2,2,2,4,2]
["VT Avastra Global Equity ","Global",3,3,2,2,2,1,4,2]
["VT Avastra Global Fixed Income ","Global Bonds ",5,4,4,5,5,3,3,2]
["VT Brompton Adventurous ","Flexible Investment",3,4,2,3,3,4,4,2]
["VT Brompton Cautious ","Mixed Investment 0-35% Shares ",2,4,2,2,4,1,3,2]
["VT Cantab Balanced ","Mixed Investment 40-85% Shares",5,5,2,1,1,5,3,2]
["VT Cantab Moderate ","Mixed Investment 40-85% Shares",4,5,1,1,1,5,3,1]
["VT Cantab Sustainable Global Equity ","Global",1,1,1,null,1,2,1,1]
["VT Cape Wrath Focus ","UK All Companies",4,4,4,2,5,1,5,2]
["VT Castlebay UK Equity ","UK All Companies",2,3,1,2,1,5,1,1]
["VT Chelsea Managed Aggressive Growth ","Mixed Investment 40-85% Shares",5,5,5,2,5,4,4,5]
["VT Chelsea Managed Balanced Growth ","Mixed Investment 40-85% Shares",5,5,3,3,5,3,5,1]
["VT Chelsea Managed Cautious Growth ","Mixed Investment 0-35% Shares ",3,3,3,4,5,1,5,5]
["VT Chelsea Managed Monthly Income ","Mixed Investment 20-60% Shares",2,1,3,1,5,3,5,3]
["VT Clear Peak Capital UK Long/Short Equity ","Targeted Absolute Return ",2,1,4,null,1,1,4,1]
["VT De Lisle America ","North America ",2,1,5,4,5,1,5,5]
["VT Discovery Balanced ","Mixed Investment 40-85% Shares",4,4,3,1,2,4,4,3]
["VT Discovery Growth ","Flexible Investment",3,3,3,2,2,3,3,4]
["VT Downing European Unconstrained Income ","Europe Excluding UK ",4,4,2,null,null,4,4,3]
["VT Downing Global Investors ","Global",4,5,2,null,null,5,5,5]
["VT Downing Small & Mid-Cap Income ","UK Equity Income ",5,5,2,1,3,5,2,1]
["VT Downing Unique Opportunities ","UK All Companies",4,4,4,null,null,5,3,1]
["VT Elston Liquid Real Assets Index ","Flexible Investment",2,5,1,null,null,null,3,1]
["VT Elston Multi-Asset Income ","Mixed Investment 20-60% Shares",2,2,4,null,null,1,1,5]
["VT EPIC Asian Centric Global Growth ","Flexible Investment",4,1,5,null,2,5,1,2]
["VT EPIC Diversified Income ","Sterling Strategic Bond ",5,4,5,1,5,5,4,4]
["VT EPIC Multi Asset Balanced ","Mixed Investment 20-60% Shares",5,5,4,1,5,5,3,5]
["VT EPIC Multi Asset Growth ","Mixed Investment 40-85% Shares",3,3,3,3,5,5,4,4]
["VT EPIC UK Equity Market ","UK All Companies",5,5,5,4,5,5,3,2]
["VT Esprit Careful Growth ","Mixed Investment 0-35% Shares ",1,1,1,5,4,5,4,2]
["VT Esprit Sustainable Growth ","Mixed Investment 40-85% Shares",5,5,4,null,null,5,3,1]
["VT Esprit Tactical Alpha Plus ","Mixed Investment 40-85% Shares",4,3,3,5,2,5,5,3]
["VT Esprit Tactical Balanced ","Mixed Investment 20-60% Shares",2,3,2,5,4,5,4,2]
["VT Esprit Tactical Growth ","Mixed Investment 40-85% Shares",3,4,2,4,2,5,5,2]
["VT Gravis Digital Infrastructure Income ","Property Other ",2,1,4,null,null,null,2,2]
["VT Gravis UK Listed Property (PAIF) ","Property Other ",5,2,5,null,4,4,4,2]
["VT Greystone Balanced Managed ","Mixed Investment 40-85% Shares",4,4,3,1,4,5,4,2]
["VT Greystone Cautious Managed ","Mixed Investment 20-60% Shares",3,5,2,4,4,5,3,2]
["VT Greystone Conservative Managed ","Mixed Investment 0-35% Shares ",2,3,3,2,2,5,4,2]
["VT Greystone Global Growth ","Global",5,4,4,1,2,5,4,3]
["VT Halo Global Asian Consumer","Asia Pacific Excluding Japan ",3,1,5,3,5,3,1,5]
["VT Holland Advisors Equity ","Global",1,1,5,null,null,null,5,5]
["VT Johnston Cautious Portfolio ","Mixed Investment 20-60% Shares",1,1,1,null,null,3,2,2]
["VT Johnston Growth Portfolio ","Mixed Investment 40-85% Shares",1,1,1,null,null,3,3,3]
["VT Lyndon ","Global",1,1,5,null,1,1,5,4]
["VT Momentum Diversified Balanced ","Mixed Investment 20-60% Shares",4,5,2,4,4,4,5,5]
["VT Momentum Diversified Cautious ","Mixed Investment 0-35% Shares ",2,4,2,5,4,5,5,4]
["VT Momentum Diversified Growth ","Mixed Investment 40-85% Shares",5,5,4,4,5,1,5,5]
["VT Momentum Diversified Income ","Mixed Investment 20-60% Shares",5,4,5,5,5,1,5,5]
["VT Momentum Diversified Moderate ","Mixed Investment 40-85% Shares",5,5,2,3,4,3,5,4]
["VT Munro Smart-Beta UK ","UK Equity Income ",2,2,2,3,2,2,4,4]
["VT North Capital Active Equity ","Global",4,5,3,null,null,5,4,2]
["VT PEF Global Multi-Asset ","Flexible Investment",1,5,1,1,1,4,3,1]
["VT PortfolioMetrix GBP Allocation Assertive ","Flexible Investment",2,1,3,null,null,null,3,5]
["VT PortfolioMetrix GBP Allocation Balanced ","Mixed Investment 20-60% Shares",3,2,3,null,null,null,1,4]
["VT PortfolioMetrix GBP Core Assertive ","Flexible Investment",3,2,3,null,null,2,3,5]
["VT PortfolioMetrix GBP Core Balanced ","Mixed Investment 20-60% Shares",3,2,4,null,null,2,3,4]
["VT PortfolioMetrix GBP Core Cautious ","Mixed Investment 0-35% Shares ",1,1,2,null,null,1,2,3]
["VT PPM Global Dynamic ","Mixed Investment 40-85% Shares",5,5,4,null,1,5,5,4]
["VT Price Value Portfolio ","Global",5,3,5,1,2,1,5,1]
["VT Protean Capital Elder","Specialist ",1,1,2,null,null,1,1,2]
["VT Protean Capital PROCSI CoRE ","Specialist ",2,5,1,3,1,1,3,2]
["VT Redlands Equity Portfolio ","Global",3,4,1,3,3,3,3,2]
["VT Redlands Fixed Income Portfolio ","Global Bonds ",4,4,3,4,5,3,4,3]
["VT Redlands Multi-Asset Portfolio ","Flexible Investment",3,5,1,2,2,2,5,2]
["VT RM Global Real Opportunities Fund ","Specialist ",5,5,4,null,null,3,1,4]
["VT Rossie House Portfolio ","Global",4,5,1,1,3,4,5,2]
["VT SG UK Defined Return Assets ","Specialist ",1,1,1,3,5,1,1,3]
["VT Sinfonia Adventurous Growth Portfolio ","Mixed Investment 40-85% Shares",2,3,2,4,4,1,4,4]
["VT Sinfonia Balanced Managed Portfolio ","Mixed Investment 40-85% Shares",1,3,2,4,4,2,4,4]
["VT Sinfonia Cautious Managed Portfolio ","Mixed Investment 20-60% Shares",2,5,1,1,2,3,3,2]
["VT Sinfonia Income & Growth Portfolio ","Mixed Investment 20-60% Shares",2,3,2,4,4,2,3,4]
["VT Sinfonia Income Portfolio ","Mixed Investment 0-35% Shares ",3,4,2,1,1,3,3,2]
["VT Smartfund Balanced Strategy","Mixed Investment 20-60% Shares",1,1,1,1,2,3,5,4]
["VT Smartfund Cautious Strategy ","Mixed Investment 0-35% Shares ",1,2,1,2,2,4,3,3]
["VT Smartfund Growth Strategy","Mixed Investment 40-85% Shares",1,1,1,2,2,4,5,4]
["VT Sorbus Vector ","UK All Companies",3,4,1,1,1,2,1,1]
["VT Tatton Blended Active ","Mixed Investment 40-85% Shares",1,2,2,2,3,2,3,3]
["VT Tatton Blended Aggressive ","Flexible Investment",2,2,2,3,4,1,3,3]
["VT Tatton Blended Balanced ","Mixed Investment 40-85% Shares",1,3,1,1,1,2,3,1]
["VT Tatton Blended Cautious ","Mixed Investment 20-60% Shares",1,4,1,2,1,3,2,2]
["VT Tatton Blended Defensive ","Mixed Investment 20-60% Shares",2,4,1,3,1,4,1,1]
["VT Tatton Oak Capital Growth ","Mixed Investment 40-85% Shares",1,3,2,2,3,2,2,2]
["VT Tatton Oak Cautious Growth ","Mixed Investment 20-60% Shares",2,4,2,2,1,3,1,1]
["VT Teviot UK Smaller Companies ","UK Smaller Companies ",1,2,1,2,5,1,1,4]
["VT Tyndall Global Select ","Global",3,4,3,1,1,4,2,2]
["VT Tyndall North American ","North America ",3,5,1,1,4,5,3,3]
["VT Tyndall Real Income ","UK Equity Income ",1,1,5,1,5,1,5,5]
["VT Vanneck Defensive ","Mixed Investment 40-85% Shares",1,2,1,3,3,2,2,1]
["VT Vanneck Equity ","UK All Companies",2,3,1,2,1,4,1,1]
["VT Vanneck Global Growth ","Global",2,2,4,null,null,null,2,1]
["VT Vanneck Investment Growth ","Flexible Investment",1,2,1,null,null,null,1,1]
["VT VT Blackwood Keystone","Global Bonds ",1,5,1,null,null,null,3,4]
["VT VT Blackwood Prime","Mixed Investment 40-85% Shares",1,1,2,null,null,null,2,2]
["VT VT KMGIM Strategies ICVC ","Mixed Investment 40-85% Shares",1,2,1,null,2,5,5,4]
["VT Woodhill UK Equity Strategic ","Targeted Absolute Return ",1,2,1,2,5,1,2,1]
["WAY Flexible Global Growth Portfolio ","Flexible Investment",3,4,2,2,2,3,4,4]
["WAY Global Balanced Portfolio ","Mixed Investment 20-60% Shares",2,5,2,1,2,3,4,4]
["WAY Global Cautious Portfolio ","Mixed Investment 0-35% Shares ",1,5,1,2,2,2,3,4]
["WAY Global Growth Portfolio ","Mixed Investment 40-85% Shares",2,4,2,2,2,3,4,4]
["WAY Global Momentum ","Specialist ",3,5,1,4,2,2,3,4]
["WAY MA Cautious Portfolio ","Mixed Investment 20-60% Shares",1,4,1,2,2,3,3,4]
["Wesleyan International Growth","Global",1,1,2,3,4,3,2,3]
["Wesleyan Low Risk Reward Growth ","Mixed Investment 0-35% Shares ",5,1,5,5,5,1,2,3]
["Wesleyan Moderate High Risk Reward Income ","Mixed Investment 40-85% Shares",1,1,4,3,5,1,1,3]
["Wesleyan Moderate Risk Reward Growth ","Mixed Investment 20-60% Shares",1,1,4,5,5,1,2,4]
["Wesleyan Risk Averse ","UK Gilts ",1,1,1,5,5,1,3,5]
["Wesleyan UK Growth","UK All Companies",3,3,3,5,4,1,4,5]
["Wise Funds Limited TB Wise Multi-Asset Growth ","Flexible Investment",3,1,5,4,5,1,5,5]
["Wise Funds Limited TB Wise Multi-Asset Income ","Mixed Investment 40-85% Shares",5,1,5,5,5,1,5,5]
["WS Charteris Global Macro ","Global",3,3,2,1,4,5,5,2]
["WS Charteris Strategic Bond ","Sterling Strategic Bond ",1,1,1,5,2,2,2,2]
["WS Kleinwort Hambros Equity Income ","UK Equity Income ",4,4,1,3,1,4,3,2]
["WS Kleinwort Hambros Multi Asset Balanced ","Mixed Investment 40-85% Shares",2,5,1,2,1,5,3,1]
["WS QUAYS Adventurous ","Global",3,2,3,null,null,null,2,2]
["WS QUAYS Conservative ","Mixed Investment 0-35% Shares ",5,3,4,null,null,null,2,1]
["WS QUAYS Growth ","Mixed Investment 20-60% Shares",3,1,4,null,null,null,1,2]
["WS Sequel Balanced Target Return Strategy ","Mixed Investment 40-85% Shares",3,5,1,3,5,1,5,3]
["WS Sequel Cautious Income Strategy","Mixed Investment 20-60% Shares",1,5,1,4,5,1,5,3]
["WS Sequel Cautious Target Return Strategy ","Mixed Investment 20-60% Shares",1,5,1,3,5,1,5,3]
["WS Sequel Global Target Income Strategy ","Mixed Investment 40-85% Shares",5,5,4,5,5,1,5,5]
["WS Sequel Growth Target Return Strategy ","Flexible Investment",5,4,3,4,5,1,5,5]
["WS Verbatim Multi-Index Portfolio 3 ","Mixed Investment 20-60% Shares",3,5,2,1,1,3,3,1]
["WS Verbatim Multi-Index Portfolio 4 ","Mixed Investment 20-60% Shares",3,4,3,3,1,2,4,2]
["WS Verbatim Multi-Index Portfolio 5 ","Mixed Investment 40-85% Shares",3,5,2,2,1,3,4,1]
["WS Verbatim Multi-Index Portfolio 6 ","Flexible Investment",4,4,2,3,2,3,4,2]
["Yealand Fund Services Limited YFS Sterling Select Companies ","UK Smaller Companies ",5,5,3,3,3,2,4,5]
["YFS Intelligent Wealth ","Global",5,4,5,5,2,1,5,1]